{"text_format":"1","workbook":"xlsx","n_sheets":7,"sheets":["Help","Abrechnung","Hilfe","Sprachen","Diverses","Monatslohn","Stundenlohn"],"not_rendered":{"charts":0,"images":3,"macros":1,"external_links":0,"defined_names":422,"comments":0,"pivot_tables":0},"unopened":[],"bounds":{"document_bytes":16777216,"sheet_cells":100000,"rows_first":2000,"rows_last":500,"rows_between":2000,"halvings":0,"cell_chars":16384,"cell_head_chars":4096},"cells_cut":0,"cells_raw":0,"read":"whole","date_system":"1900"}

{"sheet":"Help","index":0,"n_rows":5,"n_cols":2,"rows_kept":5,"cut":false,"hidden":false,"merged":[]}
[]
[]
[null,"Bitte aktivieren Sie die Makros!"]
[null,"S'il vous plaît activez les macros!"]
[null,"Si prega di attivare le macro!"]

{"sheet":"Abrechnung","index":1,"n_rows":240,"n_cols":90,"rows_kept":240,"cut":false,"hidden":false,"merged":[[161,45,163,45],[161,46,163,46],[200,34,202,34],[200,35,202,35],[200,38,202,38],[200,39,202,39],[200,41,202,41],[200,42,202,42],[200,45,202,45],[200,46,202,46],[161,35,163,35],[161,38,163,38],[161,39,163,39],[161,41,163,41],[161,42,163,42],[83,45,85,45],[83,46,85,46],[122,34,124,34],[122,35,124,35],[122,38,124,38],[122,39,124,39],[122,41,124,41],[122,42,124,42],[122,45,124,45],[122,46,124,46],[83,35,85,35],[83,38,85,38],[83,39,85,39],[83,41,85,41],[83,42,85,42],[11,45,13,45],[11,46,13,46],[44,34,46,34],[44,35,46,35],[44,38,46,38],[44,39,46,39],[44,41,46,41],[44,42,46,42],[44,45,46,45],[44,46,46,46],[11,35,13,35],[11,41,13,41],[11,42,13,42],[11,38,13,38],[11,39,13,39],[200,31,201,31],[200,32,201,32],[201,21,202,21],[201,22,202,22],[11,34,13,34],[83,34,85,34],[161,34,163,34],[200,26,202,26],[200,27,202,27],[200,28,201,28],[200,29,201,29],[200,30,201,30],[161,28,162,28],[161,29,162,29],[161,30,162,30],[161,31,162,31],[161,32,162,32],[161,23,163,23],[161,24,163,24],[161,25,163,25],[161,26,163,26],[161,27,163,27],[123,21,124,21],[123,22,124,22],[200,20,202,20],[200,21,200,22],[200,23,202,23],[200,24,202,24],[200,25,202,25],[200,15,202,15],[200,16,202,16],[200,17,202,17],[200,18,202,18],[200,19,202,19],[161,15,163,15],[161,16,163,16],[161,17,163,17],[161,18,163,18],[161,19,163,19],[161,20,163,20],[161,21,161,22],[162,21,163,21],[162,22,163,22],[122,28,123,28],[122,29,123,29],[122,30,123,30],[122,31,123,31],[122,32,123,32],[83,31,84,31],[83,32,84,32],[84,21,85,21],[84,22,85,22],[122,25,124,25],[122,26,124,26],[122,27,124,27],[83,26,85,26],[83,27,85,27],[83,28,84,28],[83,29,84,29],[83,30,84,30],[122,15,124,15],[122,16,124,16],[122,17,124,17],[122,18,124,18],[122,19,124,19],[122,20,124,20],[122,21,122,22],[122,23,124,23],[122,24,124,24],[83,20,85,20],[83,21,83,22],[83,23,85,23],[83,24,85,24],[83,25,85,25],[83,15,85,15],[83,16,85,16],[83,17,85,17],[83,18,85,18],[83,19,85,19],[44,30,45,30],[44,31,45,31],[44,32,45,32],[45,21,46,21],[45,22,46,22],[11,31,12,31],[11,32,12,32],[44,15,46,15],[44,16,46,16],[44,17,46,17],[44,18,46,18],[44,19,46,19],[44,20,46,20],[44,21,44,22],[44,23,46,23],[44,24,46,24],[44,25,46,25],[44,26,46,26],[44,27,46,27],[44,28,45,28],[44,29,45,29],[11,24,13,24],[11,18,13,18],[11,19,13,19],[43,14,46,14],[82,14,85,14],[121,14,124,14],[160,14,163,14],[199,14,202,14],[199,0,202,0],[199,1,202,1],[199,2,202,2],[199,3,202,3],[199,4,202,4],[160,0,163,0],[160,1,163,1],[160,2,163,2],[160,3,163,3],[160,4,163,4],[121,0,124,0],[121,1,124,1],[121,2,124,2],[121,3,124,3],[121,4,124,4],[82,0,85,0],[82,1,85,1],[82,2,85,2],[82,3,85,3],[82,4,85,4],[43,0,46,0],[43,1,46,1],[43,2,46,2],[43,3,46,3],[43,4,46,4],[10,2,13,2],[10,3,13,3],[10,1,13,1],[10,0,13,0],[10,4,13,4],[160,5,163,5],[160,8,163,8],[199,5,202,5],[121,6,123,7],[121,9,123,10],[121,11,123,12],[121,13,124,13],[160,6,162,7],[160,9,162,10],[160,11,162,12],[160,13,163,13],[199,8,202,8],[10,5,13,5],[10,8,13,8],[43,5,46,5],[43,8,46,8],[82,5,85,5],[82,8,85,8],[121,5,124,5],[121,8,124,8],[43,13,46,13],[82,6,84,7],[82,9,84,10],[82,11,84,12],[82,13,85,13],[43,6,45,7],[43,9,45,10],[43,11,45,12],[6,8,6,10],[199,6,201,7],[199,9,201,10],[199,11,201,12],[199,13,202,13],[238,25,238,27],[7,34,7,39],[7,41,7,46],[1,15,1,32],[1,34,1,46],[237,25,237,27],[238,19,238,20],[237,19,237,20],[11,15,13,15],[11,23,13,23],[11,25,13,25],[11,26,13,26],[11,27,13,27],[11,28,12,28],[11,29,12,29],[11,30,12,30],[11,21,11,22],[11,16,13,16],[11,17,13,17],[11,20,13,20],[12,21,13,21],[12,22,13,22],[198,4,198,6],[7,29,7,31],[3,29,3,31],[159,4,159,6],[8,29,8,30],[42,4,42,6],[81,4,81,6],[120,4,120,6],[10,13,13,13],[10,11,12,12],[10,9,12,10],[4,11,4,12],[10,6,12,7],[7,11,7,12],[8,11,8,12],[6,11,6,12],[3,9,3,10],[7,9,7,10],[8,7,8,10],[4,8,4,10],[10,14,13,14]]}
[null,null,null,null,null,null,null,null,null,null,null,null,null,null,null,null,null,null,null,null,null,null,null,null,null,null,null,null,null,null,null,null,null,null,null,null,null,null,null,null,null,null,null,null,null,null,null,null,null,null,null,"KL3","KL4","KL5","KL6","KL7a","KL7b","KL7c","KL8temp",null,null,null,"KL8","KL9","KL9a","KL9b","KL10","KL11","KL11a","KL12","KL13","KL13a","KL14","KL15"]
[null,null,null,null,{"$f":"StammMA & \" 1\"","v":"Stammdaten MitarbeiterInnen Seite 1"},null,null,null,null,null,null,null,null,null,null,{"$f":"Abrechnung & \" \" & KAE_SWE_TEXT & \" Fürstentum Liechtenstein\"","v":"Abrechnung Kurzarbeitsentschädigung Fürstentum Liechtenstein"},null,null,null,null,null,null,null,null,null,null,null,null,null,null,null,null,null,null,{"$f":"t_e_titel & \" \" &  MonatVor(StammPeriode2,0, \"MMMM YYYY\")","v":"Erhebungsbogen für die Ermittlung der saisonalen Ausfallstunden für die Abrechnungsperiode Dezember 2018"}]
[null,null,null,null,null,null,null,null,null,null,null,null,null,null,null,null,null,null,null,null,null,null,null,null,null,null,null,null,null,null,null,null,null,null,{"$f":"A3","v":0},null,null,null,null,null,null,{"$f":"I3","v":0}]
[{"$f":"Firma & \":\"","v":"Firma:"},{"$f":"StammFirma","v":0},null,null,null,null,null,null,null,{"$f":"AC4","v":"LUR-Nr.: "},null,{"$f":"StammBURNummer","v":"LURNUMMER"},null,null,null,null,{"$f":"A4","v":"Firma:"},{"$f":"StammFirma","v":0},null,null,null,null,null,null,null,null,null,null,{"$f":"BURNr & \": \"","v":"LUR-Nr.: "},{"$f":"L4","v":"LURNUMMER"},null,null,null,null,null,null,null,null,null,null,{"$f":"t_e_titel_2","v":"Dieses Formular ist nur auszufüllen, wenn das Amt für Volkwirtschaft in ihrem Entscheid bezüglich der Saisonalität einen Vorbehalt angebracht hat.\n\nWenn das Amt für Volkwirtschaft in ihrem Entscheid bezüglich der Saisonalität einen Vorbehalt angebracht hat, müssen Sie sämtliche theoretisch bezugsberechtigte Mitarbeiter und MitarbeiterInnen auf der Abrechnung aufführen. "}]
[{"$f":"Adresse & \":\"","v":"Adresse:"},{"$f":"StammAdresse","v":0},null,null,null,null,null,null,{"$f":"AC5","v":"Betrieb/Betriebsabteilung: "},null,null,{"$f":"StammBetriebsabteilung","v":"ABTEILUNG"},null,null,null,null,{"$f":"A5","v":"Adresse:"},{"$f":"B5","v":0},null,null,null,null,null,null,null,null,null,null,{"$f":"BetriebAbteilung&\": \"","v":"Betrieb/Betriebsabteilung: "},{"$f":"StammBetriebsabteilung","v":"ABTEILUNG"},null,null,null,null,null,{"$f":"AC5","v":"Betrieb/Betriebsabteilung: "},{"$f":"StammFirma & IF(LEN(StammBetriebsabteilung)>0,\" / \" & StammBetriebsabteilung,\"\")","v":" / ABTEILUNG"},null,null,null,null,{"$f":"#REF!","v":{"$error":"#REF!"}}]
[{"$f":"PLZundOrt & \":\"","v":"PLZ und Ort:"},{"$f":"StammPLZOrt","v":0},null,null,null,null,null,null,null,null,null,null,null,null,null,null,{"$f":"A6","v":"PLZ und Ort:"},{"$f":"B6","v":0},null,null,null,null,null,null,null,null,null,null,{"$f":"Karenz&\": \"","v":"Karenzzeit: "},{"$f":"AF14","v":"0 Tage"},null,null,null,null,null,{"$f":"AC4","v":"LUR-Nr.: "},{"$f":"AD4","v":"LURNUMMER"},null,null,null,null,{"$f":"I6","v":0},null,null,{"$f":"DatumZeit & \": \"","v":"Datum und Zeit: "},{"$f":"TODAY()","v":"2020-11-30"},{"$f":"NOW()","v":44165.600647685184},null,null,null,null,null,null,null,null,null,null,null,null,null,null,null,null,null,null,null,{"$f":"RelativerMehrausfall*100","v":0}]
[{"$f":"SachbearbeiterIn & \":\"","v":"Sachbearbeiter(in):"},{"$f":"StammSachbearbeiterin","v":0},null,null,null,null,null,null,{"$f":"AC7","v":"Abrechnungsperiode: "},null,null,{"$f":"MonatVor(StammPeriode2,0, \"MMMM YYYY\")","v":"Dezember 2018"},null,null,null,null,{"$f":"A7","v":"Sachbearbeiter(in):"},{"$f":"B7","v":0},null,null,null,null,null,null,null,null,null,null,{"$f":"Abrechnungsperiode&\": \"","v":"Abrechnungsperiode: "},{"$f":"MonatVor(StammPeriode2,0, \"MMMM YYYY\")","v":"Dezember 2018"},null,null,null,null,null,null,null,null,null,null,null,null,null,null,null,null,null,null,null,null,null,null,null,null,null,null,null,null,null,null,null,null,null,null,null,null,{"$f":"RelativerMehrausfall","v":0}]
[{"$f":"FonFaxMail & \":\"","v":"Telefon / E-Mail:"},{"$f":"StammTelefon & \" / \" & StammEmail","v":" / "},null,null,null,null,null,null,null,{"$f":"AC9","v":"Datum und Zeit: "},null,{"$f":"NOW()","v":"2020-11-30T14:24:55.960"},null,{"$f":"NOW()","v":44165.600647685184},null,null,{"$f":"A8","v":"Telefon / E-Mail:"},{"$f":"B8","v":" / "},null,null,null,null,null,null,null,null,null,null,{"$f":"IF(AD8>0,BeginnEnde & \": \",\"\")","v":""},{"$f":"IF(KAE_SWE=1,StammBeginnEnde,0)","v":"00:00:00"},null,null,null,null,{"$f":"t_e_pvorjahr & \" (\" & MonatVor(StammPeriode2,12, \"MMMM YYYY\") & \"):\"","v":"Zeitgleiche Periode des Vorjahres (Dezember 2017):"},null,null,null,null,null,null,{"$f":"t_e_pvorjahr2& \" (\" & MonatVor(StammPeriode2,24, \"MMMM YYYY\") & \"):\"","v":"Zeitgleiche Periode des vorletzten Jahres (Dezember 2016):"},null,null,null,null,null,null,null,null,null,null,null,null,null,null,null,null,null,null,null,null,null,null,null,null,{"$f":"IF(KAE_SWE=1,IF(Arbeitsausfall_in_Prozent-VP_Schnitt>0,(Arbeitsausfall_in_Prozent-VP_Schnitt*100),0),Arbeitsausfall_in_Prozent)","v":0}]
[{"$f":"Zahlungsverbindung & \":\"","v":"Zahlungsverbindung:"},{"$f":"StammZahlungsverbindung","v":"IBAN Nummer"},null,null,null,null,null,{"$f":"ArbeitstageJahr&\": \"","v":"Anzahl Arbeitstage im Jahr: "},null,null,null,{"$f":"AnzTag","v":"261 Tage"},null,null,null,null,{"$f":"Zahlungsverbindung & \":\"","v":"Zahlungsverbindung:"},{"$f":"B9","v":"IBAN Nummer"},null,null,null,null,null,null,null,null,null,null,{"$f":"DatumZeit & \": \"","v":"Datum und Zeit: "},{"$f":"TODAY()","v":"2020-11-30"},null,{"$f":"NOW()","v":44165.600647685184}]
[null,null,null,null,null,null,null,null,null,null,null,null,null,null,null,null,null,null,null,null,null,null,null,null,null,null,null,null,null,null,null,null,null,null,null,{"$f":"R10","v":0},null,null,null,null,null,null,{"$f":"Y10","v":0},null,null,null,null,null,null,null,null,{"$f":"Q11","v":2},3,4,5,6,0,"7 (nur für Gleitzeit)"]
["Name Vorname","AHV-Nummer","Freies Feld, z.B. Personalnummer","Geburtsdatum","Grundlohn (Monatslohn oder Stundenlohn)","Durch-\nschnittliche wöchentliche Arbeitszeit","Anzahl Monatslöhne (12, 13, 13.5 etc.) oder Prozentzuschlag gem. GAV",null,"Gratifikation etc. mit vertraglichem Anspruch","Ferienentschädigung in Tagen oder in Lohnprozenten",null,"Feiertagsentschädigung in Tagen oder in Lohnprozenten",null,"SWE-Zuschlag nach GAV in Prozent","Anrechen-\nbarer Stunden-\nverdienst",1,2,3,4,5,6,null,{"$f":"B_7","v":"7 (nur für Gleitzeit)"},null,8,9,10,11,12,13,14,15,16,null,1,2,3,4,5,6,null,{"$f":"AI11","v":1},{"$f":"AJ11","v":2},3,4,5,6,null,null,null,null,{"$f":"R12","v":"Vertragliche wöchentl. Arbeitszeit"},"Sollstunden Abrechnungs-\nperiode","Istzeit (tatsächl. Anwesenh.)","Bezahlte u. unbezahlte Absenzen","Saldo Ende Periode",0,"Diffe-\nrenz",null,null,"Mindest-","erreicht",{"$f":"Y12","v":"Ausfallstd. Kurzarbeit"},"Saldo Mehrstd. Vormonat","Anrechenbare","Abzuziehende",{"$f":"AA12","v":"Saisonale Ausfall- stunden"},"Anrech. Ausfall- stunden",null,{"$f":"AC12","v":"Verdienst- ausfall"},"KAE gemäss Art. 42 ALVG",null,{"$f":"AF12","v":"Abzug Karenzzeit"},"Beantragte Vergütung"]
[null,null,{"$f":"B_FF1","v":"Freies Feld"},null,null,null,null,null,null,null,null,null,null,null,null,{"$f":"A11","v":"Name Vorname"},{"$f":"O11","v":"Anrechen-\nbarer Stunden-\nverdienst"},"Vertragliche wöchentl. Arbeitszeit","Sollstunden Abrechnungs-\nperiode","Istzeit (tatsächl. Anwesenh.)","Bezahlte u. unbezahlte Absenzen",{"$f":"B_7a1","v":"Saldo Ende Periode"},null,"Diffe-\nrenz",{"$f":"B_81 & \" \" & B_82","v":"Ausfallstd. Kurzarbeit"},{"$f":"B_91 & \" \" & B_92 & \" \" & B_93","v":"Saldo Mehrstd. Vormonat"},{"$f":"B_101  & \" \" & B_102  & \" \" &  B_103","v":"Saisonale Ausfall- stunden"},{"$f":"B_111  & \" \" &  B_112  & \" \" & B_113","v":"Anrech. Ausfall- stunden"},{"$f":"B_121  & \" \" & B_122","v":"Verdienst- ausfall"},{"$f":"B_131  & \" \" & B_132","v":"KAE gemäss Art. 42 ALVG"},"Anteil ALV gm. Art. 42 ALVG",{"$f":"B_141 & \" \" & B_142","v":"Abzug Karenzzeit"},{"$f":"B_151 & \" \" & B_152","v":"Beantragte Vergütung"},null,{"$f":"A11","v":"Name Vorname"},{"$f":"R12","v":"Vertragliche wöchentl. Arbeitszeit"},"Sollstunden","Istzeit",{"$f":"U12","v":"Bezahlte u. unbezahlte Absenzen"},{"$f":"Y12","v":"Ausfallstd. Kurzarbeit"},null,{"$f":"A$11","v":"Name Vorname"},"Vertragliche wöchentl. Arbeitszeit","Sollstunden","Istzeit","Bezahlte u. unbezahlte Absenzen","Ausfallstd. Kurzarbeit",null,null,null,null,0,0,0,0,"vorher-\ngehende","laufende",0,null,null,"ausfall","oder ",0,0,"Mehrstd.","Mehrstunden f.",0,0,null,0,0,null,0,0,null,"Zähler","Zähler Be-","Brutto","Netto","Std pro Tag",null,"Netto",null,"StdLohn","Hilfs1",null,"SWE Zuschlag",null,"Monatslohn","Monatslohn"]
[null,null,{"$f":"B_FF2","v":"z.B."},null,null,null,null,null,null,null,null,null,null,null,null,null,null,null,null,null,null,"vorher-\ngehende",{"$f":"B_7b2","v":"laufende"},null,null,null,null,null,null,null,null,null,null,null,null,null,{"$f":"MonatVor(StammPeriode2,12, \"MMMM\")","v":"Dezember"},{"$f":"AK13","v":"Dezember"},null,null,null,null,null,{"$f":"MonatVor(StammPeriode2,24, \"MMMM\")","v":"Dezember"},{"$f":"AR13","v":"Dezember"},null,null,null,null,null,null,0,0,0,0,0,0,0,null,null,null,"nicht",0,0,"Vormonat","Ausfallberech.",0,0,null,"100%","80%",null,"0 Tage","KSE",null,"Betroffene ","zugsberechtigte","Stunden","Stunden",null,null,"Tage",null,null,null,null,"Betrag",null,null,"ungekürzt"]
[null,null,{"$f":"B_FF3","v":"Personalnummer"},null,null,null,"Monate","Prozent",null,"Tage",{"$f":"H14","v":"Prozent"},{"$f":"J14","v":"Tage"},{"$f":"K14","v":"Prozent"},null,null,null,null,null,null,null,null,null,null,null,null,null,null,null,{"$f":"B_123","v":"100%"},{"$f":"B_133","v":"80%"},{"$f":"\"60%\"","v":"60%"},{"$f":"B_143","v":"0 Tage"},{"$f":"B_153","v":"KSE"},null,null,null,{"$f":"MonatVor(StammPeriode2,12, \"YYYY\")","v":"2017"},{"$f":"AK14","v":"2017"},null,null,null,null,null,{"$f":"MonatVor(StammPeriode2,24, \"YYYY\")","v":"2016"},{"$f":"AR14","v":"2016"},null,null,null,null,null,null,"KL3","KL4","KL5","KL6","KL7a","KL7b","KL7c","KL8temp","Überzeit","Mindestausfall",null,"KL8","KL9","KL9a","KL9b","KL10","KL11","KL11a","KL12","KL13",null,"KL14","KL15",null,"Mitarbeiter","Mitarbeiter","BrStd","NetStd","StdTg",null,"NetTg",null,"Resultat","nichtgekürzt",null,"SWEZuschlagBetrag",null,"Resultat","LohnMonat"]
[null,null,null,null,null,null,null,0,null,0,0,0,0,null,{"$f":"Q15","v":0},{"$f":"A15","v":0},{"$f":"ROUND(IF(AnzMonJahr > 11,IF(Lohn > 100,MonLohn,StdLohn),0),2)","v":0},null,null,null,null,null,null,{"$f":"KL7c","v":0},{"$f":"_KL8","v":0},0,{"$f":"_KL10","v":0},{"$f":"KL11a","v":0},{"$f":"_KL12","v":0},{"$f":"_KL13","v":0},{"$f":"BT15","v":0},{"$f":"_KL14","v":0},{"$f":"_KL15","v":0},null,{"$f":"A15","v":0},null,null,null,0,{"$f":"AK15-AL15-AM15","v":0},null,0,null,null,null,0,{"$f":"AR15-AS15-AT15","v":0},null,null,null,null,{"$f":"R15","v":0},0,0,0,0,0,{"$f":"KL7a-KL7b","v":0},{"$f":"ROUND(SUM(_KL4-_KL5-_KL6-KL7c),2)","v":0},{"$f":"IF(KL8temp<0,KL8temp,0)","v":0},{"$f":"_KL3 / 5 * StammMindestausfall","v":0},{"$f":"IF(KL8temp < Mindestausfall,\"nein\",\"ja\")","v":"ja"},{"$f":"ROUND(IF(KL8temp>0,KL8temp,0),2)","v":0},{"$f":"Z15","v":0},{"$f":"IF(_KL9>_KL10,_KL9-_KL10,0)","v":0},{"$f":"IF(_KL8-_KL9>0,_KL8-_KL9,0)","v":0},{"$f":"_KL8-_KL11","v":0},{"$f":"IF(Arbeitsausfall_in_Prozent>0,IF(_KL8>0,ROUND(_KL8/Arbeitsausfall_in_Prozent*RelativerMehrausfall,2),0),0)","v":0},{"$f":"_KL11-KL9a+Überzeit","v":0},{"$f":"IF(KL8temp < Mindestausfall,IF(KL11a>0,0,0),IF(KL11a<=0,0,ROUND(_KL2*KL11a,2)))","v":0},{"$f":"IF(MindestausfallJaNein=\"ja\",ROUND(K_12*StammAnspruch_in_Prozent/100,2),0)","v":0},{"$f":"IF(MindestausfallJaNein=\"ja\",ROUND(K_12*Entsch_Liechtenstein_in_Prozent/100,2),0)","v":0},{"$f":"IF(MindestausfallJaNein=\"ja\",ROUND(IF(KL11a>0,_KL3/5*_KL2*KZ_V*Entsch_Liechtenstein_in_Prozent/100,0),2),0)","v":0},{"$f":"IF(KL13a-_KL14>=0,ROUND(SUM(KL13a-_KL14)*20,0)/20,0)","v":0},null,{"$f":"IF(K_15<>0,1,0)","v":0},{"$f":"IF(SollStd<>0,1,0)","v":0},{"$f":"StdTg*StammJahrestage","v":0},{"$f":"(StdTg*StammJahrestage)-(StdTg*(Fer+Fei))","v":0},{"$f":"StdWo/5","v":0},null,{"$f":"StammJahrestage-Fer-Fei","v":261},null,{"$f":"IF(Hilfs1 * NetStd/12 > StammVV,StammVV / (NetStd /12 ), Hilfs1)","v":{"$error":"#DIV/0!"}},{"$f":"(Lohn + SWEZuschlagBetrag) + ((Lohn + SWEZuschlagBetrag) * ((StammJahrestage /12 * AnzMonJahr) - NetTg) * 100 / NetTg)/100 + Grati/NetStd","v":{"$error":"#DIV/0!"}},null,{"$f":"Lohn * SWEZuschlag","v":0},null,{"$f":"IF(LohnMon > StammVV,StammVV/(NetStd/12),LohnMon/(NetStd/12))","v":{"$error":"#DIV/0!"}},{"$f":"((Lohn + SWEZuschlagBetrag)*AnzMonJahr/12)+Grati/12","v":0}]
[null,null,null,null,null,null,null,null,null,null,null,null,null,null,{"$f":"Q16","v":0},{"$f":"A16","v":0},0,null,null,null,null,null,null,0,0,null,0,0,0,0,{"$f":"BT16","v":0},0,0,null,0,null,null,null,null,{"$f":"AK16-AL16-AM16","v":0},null,0,null,null,null,null,{"$f":"AR16-AS16-AT16","v":0},null,null,null,null,{"$f":"R16","v":0},{"$f":"S16","v":0},{"$f":"T16","v":0},{"$f":"U16","v":0},{"$f":"V16","v":0},{"$f":"W16","v":0},0,0,0,0,"ja",0,{"$f":"Z16","v":0},0,0,0,0,0,0,0,0,0,0,null,0,0,0,0,0,null,261,null,{"$error":"#DIV/0!"},{"$error":"#DIV/0!"},null,0,null,{"$error":"#DIV/0!"},0]
[null,null,null,null,null,null,null,0,null,0,0,0,0,null,{"$f":"Q17","v":0},{"$f":"A17","v":0},0,null,null,null,null,null,null,0,0,null,0,0,0,0,0,0,0,null,0,null,null,null,null,0,null,{"$f":"AI17","v":0},null,null,null,null,0,null,null,null,null,0,0,0,0,0,0,0,0,0,0,"ja",0,0,0,0,0,0,0,0,0,0,0,0,null,0,0,0,0,0,null,261,null,{"$error":"#DIV/0!"},{"$error":"#DIV/0!"},null,0,null,{"$error":"#DIV/0!"},0]
[null,null,null,null,null,null,null,null,null,null,null,null,null,null,0,{"$f":"A18","v":0},0,null,null,null,null,null,null,0,0,null,0,0,0,0,0,0,0,null,0,null,null,null,null,0,null,0,null,null,null,null,0,null,null,null,null,0,0,0,0,0,0,0,0,0,0,"ja",0,0,0,0,0,0,0,0,0,0,0,0,null,0,0,0,0,0,null,261,null,{"$error":"#DIV/0!"},{"$error":"#DIV/0!"},null,0,null,{"$error":"#DIV/0!"},0]
[null,null,null,null,null,null,null,null,null,null,null,null,null,null,0,{"$f":"A19","v":0},0,null,null,null,null,null,null,0,0,null,0,0,0,0,0,0,0,null,0,null,null,null,null,0,null,0,null,null,null,null,0,null,null,null,null,0,0,0,0,0,0,0,0,0,0,"ja",0,0,0,0,0,0,0,0,0,0,0,0,null,0,0,0,0,0,null,261,null,{"$error":"#DIV/0!"},{"$error":"#DIV/0!"},null,0,null,{"$error":"#DIV/0!"},0]
[null,null,null,null,null,null,null,null,null,null,null,null,null,null,0,{"$f":"A20","v":0},0,null,null,null,null,null,null,0,0,null,0,0,0,0,0,0,0,null,0,null,null,null,null,0,null,0,null,null,null,null,0,null,null,null,null,0,0,0,0,0,0,0,0,0,0,"ja",0,0,0,0,0,0,0,0,0,0,0,0,null,0,0,0,0,0,null,261,null,{"$error":"#DIV/0!"},{"$error":"#DIV/0!"},null,0,null,{"$error":"#DIV/0!"},0]
[null,null,null,null,null,null,null,null,null,null,null,null,null,null,0,0,0,null,null,null,null,null,null,0,0,null,0,0,0,0,0,0,0,null,0,null,null,null,null,0,null,0,0,null,null,null,0,null,null,null,null,0,0,0,0,0,0,0,0,0,0,"ja",0,0,0,0,0,0,0,0,0,0,0,0,null,0,0,0,0,0,null,261,null,{"$error":"#DIV/0!"},{"$error":"#DIV/0!"},null,0,null,{"$error":"#DIV/0!"},0]
[null,null,null,null,null,null,null,null,null,null,null,null,null,null,0,0,0,null,null,null,null,null,null,0,0,null,0,0,0,0,0,0,0,null,0,null,null,null,null,0,null,0,null,null,null,null,0,null,null,null,null,0,0,0,0,0,0,0,0,0,0,"ja",0,0,0,0,0,0,0,0,0,0,0,0,null,0,0,0,0,0,null,261,null,{"$error":"#DIV/0!"},{"$error":"#DIV/0!"},null,0,null,{"$error":"#DIV/0!"},0]
[null,null,null,null,null,null,null,null,null,null,null,null,null,null,0,0,0,null,null,null,null,null,null,0,0,null,0,0,0,0,0,0,0,null,0,null,null,null,null,0,null,0,null,null,null,null,0,null,null,null,null,0,0,0,0,0,0,0,0,0,0,"ja",0,0,0,0,0,0,0,0,0,0,0,0,null,0,0,0,0,0,null,261,null,{"$error":"#DIV/0!"},{"$error":"#DIV/0!"},null,0,null,{"$error":"#DIV/0!"},0]
[null,null,null,null,null,null,null,null,null,null,null,null,null,null,0,0,0,null,null,null,null,null,null,0,0,null,0,0,0,0,0,0,0,null,0,null,null,null,null,0,null,0,null,null,null,null,0,null,null,null,null,0,0,0,0,0,0,0,0,0,0,"ja",0,0,0,0,0,0,0,0,0,0,0,0,null,0,0,0,0,0,null,261,null,{"$error":"#DIV/0!"},{"$error":"#DIV/0!"},null,0,null,{"$error":"#DIV/0!"},0]
[null,null,null,null,null,null,null,null,null,null,null,null,null,null,0,0,0,null,null,null,null,null,null,0,0,null,0,0,0,0,0,0,0,null,0,null,null,null,null,0,null,0,null,null,null,null,0,null,null,null,null,0,0,0,0,0,0,0,0,0,0,"ja",0,0,0,0,0,0,0,0,0,0,0,0,null,0,0,0,0,0,null,261,null,{"$error":"#DIV/0!"},{"$error":"#DIV/0!"},null,0,null,{"$error":"#DIV/0!"},0]
[null,null,null,null,null,null,null,null,null,null,null,null,null,null,0,0,0,null,null,null,null,null,null,0,0,null,0,0,0,0,0,0,0,null,0,null,null,null,null,0,null,0,null,null,null,null,0,null,null,null,null,0,0,0,0,0,0,0,0,0,0,"ja",0,0,0,0,0,0,0,0,0,0,0,0,null,0,0,0,0,0,null,261,null,{"$error":"#DIV/0!"},{"$error":"#DIV/0!"},null,0,null,{"$error":"#DIV/0!"},0]
[null,null,null,null,null,null,null,null,null,null,null,null,null,null,0,0,0,null,null,null,null,null,null,0,0,null,0,0,0,0,0,0,0,null,0,null,null,null,null,0,null,0,null,null,null,null,0,null,null,null,null,0,0,0,0,0,0,0,0,0,0,"ja",0,0,0,0,0,0,0,0,0,0,0,0,null,0,0,0,0,0,null,261,null,{"$error":"#DIV/0!"},{"$error":"#DIV/0!"},null,0,null,{"$error":"#DIV/0!"},0]
[null,null,null,null,null,null,null,null,null,null,null,null,null,null,0,{"$f":"A28","v":0},0,null,null,null,null,null,null,0,0,null,0,0,0,0,0,0,0,null,0,null,null,null,null,0,null,0,null,null,null,null,0,null,null,null,null,0,0,0,0,0,0,0,0,0,0,"ja",0,0,0,0,0,0,0,0,0,0,0,0,null,0,0,0,0,0,null,261,null,{"$error":"#DIV/0!"},{"$error":"#DIV/0!"},null,0,null,{"$error":"#DIV/0!"},0]
[null,null,null,null,null,null,null,null,null,null,null,null,null,null,0,0,0,null,null,null,null,null,null,0,0,null,0,0,0,0,0,0,0,null,0,null,null,null,null,0,null,0,null,null,null,null,0,null,null,null,null,0,0,0,0,0,0,0,0,0,0,"ja",0,0,0,0,0,0,0,0,0,0,0,0,null,0,0,0,0,0,null,261,null,{"$error":"#DIV/0!"},{"$error":"#DIV/0!"},null,0,null,{"$error":"#DIV/0!"},0]
[null,null,null,null,null,null,null,null,null,null,null,null,null,null,0,0,0,null,null,null,null,null,null,0,0,null,0,0,0,0,0,0,0,null,0,null,null,null,null,0,null,0,null,null,null,null,0,null,null,null,null,0,0,0,0,0,0,0,0,0,0,"ja",0,0,0,0,0,0,0,0,0,0,0,0,null,0,0,0,0,0,null,261,null,{"$error":"#DIV/0!"},{"$error":"#DIV/0!"},null,0,null,{"$error":"#DIV/0!"},0]
[null,null,null,null,null,null,null,null,null,null,null,null,null,null,0,0,0,null,null,null,null,null,null,0,0,null,0,0,0,0,0,0,0,null,0,null,null,null,null,0,null,0,null,null,null,null,0,null,null,null,null,0,0,0,0,0,0,0,0,0,0,"ja",0,0,0,0,0,0,0,0,0,0,0,0,null,0,0,0,0,0,null,261,null,{"$error":"#DIV/0!"},{"$error":"#DIV/0!"},null,0,null,{"$error":"#DIV/0!"},0]
[null,null,null,null,null,null,null,null,null,null,null,null,null,null,0,0,0,null,null,null,null,null,null,0,0,null,0,0,0,0,0,0,0,null,0,null,null,null,null,0,null,0,null,null,null,null,0,null,null,null,null,0,0,0,0,0,0,0,0,0,0,"ja",0,0,0,0,0,0,0,0,0,0,0,0,null,0,0,0,0,0,null,261,null,{"$error":"#DIV/0!"},{"$error":"#DIV/0!"},null,0,null,{"$error":"#DIV/0!"},0]
[null,null,null,null,null,null,null,null,null,null,null,null,null,null,0,0,0,null,null,null,null,null,null,0,0,null,0,0,0,0,0,0,0,null,0,null,null,null,null,0,null,0,null,null,null,null,0,null,null,null,null,0,0,0,0,0,0,0,0,0,0,"ja",0,0,0,0,0,0,0,0,0,0,0,0,null,0,0,0,0,0,null,261,null,{"$error":"#DIV/0!"},{"$error":"#DIV/0!"},null,0,null,{"$error":"#DIV/0!"},0]
[null,null,null,null,null,null,null,null,null,null,null,null,null,null,{"$f":"Q34","v":0},0,0,null,null,null,null,null,null,0,0,null,0,0,0,0,0,0,0,null,0,null,null,null,null,0,null,0,null,null,null,null,0,null,null,null,null,0,0,0,0,0,0,0,0,0,0,"ja",0,0,0,0,0,0,0,0,0,0,0,0,null,0,0,0,0,0,null,261,null,{"$error":"#DIV/0!"},{"$error":"#DIV/0!"},null,0,null,{"$error":"#DIV/0!"},0]
[null,null,null,null,null,null,null,null,null,null,null,null,null,null,0,0,0,null,null,null,null,null,null,0,0,null,0,0,0,0,0,0,0,null,0,null,null,null,null,0,null,0,null,null,null,null,0,null,null,null,null,0,0,0,0,0,0,0,0,0,0,"ja",0,0,0,0,0,0,0,0,0,0,0,0,null,0,0,0,0,0,null,261,null,{"$error":"#DIV/0!"},{"$error":"#DIV/0!"},null,0,null,{"$error":"#DIV/0!"},0]
[null,null,null,null,null,null,null,null,null,null,null,null,null,null,0,0,0,null,null,null,null,null,null,0,0,null,0,0,0,0,0,0,0,null,0,null,null,null,null,0,null,0,null,null,null,null,0,null,null,null,null,0,0,0,0,0,0,0,0,0,0,"ja",0,0,0,0,0,0,0,0,0,0,0,0,null,0,0,0,0,0,null,261,null,{"$error":"#DIV/0!"},{"$error":"#DIV/0!"},null,0,null,{"$error":"#DIV/0!"},0]
[null,null,null,null,null,null,null,null,null,null,null,null,null,null,0,0,0,null,null,null,null,null,null,0,0,null,0,0,0,0,0,0,0,null,0,null,null,null,null,0,null,0,null,null,null,null,0,null,null,null,null,0,0,0,0,0,0,0,0,0,0,"ja",0,0,0,0,0,0,0,0,0,0,0,0,null,0,0,0,0,0,null,261,null,{"$error":"#DIV/0!"},{"$error":"#DIV/0!"},null,0,null,{"$error":"#DIV/0!"},0]
[null,null,null,null,null,null,null,null,null,null,null,null,null,null,0,0,0,null,null,null,null,null,null,0,0,null,0,0,0,0,0,0,0,null,0,null,null,null,null,0,null,0,null,null,null,null,0,null,null,null,null,0,0,0,0,0,0,0,0,0,0,"ja",0,0,0,0,0,0,0,0,0,0,0,0,null,0,0,0,0,0,null,261,null,{"$error":"#DIV/0!"},{"$error":"#DIV/0!"},null,0,null,{"$error":"#DIV/0!"},0]
[null,null,null,null,null,null,null,null,null,null,null,null,null,null,0,0,0,null,null,null,null,null,null,0,0,null,0,0,0,0,0,0,0,null,0,null,null,null,null,0,null,0,null,null,null,null,0,null,null,null,null,0,0,0,0,0,0,0,0,0,0,"ja",0,0,0,0,0,0,0,0,0,0,0,0,null,0,0,0,0,0,null,261,null,{"$error":"#DIV/0!"},{"$error":"#DIV/0!"},null,0,null,{"$error":"#DIV/0!"},0]
[null,null,null,null,null,null,null,null,null,null,null,null,null,null,0,0,0,null,null,null,null,null,null,0,0,null,0,0,0,0,0,0,0,null,0,null,null,null,null,0,null,0,null,null,null,null,0,null,null,null,null,0,0,0,0,0,0,0,0,0,0,"ja",0,0,0,0,0,0,0,0,0,0,0,0,null,0,0,0,0,0,null,261,null,{"$error":"#DIV/0!"},{"$error":"#DIV/0!"},null,0,null,{"$error":"#DIV/0!"},0]
[null,null,null,null,null,null,null,null,null,null,null,null,null,null,0,0,0,null,null,null,null,null,null,0,0,null,0,0,0,{"$f":"_KL13","v":0},0,0,0,null,0,null,null,null,null,0,null,0,null,null,null,null,0,null,null,null,null,0,0,0,0,0,0,0,0,0,0,"ja",0,0,0,0,0,0,0,0,0,0,0,0,null,0,0,0,0,0,null,261,null,{"$error":"#DIV/0!"},{"$error":"#DIV/0!"},null,0,null,{"$error":"#DIV/0!"},0]
[null,null,null,null,null,null,null,null,null,null,null,null,null,null,null,{"$f":"übertrag","v":"Übertrag"},null,null,{"$f":"SUM(S15:S41)","v":0},null,{"$f":"SUM(U15:U41)","v":0},null,null,null,{"$f":"SUM(Y15:Y41)","v":0},null,null,null,{"$f":"SUM(AC15:AC41)","v":0},null,null,null,{"$f":"SUM(AG15:AG41)","v":0},null,{"$f":"P42","v":"Übertrag"},null,{"$f":"SUM(AK15:AK41)","v":0},null,{"$f":"SUM(AM15:AM41)","v":0},{"$f":"SUM(AN15:AN41)","v":0},null,"Übertrag",null,{"$f":"SUM(AR15:AR41)","v":0},null,{"$f":"SUM(AT15:AT41)","v":0},{"$f":"SUM(AU15:AU41)","v":0}]
[null,null,null,null,{"$f":"StammMA & \" 2\"","v":"Stammdaten MitarbeiterInnen Seite 2"},null,null,null,null,null,null,null,null,null,null,null,null,null,null,null,null,null,{"$f":"Abrechnung & \" \" & KAE_SWE_TEXT & \", \" & Seite & \" 2, \" & MonatVor(StammPeriode2,0, \"MMMM YYYY\")","v":"Abrechnung Kurzarbeitsentschädigung, Seite 2, Dezember 2018"},null,null,null,null,null,null,null,null,null,null,null,{"$f":"E43","v":"Stammdaten MitarbeiterInnen Seite 2"},null,null,null,null,null,{"$f":"\"Erhebungsbogen Saisonalität\"&\"  -  \"& MonatVor(StammPeriode2,0, \"MMMM YYYY\") & \"  -  \"&AK5","v":"Erhebungsbogen Saisonalität  -  Dezember 2018  -   / ABTEILUNG"},null,null,null,null,{"$f":"AT6","v":"2020-11-30"},{"$f":"AU6","v":44165.600647685184}]
[{"$f":"A$11","v":"Name Vorname"},"AHV-Nummer","Freies Feld, z.B. Personalnummer","Geburtsdatum","Grundlohn (Monatslohn oder Stundenlohn)","Durch-\nschnittliche wöchentliche Arbeitszeit",{"$f":"G$11","v":"Anzahl Monatslöhne (12, 13, 13.5 etc.) oder Prozentzuschlag gem. GAV"},null,{"$f":"I$11","v":"Gratifikation etc. mit vertraglichem Anspruch"},"Ferienentschädigung in Tagen oder in Lohnprozenten",null,{"$f":"L$11","v":"Feiertagsentschädigung in Tagen oder in Lohnprozenten"},null,{"$f":"N$11","v":"SWE-Zuschlag nach GAV in Prozent"},"Anrechen-\nbarer Stunden-\nverdienst",{"$f":"P$11","v":1},{"$f":"Q$11","v":2},{"$f":"R$11","v":3},{"$f":"S$11","v":4},5,6,null,{"$f":"W$11","v":"7 (nur für Gleitzeit)"},null,{"$f":"Y$11","v":8},{"$f":"Z$11","v":9},{"$f":"AA$11","v":10},{"$f":"AB$11","v":11},12,13,14,15,16,null,{"$f":"AI$11","v":1},{"$f":"AJ$11","v":2},3,4,5,6,null,{"$f":"AI$44","v":1},{"$f":"AJ$44","v":2},{"$f":"AK$44","v":3},4,5,6,null,null,null,null,{"$f":"R45","v":"Vertragliche wöchentl. Arbeitszeit"},"Sollstunden Abrechnungs-\nperiode","Istzeit (tatsächl. Anwesenh.)","Bezahlte u. unbezahlte Absenzen","Saldo Ende Periode",0,"Diffe-\nrenz",null,null,null,null,{"$f":"Y45","v":"Ausfallstd. Kurzarbeit"},"Saldo Mehrstd. Vormonat","Anrechenbare","Abzuziehende",{"$f":"AA45","v":"Saisonale Ausfall- stunden"},"Anrech. Ausfall- stunden",null,{"$f":"AC45","v":"Verdienst- ausfall"},"KAE gemäss Art. 42 ALVG",null,{"$f":"AF45","v":"Abzug Karenzzeit"},"Beantragte Vergütung"]
[{"$f":"A$11","v":"Name Vorname"},{"$f":"B$12","v":0},{"$f":"B_FF1","v":"Freies Feld"},{"$f":"D$11","v":"Geburtsdatum"},{"$f":"E$11","v":"Grundlohn (Monatslohn oder Stundenlohn)"},{"$f":"F$11","v":"Durch-\nschnittliche wöchentliche Arbeitszeit"},{"$f":"G$12","v":0},null,{"$f":"I$11","v":"Gratifikation etc. mit vertraglichem Anspruch"},0,null,{"$f":"#REF!","v":{"$error":"#REF!"}},null,null,0,{"$f":"P$12","v":"Name Vorname"},{"$f":"Q$12","v":"Anrechen-\nbarer Stunden-\nverdienst"},{"$f":"R$12","v":"Vertragliche wöchentl. Arbeitszeit"},{"$f":"S$12","v":"Sollstunden Abrechnungs-\nperiode"},"Istzeit (tatsächl. Anwesenh.)","Bezahlte u. unbezahlte Absenzen",{"$f":"V$12","v":"Saldo Ende Periode"},null,{"$f":"X$12","v":"Diffe-\nrenz"},"Ausfallstd. Kurzarbeit","Saldo Mehrstd. Vormonat","Saisonale Ausfall- stunden","Anrech. Ausfall- stunden","Verdienst- ausfall",{"$f":"AD$12","v":"KAE gemäss Art. 42 ALVG"},"Anteil ALV gm. Art. 42 ALVG","Abzug Karenzzeit",{"$f":"AG$12","v":"Beantragte Vergütung"},null,{"$f":"AI$12","v":"Name Vorname"},{"$f":"R$45","v":"Vertragliche wöchentl. Arbeitszeit"},"Sollstunden","Istzeit",{"$f":"AM$12","v":"Bezahlte u. unbezahlte Absenzen"},{"$f":"AN$12","v":"Ausfallstd. Kurzarbeit"},null,{"$f":"AP$12","v":"Name Vorname"},{"$f":"AJ$45","v":"Vertragliche wöchentl. Arbeitszeit"},{"$f":"AR$12","v":"Sollstunden"},{"$f":"AS$12","v":"Istzeit"},{"$f":"AT$12","v":"Bezahlte u. unbezahlte Absenzen"},{"$f":"AU$12","v":"Ausfallstd. Kurzarbeit"},null,null,null,null,0,0,0,0,"vorher-\ngehende","laufende",0,null,null,null,null,0,0,"Mehrstd.","Mehrstunden f.",0,0,null,0,0,null,0,0,null,"Zähler","Zähler Be-","Brutto","Netto","Std pro Tag",null,"Netto",null,"StdLohn","Hilfs1",null,null,null,"Monatslohn","Monatslohn"]
[{"$f":"A$13","v":0},{"$f":"B$11","v":"AHV-Nummer"},{"$f":"B_FF2","v":"z.B."},{"$f":"D$13","v":"00:00:00"},0,0,0,null,0,0,null,0,null,null,0,null,null,null,null,null,null,{"$f":"V$13","v":"vorher-\ngehende"},{"$f":"W$13","v":"laufende"},null,null,null,null,null,null,null,null,null,null,null,null,null,{"$f":"AK$13","v":"Dezember"},{"$f":"AL$13","v":"Dezember"},null,null,null,null,null,{"$f":"AR$13","v":"Dezember"},{"$f":"AS$13","v":"Dezember"},null,null,null,null,null,null,0,0,0,0,0,0,0,null,null,null,null,0,0,"Vormonat","Ausfallberech.",0,0,null,"100%","80%",null,"0 Tage","KSE",null,"Betroffene ","zugsberechtigte","Stunden","Stunden",null,null,"Tage",null,null,null,null,null,null,null,"ungekürzt"]
[{"$f":"A$14","v":0},{"$f":"B$14","v":0},{"$f":"B_FF3","v":"Personalnummer"},{"$f":"D$14","v":"00:00:00"},0,0,"Monate",{"$f":"K$14","v":"Prozent"},0,"Tage",{"$f":"K$14","v":"Prozent"},"Tage",{"$f":"M$14","v":"Prozent"},null,0,null,null,null,null,null,null,null,null,null,null,null,null,null,{"$f":"AC$14","v":"100%"},{"$f":"AD$14","v":"80%"},"60%","0 Tage","KSE",null,null,null,{"$f":"AK$14","v":"2017"},{"$f":"AL$14","v":"2017"},null,null,null,null,null,{"$f":"AR$14","v":"2016"},{"$f":"AS$14","v":"2016"},null,null,null,null,null,null,"KL3","KL4","KL5","KL6","KL7a","KL7b","KL7c","KL8temp","Überzeit",null,null,"KL8","KL9","KL9a","KL9b","KL10","KL11","KL11a","KL12","KL13",null,"KL14","KL15",null,"Mitarbeiter","Mitarbeiter","BrStd","NetStd",null,null,"NetTg",null,"Resultat","nichtgekürzt",null,null,null,"Resultat","LohnMonat"]
[{"$f":"übertrag","v":"Übertrag"},null,null,null,null,null,null,null,null,null,null,null,null,null,null,{"$f":"A48","v":"Übertrag"},null,null,{"$f":"S42","v":0},null,{"$f":"U42","v":0},null,null,null,{"$f":"Y42","v":0},null,null,null,{"$f":"AC42","v":0},null,null,null,{"$f":"AG42","v":0},null,{"$f":"A48","v":"Übertrag"},null,{"$f":"AK42","v":0},null,{"$f":"AM42","v":0},{"$f":"AN42","v":0},null,"Übertrag",null,{"$f":"AR42","v":0},null,{"$f":"AT42","v":0},{"$f":"AU42","v":0}]
[null,null,null,null,null,null,null,null,null,null,null,null,null,null,{"$f":"Q49","v":0},0,{"$f":"ROUND(IF(AnzMonJahr > 11,IF(Lohn > 100,MonLohn,StdLohn),0),2)","v":0},null,null,null,null,null,null,{"$f":"KL7c","v":0},{"$f":"_KL8","v":0},null,{"$f":"_KL10","v":0},{"$f":"KL11a","v":0},{"$f":"_KL12","v":0},{"$f":"_KL13","v":0},{"$f":"BT49","v":0},{"$f":"_KL14","v":0},{"$f":"_KL15","v":0},null,0,null,null,null,null,{"$f":"AK49-AL49-AM49","v":0},null,0,null,null,null,null,{"$f":"AR49-AS49-AT49","v":0},null,null,null,null,{"$f":"R49","v":0},{"$f":"S49","v":0},{"$f":"T49","v":0},{"$f":"U49","v":0},{"$f":"V49","v":0},{"$f":"W49","v":0},{"$f":"KL7a-KL7b","v":0},{"$f":"ROUND(SUM(_KL4-_KL5-_KL6-KL7c),2)","v":0},{"$f":"IF(KL8temp<0,KL8temp,0)","v":0},{"$f":"_KL3 / 5 * StammMindestausfall","v":0},{"$f":"IF(KL8temp < Mindestausfall,\"nein\",\"ja\")","v":"ja"},{"$f":"ROUND(IF(KL8temp>0,KL8temp,0),2)","v":0},{"$f":"Z49","v":0},{"$f":"IF(_KL9>_KL10,_KL9-_KL10,0)","v":0},{"$f":"IF(_KL8-_KL9>0,_KL8-_KL9,0)","v":0},{"$f":"_KL8-_KL11","v":0},{"$f":"IF(Arbeitsausfall_in_Prozent>0,IF(_KL8>0,ROUND(_KL8/Arbeitsausfall_in_Prozent*RelativerMehrausfall,2),0),0)","v":0},{"$f":"_KL11-KL9a+Überzeit","v":0},{"$f":"IF(KL8temp < Mindestausfall,IF(KL11a>0,0,0),IF(KL11a<=0,0,ROUND(_KL2*KL11a,2)))","v":0},{"$f":"IF(MindestausfallJaNein=\"ja\",ROUND(K_12*StammAnspruch_in_Prozent/100,2),0)","v":0},{"$f":"IF(MindestausfallJaNein=\"ja\",ROUND(K_12*Entsch_Liechtenstein_in_Prozent/100,2),0)","v":0},{"$f":"IF(MindestausfallJaNein=\"ja\",ROUND(IF(KL11a>0,_KL3/5*_KL2*KZ_V*Entsch_Liechtenstein_in_Prozent/100,0),2),0)","v":0},{"$f":"IF(KL13a-_KL14>=0,ROUND(SUM(KL13a-_KL14)*20,0)/20,0)","v":0},null,{"$f":"IF(K_15<>0,1,0)","v":0},{"$f":"IF(SollStd<>0,1,0)","v":0},{"$f":"StdTg*StammJahrestage","v":0},{"$f":"(StdTg*StammJahrestage)-(StdTg*(Fer+Fei))","v":0},{"$f":"StdWo/5","v":0},null,{"$f":"StammJahrestage-Fer-Fei","v":261},null,{"$f":"IF(Hilfs1 * NetStd/12 > StammVV,StammVV / (NetStd /12 ), Hilfs1)","v":{"$error":"#DIV/0!"}},{"$f":"(Lohn + SWEZuschlagBetrag) + ((Lohn + SWEZuschlagBetrag) * ((StammJahrestage /12 * AnzMonJahr) - NetTg) * 100 / NetTg)/100 + Grati/NetStd","v":{"$error":"#DIV/0!"}},null,{"$f":"Lohn * SWEZuschlag","v":0},null,{"$f":"IF(LohnMon > StammVV,StammVV/(NetStd/12),LohnMon/(NetStd/12))","v":{"$error":"#DIV/0!"}},{"$f":"((Lohn + SWEZuschlagBetrag)*AnzMonJahr/12)+Grati/12","v":0}]
[null,null,null,null,null,null,null,null,null,null,null,null,null,null,{"$f":"Q50","v":0},0,0,null,null,null,null,null,null,0,0,null,0,0,0,0,{"$f":"BT50","v":0},0,0,null,0,null,null,null,null,{"$f":"AK50-AL50-AM50","v":0},null,0,null,null,null,null,{"$f":"AR50-AS50-AT50","v":0},null,null,null,null,{"$f":"R50","v":0},{"$f":"S50","v":0},{"$f":"T50","v":0},{"$f":"U50","v":0},{"$f":"V50","v":0},{"$f":"W50","v":0},0,0,0,0,"ja",0,{"$f":"Z50","v":0},0,0,0,0,0,0,0,0,0,0,null,0,0,0,0,0,null,261,null,{"$error":"#DIV/0!"},{"$error":"#DIV/0!"},null,0,null,{"$error":"#DIV/0!"},0]
[null,null,null,null,null,null,null,null,null,null,null,null,null,null,0,0,0,null,null,null,null,null,null,0,0,null,0,0,0,0,0,0,0,null,0,null,null,null,null,0,null,0,null,null,null,null,0,null,null,null,null,0,0,0,0,0,0,0,0,0,0,"ja",0,0,0,0,0,0,0,0,0,0,0,0,null,0,0,0,0,0,null,261,null,{"$error":"#DIV/0!"},{"$error":"#DIV/0!"},null,0,null,{"$error":"#DIV/0!"},0]
[null,null,null,null,null,null,null,null,null,null,null,null,null,null,0,0,0,null,null,null,null,null,null,0,0,null,0,0,0,0,0,0,0,null,0,null,null,null,null,0,null,0,null,null,null,null,0,null,null,null,null,0,0,0,0,0,0,0,0,0,0,"ja",0,0,0,0,0,0,0,0,0,0,0,0,null,0,0,0,0,0,null,261,null,{"$error":"#DIV/0!"},{"$error":"#DIV/0!"},null,0,null,{"$error":"#DIV/0!"},0]
[null,null,null,null,null,null,null,null,null,null,null,null,null,null,0,0,0,null,null,null,null,null,null,0,0,null,0,0,0,0,0,0,0,null,0,null,null,null,null,0,null,0,null,null,null,null,0,null,null,null,null,0,0,0,0,0,0,0,0,0,0,"ja",0,0,0,0,0,0,0,0,0,0,0,0,null,0,0,0,0,0,null,261,null,{"$error":"#DIV/0!"},{"$error":"#DIV/0!"},null,0,null,{"$error":"#DIV/0!"},0]
[null,null,null,null,null,null,null,null,null,null,null,null,null,null,0,{"$f":"A54","v":0},0,null,null,null,null,null,null,0,0,null,0,0,0,0,0,0,0,null,0,null,null,null,null,0,null,0,null,null,null,null,0,null,null,null,null,0,0,0,0,0,0,0,0,0,0,"ja",0,0,0,0,0,0,0,0,0,0,0,0,null,0,0,0,0,0,null,261,null,{"$error":"#DIV/0!"},{"$error":"#DIV/0!"},null,0,null,{"$error":"#DIV/0!"},0]
[null,null,null,null,null,null,null,null,null,null,null,null,null,null,0,0,0,null,null,null,null,null,null,0,0,null,0,0,0,0,0,0,0,null,0,null,null,null,null,0,null,0,null,null,null,null,0,null,null,null,null,0,0,0,0,0,0,0,0,0,0,"ja",0,0,0,0,0,0,0,0,0,0,0,0,null,0,0,0,0,0,null,261,null,{"$error":"#DIV/0!"},{"$error":"#DIV/0!"},null,0,null,{"$error":"#DIV/0!"},0]
[null,null,null,null,null,null,null,null,null,null,null,null,null,null,0,0,0,null,null,null,null,null,null,0,0,null,0,0,0,0,0,0,0,null,0,null,null,null,null,0,null,0,null,null,null,null,0,null,null,null,null,0,0,0,0,0,0,0,0,0,0,"ja",0,0,0,0,0,0,0,0,0,0,0,0,null,0,0,0,0,0,null,261,null,{"$error":"#DIV/0!"},{"$error":"#DIV/0!"},null,0,null,{"$error":"#DIV/0!"},0]
[null,null,null,null,null,null,null,null,null,null,null,null,null,null,0,0,0,null,null,null,null,null,null,0,0,null,0,0,0,0,0,0,0,null,0,null,null,null,null,0,null,0,null,null,null,null,0,null,null,null,null,0,0,0,0,0,0,0,0,0,0,"ja",0,0,0,0,0,0,0,0,0,0,0,0,null,0,0,0,0,0,null,261,null,{"$error":"#DIV/0!"},{"$error":"#DIV/0!"},null,0,null,{"$error":"#DIV/0!"},0]
[null,null,null,null,null,null,null,null,null,null,null,null,null,null,0,0,0,null,null,null,null,null,null,0,0,null,0,0,0,0,0,0,0,null,0,null,null,null,null,0,null,0,null,null,null,null,0,null,null,null,null,0,0,0,0,0,0,0,0,0,0,"ja",0,0,0,0,0,0,0,0,0,0,0,0,null,0,0,0,0,0,null,261,null,{"$error":"#DIV/0!"},{"$error":"#DIV/0!"},null,0,null,{"$error":"#DIV/0!"},0]
[null,null,null,null,null,null,null,null,null,null,null,null,null,null,0,0,0,null,null,null,null,null,null,0,0,null,0,0,0,0,0,0,0,null,0,null,null,null,null,0,null,0,null,null,null,null,0,null,null,null,null,0,0,0,0,0,0,0,0,0,0,"ja",0,0,0,0,0,0,0,0,0,0,0,0,null,0,0,0,0,0,null,261,null,{"$error":"#DIV/0!"},{"$error":"#DIV/0!"},null,0,null,{"$error":"#DIV/0!"},0]
[null,null,null,null,null,null,null,null,null,null,null,null,null,null,0,0,0,null,null,null,null,null,null,0,0,null,0,0,0,0,0,0,0,null,0,null,null,null,null,0,null,0,null,null,null,null,0,null,null,null,null,0,0,0,0,0,0,0,0,0,0,"ja",0,0,0,0,0,0,0,0,0,0,0,0,null,0,0,0,0,0,null,261,null,{"$error":"#DIV/0!"},{"$error":"#DIV/0!"},null,0,null,{"$error":"#DIV/0!"},0]
[null,null,null,null,null,null,null,null,null,null,null,null,null,null,0,0,0,null,null,null,null,null,null,0,0,null,0,0,0,0,0,0,0,null,0,null,null,null,null,0,null,0,null,null,null,null,0,null,null,null,null,0,0,0,0,0,0,0,0,0,0,"ja",0,0,0,0,0,0,0,0,0,0,0,0,null,0,0,0,0,0,null,261,null,{"$error":"#DIV/0!"},{"$error":"#DIV/0!"},null,0,null,{"$error":"#DIV/0!"},0]
[null,null,null,null,null,null,null,null,null,null,null,null,null,null,0,0,0,null,null,null,null,null,null,0,0,null,0,0,0,0,0,0,0,null,0,null,null,null,null,0,null,0,null,null,null,null,0,null,null,null,null,0,0,0,0,0,0,0,0,0,0,"ja",0,0,0,0,0,0,0,0,0,0,0,0,null,0,0,0,0,0,null,261,null,{"$error":"#DIV/0!"},{"$error":"#DIV/0!"},null,0,null,{"$error":"#DIV/0!"},0]
[null,null,null,null,null,null,null,null,null,null,null,null,null,null,0,0,0,null,null,null,null,null,null,0,0,null,0,0,0,0,0,0,0,null,0,null,null,null,null,0,null,0,null,null,null,null,0,null,null,null,null,0,0,0,0,0,0,0,0,0,0,"ja",0,0,0,0,0,0,0,0,0,0,0,0,null,0,0,0,0,0,null,261,null,{"$error":"#DIV/0!"},{"$error":"#DIV/0!"},null,0,null,{"$error":"#DIV/0!"},0]
[null,null,null,null,null,null,null,null,null,null,null,null,null,null,0,0,0,null,null,null,null,null,null,0,0,null,0,0,0,0,0,0,0,null,0,null,null,null,null,0,null,0,null,null,null,null,0,null,null,null,null,0,0,0,0,0,0,0,0,0,0,"ja",0,0,0,0,0,0,0,0,0,0,0,0,null,0,0,0,0,0,null,261,null,{"$error":"#DIV/0!"},{"$error":"#DIV/0!"},null,0,null,{"$error":"#DIV/0!"},0]
[null,null,null,null,null,null,null,null,null,null,null,null,null,null,0,0,0,null,null,null,null,null,null,0,0,null,0,0,0,0,0,0,0,null,0,null,null,null,null,0,null,0,null,null,null,null,0,null,null,null,null,0,0,0,0,0,0,0,0,0,0,"ja",0,0,0,0,0,0,0,0,0,0,0,0,null,0,0,0,0,0,null,261,null,{"$error":"#DIV/0!"},{"$error":"#DIV/0!"},null,0,null,{"$error":"#DIV/0!"},0]
[null,null,null,null,null,null,null,null,null,null,null,null,null,null,0,{"$f":"A66","v":0},0,null,null,null,null,null,null,0,0,null,0,0,0,0,0,0,0,null,0,null,null,null,null,0,null,0,null,null,null,null,0,null,null,null,null,0,0,0,0,0,0,0,0,0,0,"ja",0,0,0,0,0,0,0,0,0,0,0,0,null,0,0,0,0,0,null,261,null,{"$error":"#DIV/0!"},{"$error":"#DIV/0!"},null,0,null,{"$error":"#DIV/0!"},0]
[null,null,null,null,null,null,null,null,null,null,null,null,null,null,0,0,0,null,null,null,null,null,null,0,0,null,0,0,0,0,0,0,0,null,0,null,null,null,null,0,null,0,null,null,null,null,0,null,null,null,null,0,0,0,0,0,0,0,0,0,0,"ja",0,0,0,0,0,0,0,0,0,0,0,0,null,0,0,0,0,0,null,261,null,{"$error":"#DIV/0!"},{"$error":"#DIV/0!"},null,0,null,{"$error":"#DIV/0!"},0]
[null,null,null,null,null,null,null,null,null,null,null,null,null,null,0,0,0,null,null,null,null,null,null,0,0,null,0,0,0,0,0,0,0,null,0,null,null,null,null,0,null,0,null,null,null,null,0,null,null,null,null,0,0,0,0,0,0,0,0,0,0,"ja",0,0,0,0,0,0,0,0,0,0,0,0,null,0,0,0,0,0,null,261,null,{"$error":"#DIV/0!"},{"$error":"#DIV/0!"},null,0,null,{"$error":"#DIV/0!"},0]
[null,null,null,null,null,null,null,null,null,null,null,null,null,null,0,0,0,null,null,null,null,null,null,0,0,null,0,0,0,0,0,0,0,null,0,null,null,null,null,0,null,0,null,null,null,null,0,null,null,null,null,0,0,0,0,0,0,0,0,0,0,"ja",0,0,0,0,0,0,0,0,0,0,0,0,null,0,0,0,0,0,null,261,null,{"$error":"#DIV/0!"},{"$error":"#DIV/0!"},null,0,null,{"$error":"#DIV/0!"},0]
[null,null,null,null,null,null,null,null,null,null,null,null,null,null,0,0,0,null,null,null,null,null,null,0,0,null,0,0,0,0,0,0,0,null,0,null,null,null,null,0,null,0,null,null,null,null,0,null,null,null,null,0,0,0,0,0,0,0,0,0,0,"ja",0,0,0,0,0,0,0,0,0,0,0,0,null,0,0,0,0,0,null,261,null,{"$error":"#DIV/0!"},{"$error":"#DIV/0!"},null,0,null,{"$error":"#DIV/0!"},0]
[null,null,null,null,null,null,null,null,null,null,null,null,null,null,0,0,0,null,null,null,null,null,null,0,0,null,0,0,0,0,0,0,0,null,0,null,null,null,null,0,null,0,null,null,null,null,0,null,null,null,null,0,0,0,0,0,0,0,0,0,0,"ja",0,0,0,0,0,0,0,0,0,0,0,0,null,0,0,0,0,0,null,261,null,{"$error":"#DIV/0!"},{"$error":"#DIV/0!"},null,0,null,{"$error":"#DIV/0!"},0]
[null,null,null,null,null,null,null,null,null,null,null,null,null,null,0,0,0,null,null,null,null,null,null,0,0,null,0,0,0,0,0,0,0,null,0,null,null,null,null,0,null,0,null,null,null,null,0,null,null,null,null,0,0,0,0,0,0,0,0,0,0,"ja",0,0,0,0,0,0,0,0,0,0,0,0,null,0,0,0,0,0,null,261,null,{"$error":"#DIV/0!"},{"$error":"#DIV/0!"},null,0,null,{"$error":"#DIV/0!"},0]
[null,null,null,null,null,null,null,null,null,null,null,null,null,null,0,{"$f":"A73","v":0},0,null,null,null,null,null,null,0,0,null,0,0,0,0,0,0,0,null,0,null,null,null,null,0,null,0,null,null,null,null,0,null,null,null,null,0,0,0,0,0,0,0,0,0,0,"ja",0,0,0,0,0,0,0,0,0,0,0,0,null,0,0,0,0,0,null,261,null,{"$error":"#DIV/0!"},{"$error":"#DIV/0!"},null,0,null,{"$error":"#DIV/0!"},0]
[null,null,null,null,null,null,null,null,null,null,null,null,null,null,0,{"$f":"A74","v":0},0,null,null,null,null,null,null,0,0,null,0,0,0,0,0,0,0,null,0,null,null,null,null,0,null,0,null,null,null,null,0,null,null,null,null,0,0,0,0,0,0,0,0,0,0,"ja",0,0,0,0,0,0,0,0,0,0,0,0,null,0,0,0,0,0,null,261,null,{"$error":"#DIV/0!"},{"$error":"#DIV/0!"},null,0,null,{"$error":"#DIV/0!"},0]
[null,null,null,null,null,null,null,null,null,null,null,null,null,null,0,{"$f":"A75","v":0},0,null,null,null,null,null,null,0,0,null,0,0,0,0,0,0,0,null,0,null,null,null,null,0,null,0,null,null,null,null,0,null,null,null,null,0,0,0,0,0,0,0,0,0,0,"ja",0,0,0,0,0,0,0,0,0,0,0,0,null,0,0,0,0,0,null,261,null,{"$error":"#DIV/0!"},{"$error":"#DIV/0!"},null,0,null,{"$error":"#DIV/0!"},0]
[null,null,null,null,null,null,null,null,null,null,null,null,null,null,0,0,0,null,null,null,null,null,null,0,0,null,0,0,0,0,0,0,0,null,0,null,null,null,null,0,null,0,null,null,null,null,0,null,null,null,null,0,0,0,0,0,0,0,0,0,0,"ja",0,0,0,0,0,0,0,0,0,0,0,0,null,0,0,0,0,0,null,261,null,{"$error":"#DIV/0!"},{"$error":"#DIV/0!"},null,0,null,{"$error":"#DIV/0!"},0]
[null,null,null,null,null,null,null,null,null,null,null,null,null,null,0,{"$f":"A77","v":0},0,null,null,null,null,null,null,0,0,null,0,0,0,0,0,0,0,null,0,null,null,null,null,0,null,0,null,null,null,null,0,null,null,null,null,0,0,0,0,0,0,0,0,0,0,"ja",0,0,0,0,0,0,0,0,0,0,0,0,null,0,0,0,0,0,null,261,null,{"$error":"#DIV/0!"},{"$error":"#DIV/0!"},null,0,null,{"$error":"#DIV/0!"},0]
[null,null,null,null,null,null,null,null,null,null,null,null,null,null,0,0,0,null,null,null,null,null,null,0,0,null,0,0,0,0,0,0,0,null,0,null,null,null,null,0,null,0,null,null,null,null,0,null,null,null,null,0,0,0,0,0,0,0,0,0,0,"ja",0,0,0,0,0,0,0,0,0,0,0,0,null,0,0,0,0,0,null,261,null,{"$error":"#DIV/0!"},{"$error":"#DIV/0!"},null,0,null,{"$error":"#DIV/0!"},0]
[null,null,null,null,null,null,null,null,null,null,null,null,null,null,0,0,0,null,null,null,null,null,null,0,0,null,0,0,0,0,0,0,0,null,0,null,null,null,null,0,null,0,null,null,null,null,0,null,null,null,null,0,0,0,0,0,0,0,0,0,0,"ja",0,0,0,0,0,0,0,0,0,0,0,0,null,0,0,0,0,0,null,261,null,{"$error":"#DIV/0!"},{"$error":"#DIV/0!"},null,0,null,{"$error":"#DIV/0!"},0]
[null,null,null,null,null,null,null,null,null,null,null,null,null,null,0,0,0,null,null,null,null,null,null,0,0,null,0,0,0,0,0,0,0,null,0,null,null,null,null,0,null,0,null,null,null,null,0,null,null,null,null,0,0,0,0,0,0,0,0,0,0,"ja",0,0,0,0,0,0,0,0,0,0,0,0,null,0,0,0,0,0,null,261,null,{"$error":"#DIV/0!"},{"$error":"#DIV/0!"},null,0,null,{"$error":"#DIV/0!"},0]
[null,null,null,null,null,null,null,null,null,null,null,null,null,null,null,{"$f":"übertrag","v":"Übertrag"},null,null,{"$f":"SUM(S48:S80)","v":0},null,{"$f":"SUM(U48:U80)","v":0},null,null,null,{"$f":"SUM(Y48:Y80)","v":0},null,null,null,{"$f":"SUM(AC48:AC80)","v":0},null,null,null,{"$f":"SUM(AG48:AG80)","v":0},null,{"$f":"P81","v":"Übertrag"},null,{"$f":"SUM(AK48:AK80)","v":0},null,{"$f":"SUM(AM48:AM80)","v":0},{"$f":"SUM(AN48:AN80)","v":0},null,{"$f":"AI81","v":"Übertrag"},null,{"$f":"SUM(AR48:AR80)","v":0},null,{"$f":"SUM(AT48:AT80)","v":0},{"$f":"SUM(AU48:AU80)","v":0}]
[null,null,null,null,{"$f":"StammMA & \" 3\"","v":"Stammdaten MitarbeiterInnen Seite 3"},null,null,null,null,null,null,null,null,null,null,null,null,null,null,null,null,null,{"$f":"Abrechnung & \" \" & KAE_SWE_TEXT & \", \" & Seite & \" 3, \" & MonatVor(StammPeriode2,0, \"MMMM YYYY\")","v":"Abrechnung Kurzarbeitsentschädigung, Seite 3, Dezember 2018"},null,null,null,null,null,null,null,null,null,null,null,{"$f":"E82","v":"Stammdaten MitarbeiterInnen Seite 3"},null,null,null,null,null,{"$f":"AO43","v":"Erhebungsbogen Saisonalität  -  Dezember 2018  -   / ABTEILUNG"},null,null,null,null,{"$f":"AT43","v":"2020-11-30"},{"$f":"AU43","v":44165.600647685184}]
[{"$f":"A$11","v":"Name Vorname"},"AHV-Nummer","Freies Feld, z.B. Personalnummer","Geburtsdatum","Grundlohn (Monatslohn oder Stundenlohn)","Durch-\nschnittliche wöchentliche Arbeitszeit",{"$f":"G$11","v":"Anzahl Monatslöhne (12, 13, 13.5 etc.) oder Prozentzuschlag gem. GAV"},null,{"$f":"I$11","v":"Gratifikation etc. mit vertraglichem Anspruch"},"Ferienentschädigung in Tagen oder in Lohnprozenten",null,{"$f":"L$11","v":"Feiertagsentschädigung in Tagen oder in Lohnprozenten"},null,{"$f":"N$11","v":"SWE-Zuschlag nach GAV in Prozent"},"Anrechen-\nbarer Stunden-\nverdienst",{"$f":"P$11","v":1},{"$f":"Q$11","v":2},{"$f":"R$11","v":3},{"$f":"S$11","v":4},5,6,null,{"$f":"W$11","v":"7 (nur für Gleitzeit)"},null,{"$f":"Y$11","v":8},{"$f":"Z$11","v":9},{"$f":"AA$11","v":10},{"$f":"AB$11","v":11},12,13,14,15,16,null,{"$f":"AI$11","v":1},{"$f":"AJ$11","v":2},3,4,5,6,null,{"$f":"AI$44","v":1},{"$f":"AJ$44","v":2},{"$f":"AK$44","v":3},{"$f":"AL$44","v":4},{"$f":"AM$44","v":5},{"$f":"AN$44","v":6},null,null,null,null,{"$f":"R84","v":"Vertragliche wöchentl. Arbeitszeit"},"Sollstunden Abrechnungs-\nperiode","Istzeit (tatsächl. Anwesenh.)","Bezahlte u. unbezahlte Absenzen","Saldo Ende Periode",0,"Diffe-\nrenz",null,null,null,null,{"$f":"Y84","v":"Ausfallstd. Kurzarbeit"},"Saldo Mehrstd. Vormonat","Anrechenbare","Abzuziehende",{"$f":"AA84","v":"Saisonale Ausfall- stunden"},"Anrech. Ausfall- stunden",null,{"$f":"AC84","v":"Verdienst- ausfall"},"KAE gemäss Art. 42 ALVG",null,{"$f":"AF84","v":"Abzug Karenzzeit"},"Beantragte Vergütung"]
[{"$f":"A$11","v":"Name Vorname"},{"$f":"B$12","v":0},{"$f":"B_FF1","v":"Freies Feld"},{"$f":"D$11","v":"Geburtsdatum"},{"$f":"E$11","v":"Grundlohn (Monatslohn oder Stundenlohn)"},{"$f":"F$11","v":"Durch-\nschnittliche wöchentliche Arbeitszeit"},{"$f":"G$12","v":0},null,{"$f":"I$11","v":"Gratifikation etc. mit vertraglichem Anspruch"},0,null,{"$f":"#REF!","v":{"$error":"#REF!"}},null,null,0,{"$f":"P$12","v":"Name Vorname"},{"$f":"Q$12","v":"Anrechen-\nbarer Stunden-\nverdienst"},{"$f":"R$12","v":"Vertragliche wöchentl. Arbeitszeit"},{"$f":"S$12","v":"Sollstunden Abrechnungs-\nperiode"},"Istzeit (tatsächl. Anwesenh.)","Bezahlte u. unbezahlte Absenzen",{"$f":"V$12","v":"Saldo Ende Periode"},null,{"$f":"X$12","v":"Diffe-\nrenz"},"Ausfallstd. Kurzarbeit","Saldo Mehrstd. Vormonat","Saisonale Ausfall- stunden","Anrech. Ausfall- stunden","Verdienst- ausfall",{"$f":"AD$12","v":"KAE gemäss Art. 42 ALVG"},"Anteil ALV gm. Art. 42 ALVG","Abzug Karenzzeit",{"$f":"AG$12","v":"Beantragte Vergütung"},null,{"$f":"AI$12","v":"Name Vorname"},{"$f":"R$45","v":"Vertragliche wöchentl. Arbeitszeit"},"Sollstunden","Istzeit",{"$f":"AM$12","v":"Bezahlte u. unbezahlte Absenzen"},{"$f":"AN$12","v":"Ausfallstd. Kurzarbeit"},null,{"$f":"AP$12","v":"Name Vorname"},{"$f":"AJ$45","v":"Vertragliche wöchentl. Arbeitszeit"},{"$f":"AR$12","v":"Sollstunden"},{"$f":"AS$12","v":"Istzeit"},{"$f":"AT$12","v":"Bezahlte u. unbezahlte Absenzen"},{"$f":"AU$12","v":"Ausfallstd. Kurzarbeit"},null,null,null,null,0,0,0,0,"vorher-\ngehende","laufende",0,null,null,null,null,0,0,"Mehrstd.","Mehrstunden f.",0,0,null,0,0,null,0,0,null,"Zähler","Zähler Be-","Brutto","Netto","Std pro Tag",null,"Netto",null,"StdLohn","Hilfs1",null,null,null,"Monatslohn","Monatslohn"]
[{"$f":"A$13","v":0},{"$f":"B$11","v":"AHV-Nummer"},{"$f":"B_FF2","v":"z.B."},{"$f":"D$13","v":"00:00:00"},0,0,0,null,0,0,null,0,null,null,0,null,null,null,null,null,null,{"$f":"V$13","v":"vorher-\ngehende"},{"$f":"W$13","v":"laufende"},null,null,null,null,null,null,null,null,null,null,null,null,null,{"$f":"AK$13","v":"Dezember"},{"$f":"AL$13","v":"Dezember"},null,null,null,null,null,{"$f":"AR$13","v":"Dezember"},{"$f":"AS$13","v":"Dezember"},null,null,null,null,null,null,0,0,0,0,0,0,0,null,null,null,null,0,0,"Vormonat","Ausfallberech.",0,0,null,"100%","80%",null,"0 Tage","KSE",null,"Betroffene ","zugsberechtigte","Stunden","Stunden",null,null,"Tage",null,null,null,null,null,null,null,"ungekürzt"]
[{"$f":"A$14","v":0},{"$f":"B$14","v":0},{"$f":"B_FF3","v":"Personalnummer"},{"$f":"D$14","v":"00:00:00"},0,0,"Monate",{"$f":"K$14","v":"Prozent"},0,"Tage",{"$f":"K$14","v":"Prozent"},"Tage",{"$f":"M$14","v":"Prozent"},null,0,null,null,null,null,null,null,null,null,null,null,null,null,null,{"$f":"AC$14","v":"100%"},{"$f":"AD$14","v":"80%"},"60%","0 Tage","KSE",null,null,null,{"$f":"AK$14","v":"2017"},{"$f":"AL$14","v":"2017"},null,null,null,null,null,{"$f":"AR$14","v":"2016"},{"$f":"AS$14","v":"2016"},null,null,null,null,null,null,"KL3","KL4","KL5","KL6","KL7a","KL7b","KL7c","KL8temp","Überzeit",null,null,"KL8","KL9","KL9a","KL9b","KL10","KL11","KL11a","KL12","KL13",null,"KL14","KL15",null,"Mitarbeiter","Mitarbeiter","BrStd","NetStd",null,null,"NetTg",null,"Resultat","nichtgekürzt",null,null,null,"Resultat","LohnMonat"]
[{"$f":"übertrag","v":"Übertrag"},null,null,null,null,null,null,null,null,null,null,null,null,null,null,{"$f":"übertrag","v":"Übertrag"},null,null,{"$f":"S81","v":0},null,{"$f":"U81","v":0},null,null,null,{"$f":"Y81","v":0},null,null,null,{"$f":"AC81","v":0},null,null,null,{"$f":"AG81","v":0},null,{"$f":"A87","v":"Übertrag"},null,{"$f":"AK81","v":0},null,{"$f":"AM81","v":0},{"$f":"AN81","v":0},null,{"$f":"AI87","v":"Übertrag"},null,{"$f":"AR81","v":0},null,{"$f":"AT81","v":0},{"$f":"AU81","v":0}]
[null,null,null,null,null,null,null,null,null,null,null,null,null,null,{"$f":"Q88","v":0},{"$f":"A88","v":0},{"$f":"ROUND(IF(AnzMonJahr > 11,IF(Lohn > 100,MonLohn,StdLohn),0),2)","v":0},null,null,null,null,null,null,{"$f":"KL7c","v":0},{"$f":"_KL8","v":0},null,{"$f":"_KL10","v":0},{"$f":"KL11a","v":0},{"$f":"_KL12","v":0},{"$f":"_KL13","v":0},{"$f":"BT88","v":0},{"$f":"_KL14","v":0},{"$f":"_KL15","v":0},null,0,null,null,null,null,{"$f":"AK88-AL88-AM88","v":0},null,{"$f":"AI88","v":0},null,null,null,null,{"$f":"AR88-AS88-AT88","v":0},null,null,null,null,{"$f":"R88","v":0},{"$f":"S88","v":0},{"$f":"T88","v":0},{"$f":"U88","v":0},{"$f":"V88","v":0},{"$f":"W88","v":0},{"$f":"KL7a-KL7b","v":0},{"$f":"ROUND(SUM(_KL4-_KL5-_KL6-KL7c),2)","v":0},{"$f":"IF(KL8temp<0,KL8temp,0)","v":0},{"$f":"_KL3 / 5 * StammMindestausfall","v":0},{"$f":"IF(KL8temp < Mindestausfall,\"nein\",\"ja\")","v":"ja"},{"$f":"ROUND(IF(KL8temp>0,KL8temp,0),2)","v":0},{"$f":"Z88","v":0},{"$f":"IF(_KL9>_KL10,_KL9-_KL10,0)","v":0},{"$f":"IF(_KL8-_KL9>0,_KL8-_KL9,0)","v":0},{"$f":"_KL8-_KL11","v":0},{"$f":"IF(Arbeitsausfall_in_Prozent>0,IF(_KL8>0,ROUND(_KL8/Arbeitsausfall_in_Prozent*RelativerMehrausfall,2),0),0)","v":0},{"$f":"_KL11-KL9a+Überzeit","v":0},{"$f":"IF(KL8temp < Mindestausfall,IF(KL11a>0,0,0),IF(KL11a<=0,0,ROUND(_KL2*KL11a,2)))","v":0},{"$f":"IF(MindestausfallJaNein=\"ja\",ROUND(K_12*StammAnspruch_in_Prozent/100,2),0)","v":0},{"$f":"IF(MindestausfallJaNein=\"ja\",ROUND(K_12*Entsch_Liechtenstein_in_Prozent/100,2),0)","v":0},{"$f":"IF(MindestausfallJaNein=\"ja\",ROUND(IF(KL11a>0,_KL3/5*_KL2*KZ_V*Entsch_Liechtenstein_in_Prozent/100,0),2),0)","v":0},{"$f":"IF(KL13a-_KL14>=0,ROUND(SUM(KL13a-_KL14)*20,0)/20,0)","v":0},null,{"$f":"IF(K_15<>0,1,0)","v":0},{"$f":"IF(SollStd<>0,1,0)","v":0},{"$f":"StdTg*StammJahrestage","v":0},{"$f":"(StdTg*StammJahrestage)-(StdTg*(Fer+Fei))","v":0},{"$f":"StdWo/5","v":0},null,{"$f":"StammJahrestage-Fer-Fei","v":261},null,{"$f":"IF(Hilfs1 * NetStd/12 > StammVV,StammVV / (NetStd /12 ), Hilfs1)","v":{"$error":"#DIV/0!"}},{"$f":"(Lohn + SWEZuschlagBetrag) + ((Lohn + SWEZuschlagBetrag) * ((StammJahrestage /12 * AnzMonJahr) - NetTg) * 100 / NetTg)/100 + Grati/NetStd","v":{"$error":"#DIV/0!"}},null,{"$f":"Lohn * SWEZuschlag","v":0},null,{"$f":"IF(LohnMon > StammVV,StammVV/(NetStd/12),LohnMon/(NetStd/12))","v":{"$error":"#DIV/0!"}},{"$f":"((Lohn + SWEZuschlagBetrag)*AnzMonJahr/12)+Grati/12","v":0}]
[null,null,null,null,null,null,null,null,null,null,null,null,null,null,{"$f":"Q89","v":0},0,0,null,null,null,null,null,null,0,0,null,0,0,0,0,{"$f":"BT89","v":0},0,0,null,0,null,null,null,null,{"$f":"AK89-AL89-AM89","v":0},null,{"$f":"AI89","v":0},null,null,null,null,{"$f":"AR89-AS89-AT89","v":0},null,null,null,null,{"$f":"R89","v":0},{"$f":"S89","v":0},{"$f":"T89","v":0},{"$f":"U89","v":0},{"$f":"V89","v":0},{"$f":"W89","v":0},0,0,0,0,"ja",0,{"$f":"Z89","v":0},0,0,0,0,0,0,0,0,0,0,null,0,0,0,0,0,null,261,null,{"$error":"#DIV/0!"},{"$error":"#DIV/0!"},null,0,null,{"$error":"#DIV/0!"},0]
[null,null,null,null,null,null,null,null,null,null,null,null,null,null,0,0,0,null,null,null,null,null,null,0,0,null,0,0,0,0,0,0,0,null,0,null,null,null,null,0,null,0,null,null,null,null,0,null,null,null,null,0,0,0,0,0,0,0,0,0,0,"ja",0,0,0,0,0,0,0,0,0,0,0,0,null,0,0,0,0,0,null,261,null,{"$error":"#DIV/0!"},{"$error":"#DIV/0!"},null,0,null,{"$error":"#DIV/0!"},0]
[null,null,null,null,null,null,null,null,null,null,null,null,null,null,0,0,0,null,null,null,null,null,null,0,0,null,0,0,0,0,0,0,0,null,0,null,null,null,null,0,null,0,null,null,null,null,0,null,null,null,null,0,0,0,0,0,0,0,0,0,0,"ja",0,0,0,0,0,0,0,0,0,0,0,0,null,0,0,0,0,0,null,261,null,{"$error":"#DIV/0!"},{"$error":"#DIV/0!"},null,0,null,{"$error":"#DIV/0!"},0]
[null,null,null,null,null,null,null,null,null,null,null,null,null,null,0,0,0,null,null,null,null,null,null,0,0,null,0,0,0,0,0,0,0,null,0,null,null,null,null,0,null,0,null,null,null,null,0,null,null,null,null,0,0,0,0,0,0,0,0,0,0,"ja",0,0,0,0,0,0,0,0,0,0,0,0,null,0,0,0,0,0,null,261,null,{"$error":"#DIV/0!"},{"$error":"#DIV/0!"},null,0,null,{"$error":"#DIV/0!"},0]
[null,null,null,null,null,null,null,null,null,null,null,null,null,null,0,0,0,null,null,null,null,null,null,0,0,null,0,0,0,0,0,0,0,null,0,null,null,null,null,0,null,0,null,null,null,null,0,null,null,null,null,0,0,0,0,0,0,0,0,0,0,"ja",0,0,0,0,0,0,0,0,0,0,0,0,null,0,0,0,0,0,null,261,null,{"$error":"#DIV/0!"},{"$error":"#DIV/0!"},null,0,null,{"$error":"#DIV/0!"},0]
[null,null,null,null,null,null,null,null,null,null,null,null,null,null,0,0,0,null,null,null,null,null,null,0,0,null,0,0,0,0,0,0,0,null,0,null,null,null,null,0,null,0,null,null,null,null,0,null,null,null,null,0,0,0,0,0,0,0,0,0,0,"ja",0,0,0,0,0,0,0,0,0,0,0,0,null,0,0,0,0,0,null,261,null,{"$error":"#DIV/0!"},{"$error":"#DIV/0!"},null,0,null,{"$error":"#DIV/0!"},0]
[null,null,null,null,null,null,null,null,null,null,null,null,null,null,0,0,0,null,null,null,null,null,null,0,0,null,0,0,0,0,0,0,0,null,0,null,null,null,null,0,null,0,null,null,null,null,0,null,null,null,null,0,0,0,0,0,0,0,0,0,0,"ja",0,0,0,0,0,0,0,0,0,0,0,0,null,0,0,0,0,0,null,261,null,{"$error":"#DIV/0!"},{"$error":"#DIV/0!"},null,0,null,{"$error":"#DIV/0!"},0]
[null,null,null,null,null,null,null,null,null,null,null,null,null,null,0,0,0,null,null,null,null,null,null,0,0,null,0,0,0,0,0,0,0,null,0,null,null,null,null,0,null,0,null,null,null,null,0,null,null,null,null,0,0,0,0,0,0,0,0,0,0,"ja",0,0,0,0,0,0,0,0,0,0,0,0,null,0,0,0,0,0,null,261,null,{"$error":"#DIV/0!"},{"$error":"#DIV/0!"},null,0,null,{"$error":"#DIV/0!"},0]
[null,null,null,null,null,null,null,null,null,null,null,null,null,null,0,0,0,null,null,null,null,null,null,0,0,null,0,0,0,0,0,0,0,null,0,null,null,null,null,0,null,0,null,null,null,null,0,null,null,null,null,0,0,0,0,0,0,0,0,0,0,"ja",0,0,0,0,0,0,0,0,0,0,0,0,null,0,0,0,0,0,null,261,null,{"$error":"#DIV/0!"},{"$error":"#DIV/0!"},null,0,null,{"$error":"#DIV/0!"},0]
[null,null,null,null,null,null,null,null,null,null,null,null,null,null,0,0,0,null,null,null,null,null,null,0,0,null,0,0,0,0,0,0,0,null,0,null,null,null,null,0,null,0,null,null,null,null,0,null,null,null,null,0,0,0,0,0,0,0,0,0,0,"ja",0,0,0,0,0,0,0,0,0,0,0,0,null,0,0,0,0,0,null,261,null,{"$error":"#DIV/0!"},{"$error":"#DIV/0!"},null,0,null,{"$error":"#DIV/0!"},0]
[null,null,null,null,null,null,null,null,null,null,null,null,null,null,0,0,0,null,null,null,null,null,null,0,0,null,0,0,0,0,0,0,0,null,0,null,null,null,null,0,null,0,null,null,null,null,0,null,null,null,null,0,0,0,0,0,0,0,0,0,0,"ja",0,0,0,0,0,0,0,0,0,0,0,0,null,0,0,0,0,0,null,261,null,{"$error":"#DIV/0!"},{"$error":"#DIV/0!"},null,0,null,{"$error":"#DIV/0!"},0]
[null,null,null,null,null,null,null,null,null,null,null,null,null,null,0,0,0,null,null,null,null,null,null,0,0,null,0,0,0,0,0,0,0,null,0,null,null,null,null,0,null,0,null,null,null,null,0,null,null,null,null,0,0,0,0,0,0,0,0,0,0,"ja",0,0,0,0,0,0,0,0,0,0,0,0,null,0,0,0,0,0,null,261,null,{"$error":"#DIV/0!"},{"$error":"#DIV/0!"},null,0,null,{"$error":"#DIV/0!"},0]
[null,null,null,null,null,null,null,null,null,null,null,null,null,null,0,0,0,null,null,null,null,null,null,0,0,null,0,0,0,0,0,0,0,null,0,null,null,null,null,0,null,0,null,null,null,null,0,null,null,null,null,0,0,0,0,0,0,0,0,0,0,"ja",0,0,0,0,0,0,0,0,0,0,0,0,null,0,0,0,0,0,null,261,null,{"$error":"#DIV/0!"},{"$error":"#DIV/0!"},null,0,null,{"$error":"#DIV/0!"},0]
[null,null,null,null,null,null,null,null,null,null,null,null,null,null,0,0,0,null,null,null,null,null,null,0,0,null,0,0,0,0,0,0,0,null,0,null,null,null,null,0,null,0,null,null,null,null,0,null,null,null,null,0,0,0,0,0,0,0,0,0,0,"ja",0,0,0,0,0,0,0,0,0,0,0,0,null,0,0,0,0,0,null,261,null,{"$error":"#DIV/0!"},{"$error":"#DIV/0!"},null,0,null,{"$error":"#DIV/0!"},0]
[null,null,null,null,null,null,null,null,null,null,null,null,null,null,0,0,0,null,null,null,null,null,null,0,0,null,0,0,0,0,0,0,0,null,0,null,null,null,null,0,null,0,null,null,null,null,0,null,null,null,null,0,0,0,0,0,0,0,0,0,0,"ja",0,0,0,0,0,0,0,0,0,0,0,0,null,0,0,0,0,0,null,261,null,{"$error":"#DIV/0!"},{"$error":"#DIV/0!"},null,0,null,{"$error":"#DIV/0!"},0]
[null,null,null,null,null,null,null,null,null,null,null,null,null,null,0,0,0,null,null,null,null,null,null,0,0,null,0,0,0,0,0,0,0,null,0,null,null,null,null,0,null,0,null,null,null,null,0,null,null,null,null,0,0,0,0,0,0,0,0,0,0,"ja",0,0,0,0,0,0,0,0,0,0,0,0,null,0,0,0,0,0,null,261,null,{"$error":"#DIV/0!"},{"$error":"#DIV/0!"},null,0,null,{"$error":"#DIV/0!"},0]
[null,null,null,null,null,null,null,null,null,null,null,null,null,null,0,0,0,null,null,null,null,null,null,0,0,null,0,0,0,0,0,0,0,null,0,null,null,null,null,0,null,0,null,null,null,null,0,null,null,null,null,0,0,0,0,0,0,0,0,0,0,"ja",0,0,0,0,0,0,0,0,0,0,0,0,null,0,0,0,0,0,null,261,null,{"$error":"#DIV/0!"},{"$error":"#DIV/0!"},null,0,null,{"$error":"#DIV/0!"},0]
[null,null,null,null,null,null,null,null,null,null,null,null,null,null,0,0,0,null,null,null,null,null,null,0,0,null,0,0,0,0,0,0,0,null,0,null,null,null,null,0,null,0,null,null,null,null,0,null,null,null,null,0,0,0,0,0,0,0,0,0,0,"ja",0,0,0,0,0,0,0,0,0,0,0,0,null,0,0,0,0,0,null,261,null,{"$error":"#DIV/0!"},{"$error":"#DIV/0!"},null,0,null,{"$error":"#DIV/0!"},0]
[null,null,null,null,null,null,null,null,null,null,null,null,null,null,0,0,0,null,null,null,null,null,null,0,0,null,0,0,0,0,0,0,0,null,0,null,null,null,null,0,null,0,null,null,null,null,0,null,null,null,null,0,0,0,0,0,0,0,0,0,0,"ja",0,0,0,0,0,0,0,0,0,0,0,0,null,0,0,0,0,0,null,261,null,{"$error":"#DIV/0!"},{"$error":"#DIV/0!"},null,0,null,{"$error":"#DIV/0!"},0]
[null,null,null,null,null,null,null,null,null,null,null,null,null,null,0,0,0,null,null,null,null,null,null,0,0,null,0,0,0,0,0,0,0,null,0,null,null,null,null,0,null,0,null,null,null,null,0,null,null,null,null,0,0,0,0,0,0,0,0,0,0,"ja",0,0,0,0,0,0,0,0,0,0,0,0,null,0,0,0,0,0,null,261,null,{"$error":"#DIV/0!"},{"$error":"#DIV/0!"},null,0,null,{"$error":"#DIV/0!"},0]
[null,null,null,null,null,null,null,null,null,null,null,null,null,null,0,0,0,null,null,null,null,null,null,0,0,null,0,0,0,0,0,0,0,null,0,null,null,null,null,0,null,0,null,null,null,null,0,null,null,null,null,0,0,0,0,0,0,0,0,0,0,"ja",0,0,0,0,0,0,0,0,0,0,0,0,null,0,0,0,0,0,null,261,null,{"$error":"#DIV/0!"},{"$error":"#DIV/0!"},null,0,null,{"$error":"#DIV/0!"},0]
[null,null,null,null,null,null,null,null,null,null,null,null,null,null,0,0,0,null,null,null,null,null,null,0,0,null,0,0,0,0,0,0,0,null,0,null,null,null,null,0,null,0,null,null,null,null,0,null,null,null,null,0,0,0,0,0,0,0,0,0,0,"ja",0,0,0,0,0,0,0,0,0,0,0,0,null,0,0,0,0,0,null,261,null,{"$error":"#DIV/0!"},{"$error":"#DIV/0!"},null,0,null,{"$error":"#DIV/0!"},0]
[null,null,null,null,null,null,null,null,null,null,null,null,null,null,0,0,0,null,null,null,null,null,null,0,0,null,0,0,0,0,0,0,0,null,0,null,null,null,null,0,null,0,null,null,null,null,0,null,null,null,null,0,0,0,0,0,0,0,0,0,0,"ja",0,0,0,0,0,0,0,0,0,0,0,0,null,0,0,0,0,0,null,261,null,{"$error":"#DIV/0!"},{"$error":"#DIV/0!"},null,0,null,{"$error":"#DIV/0!"},0]
[null,null,null,null,null,null,null,null,null,null,null,null,null,null,0,0,0,null,null,null,null,null,null,0,0,null,0,0,0,0,0,0,0,null,0,null,null,null,null,0,null,0,null,null,null,null,0,null,null,null,null,0,0,0,0,0,0,0,0,0,0,"ja",0,0,0,0,0,0,0,0,0,0,0,0,null,0,0,0,0,0,null,261,null,{"$error":"#DIV/0!"},{"$error":"#DIV/0!"},null,0,null,{"$error":"#DIV/0!"},0]
[null,null,null,null,null,null,null,null,null,null,null,null,null,null,0,0,0,null,null,null,null,null,null,0,0,null,0,0,0,0,0,0,0,null,0,null,null,null,null,0,null,0,null,null,null,null,0,null,null,null,null,0,0,0,0,0,0,0,0,0,0,"ja",0,0,0,0,0,0,0,0,0,0,0,0,null,0,0,0,0,0,null,261,null,{"$error":"#DIV/0!"},{"$error":"#DIV/0!"},null,0,null,{"$error":"#DIV/0!"},0]
[null,null,null,null,null,null,null,null,null,null,null,null,null,null,0,0,0,null,null,null,null,null,null,0,0,null,0,0,0,0,0,0,0,null,0,null,null,null,null,0,null,0,null,null,null,null,0,null,null,null,null,0,0,0,0,0,0,0,0,0,0,"ja",0,0,0,0,0,0,0,0,0,0,0,0,null,0,0,0,0,0,null,261,null,{"$error":"#DIV/0!"},{"$error":"#DIV/0!"},null,0,null,{"$error":"#DIV/0!"},0]
[null,null,null,null,null,null,null,null,null,null,null,null,null,null,0,0,0,null,null,null,null,null,null,0,0,null,0,0,0,0,0,0,0,null,0,null,null,null,null,0,null,0,null,null,null,null,0,null,null,null,null,0,0,0,0,0,0,0,0,0,0,"ja",0,0,0,0,0,0,0,0,0,0,0,0,null,0,0,0,0,0,null,261,null,{"$error":"#DIV/0!"},{"$error":"#DIV/0!"},null,0,null,{"$error":"#DIV/0!"},0]
[null,null,null,null,null,null,null,null,null,null,null,null,null,null,0,0,0,null,null,null,null,null,null,0,0,null,0,0,0,0,0,0,0,null,0,null,null,null,null,0,null,0,null,null,null,null,0,null,null,null,null,0,0,0,0,0,0,0,0,0,0,"ja",0,0,0,0,0,0,0,0,0,0,0,0,null,0,0,0,0,0,null,261,null,{"$error":"#DIV/0!"},{"$error":"#DIV/0!"},null,0,null,{"$error":"#DIV/0!"},0]
[null,null,null,null,null,null,null,null,null,null,null,null,null,null,0,0,0,null,null,null,null,null,null,0,0,null,0,0,0,0,0,0,0,null,0,null,null,null,null,0,null,0,null,null,null,null,0,null,null,null,null,0,0,0,0,0,0,0,0,0,0,"ja",0,0,0,0,0,0,0,0,0,0,0,0,null,0,0,0,0,0,null,261,null,{"$error":"#DIV/0!"},{"$error":"#DIV/0!"},null,0,null,{"$error":"#DIV/0!"},0]
[null,null,null,null,null,null,null,null,null,null,null,null,null,null,0,0,0,null,null,null,null,null,null,0,0,null,0,0,0,0,0,0,0,null,0,null,null,null,null,0,null,0,null,null,null,null,0,null,null,null,null,0,0,0,0,0,0,0,0,0,0,"ja",0,0,0,0,0,0,0,0,0,0,0,0,null,0,0,0,0,0,null,261,null,{"$error":"#DIV/0!"},{"$error":"#DIV/0!"},null,0,null,{"$error":"#DIV/0!"},0]
[null,null,null,null,null,null,null,null,null,null,null,null,null,null,0,0,0,null,null,null,null,null,null,0,0,null,0,0,0,0,0,0,0,null,0,null,null,null,null,0,null,0,null,null,null,null,0,null,null,null,null,0,0,0,0,0,0,0,0,0,0,"ja",0,0,0,0,0,0,0,0,0,0,0,0,null,0,0,0,0,0,null,261,null,{"$error":"#DIV/0!"},{"$error":"#DIV/0!"},null,0,null,{"$error":"#DIV/0!"},0]
[null,null,null,null,null,null,null,null,null,null,null,null,null,null,null,{"$f":"übertrag","v":"Übertrag"},null,null,{"$f":"SUM(S87:S119)","v":0},null,{"$f":"SUM(U87:U119)","v":0},null,null,null,{"$f":"SUM(Y87:Y119)","v":0},null,null,null,{"$f":"SUM(AC87:AC119)","v":0},null,null,null,{"$f":"SUM(AG87:AG119)","v":0},null,{"$f":"P120","v":"Übertrag"},null,{"$f":"SUM(AK87:AK119)","v":0},null,{"$f":"SUM(AM87:AM119)","v":0},{"$f":"SUM(AN87:AN119)","v":0},null,{"$f":"AI120","v":"Übertrag"},null,{"$f":"SUM(AR87:AR119)","v":0},null,{"$f":"SUM(AT87:AT119)","v":0},{"$f":"SUM(AU87:AU119)","v":0}]
[null,null,null,null,{"$f":"StammMA & \" 4\"","v":"Stammdaten MitarbeiterInnen Seite 4"},null,null,null,null,null,null,null,null,null,null,null,null,null,null,null,null,null,{"$f":"Abrechnung & \" \" & KAE_SWE_TEXT  & \", \" & Seite & \" 4, \" & MonatVor(StammPeriode2,0, \"MMMM YYYY\")","v":"Abrechnung Kurzarbeitsentschädigung, Seite 4, Dezember 2018"},null,null,null,null,null,null,null,null,null,null,null,{"$f":"E121","v":"Stammdaten MitarbeiterInnen Seite 4"},null,null,null,null,null,{"$f":"AO82","v":"Erhebungsbogen Saisonalität  -  Dezember 2018  -   / ABTEILUNG"},null,null,null,null,{"$f":"AT82","v":"2020-11-30"},{"$f":"AU82","v":44165.600647685184}]
[{"$f":"A$11","v":"Name Vorname"},"AHV-Nummer","Freies Feld, z.B. Personalnummer","Geburtsdatum","Grundlohn (Monatslohn oder Stundenlohn)","Durch-\nschnittliche wöchentliche Arbeitszeit",{"$f":"G$11","v":"Anzahl Monatslöhne (12, 13, 13.5 etc.) oder Prozentzuschlag gem. GAV"},null,{"$f":"I$11","v":"Gratifikation etc. mit vertraglichem Anspruch"},"Ferienentschädigung in Tagen oder in Lohnprozenten",null,{"$f":"L$11","v":"Feiertagsentschädigung in Tagen oder in Lohnprozenten"},null,{"$f":"N$11","v":"SWE-Zuschlag nach GAV in Prozent"},"Anrechen-\nbarer Stunden-\nverdienst",{"$f":"P$11","v":1},{"$f":"Q$11","v":2},{"$f":"R$11","v":3},{"$f":"S$11","v":4},5,6,null,{"$f":"W$11","v":"7 (nur für Gleitzeit)"},null,{"$f":"Y$11","v":8},{"$f":"Z$11","v":9},{"$f":"AA$11","v":10},{"$f":"AB$11","v":11},12,13,14,15,16,null,{"$f":"AI$11","v":1},{"$f":"AJ$11","v":2},3,4,5,6,null,{"$f":"AI$44","v":1},{"$f":"AJ$44","v":2},{"$f":"AK$44","v":3},{"$f":"AL$44","v":4},{"$f":"AM$44","v":5},{"$f":"AN$44","v":6},null,null,null,null,{"$f":"R123","v":"Vertragliche wöchentl. Arbeitszeit"},"Sollstunden Abrechnungs-\nperiode","Istzeit (tatsächl. Anwesenh.)","Bezahlte u. unbezahlte Absenzen","Saldo Ende Periode",0,"Diffe-\nrenz",null,null,null,null,{"$f":"Y123","v":"Ausfallstd. Kurzarbeit"},"Saldo Mehrstd. Vormonat","Anrechenbare","Abzuziehende",{"$f":"AA123","v":"Saisonale Ausfall- stunden"},"Anrech. Ausfall- stunden",null,{"$f":"AC123","v":"Verdienst- ausfall"},"KAE gemäss Art. 42 ALVG",null,{"$f":"AF123","v":"Abzug Karenzzeit"},"Beantragte Vergütung"]
[{"$f":"A$11","v":"Name Vorname"},{"$f":"B$12","v":0},{"$f":"B_FF1","v":"Freies Feld"},{"$f":"D$11","v":"Geburtsdatum"},{"$f":"E$11","v":"Grundlohn (Monatslohn oder Stundenlohn)"},{"$f":"F$11","v":"Durch-\nschnittliche wöchentliche Arbeitszeit"},{"$f":"G$12","v":0},null,{"$f":"I$11","v":"Gratifikation etc. mit vertraglichem Anspruch"},0,null,{"$f":"#REF!","v":{"$error":"#REF!"}},null,null,0,{"$f":"P$12","v":"Name Vorname"},{"$f":"Q$12","v":"Anrechen-\nbarer Stunden-\nverdienst"},{"$f":"R$12","v":"Vertragliche wöchentl. Arbeitszeit"},{"$f":"S$12","v":"Sollstunden Abrechnungs-\nperiode"},"Istzeit (tatsächl. Anwesenh.)","Bezahlte u. unbezahlte Absenzen",{"$f":"V$12","v":"Saldo Ende Periode"},null,{"$f":"X$12","v":"Diffe-\nrenz"},"Ausfallstd. Kurzarbeit","Saldo Mehrstd. Vormonat","Saisonale Ausfall- stunden","Anrech. Ausfall- stunden","Verdienst- ausfall",{"$f":"AD$12","v":"KAE gemäss Art. 42 ALVG"},"Anteil ALV gm. Art. 42 ALVG","Abzug Karenzzeit",{"$f":"AG$12","v":"Beantragte Vergütung"},null,{"$f":"AI$12","v":"Name Vorname"},{"$f":"R$45","v":"Vertragliche wöchentl. Arbeitszeit"},"Sollstunden","Istzeit",{"$f":"AM$12","v":"Bezahlte u. unbezahlte Absenzen"},{"$f":"AN$12","v":"Ausfallstd. Kurzarbeit"},null,{"$f":"AP$12","v":"Name Vorname"},{"$f":"AJ$45","v":"Vertragliche wöchentl. Arbeitszeit"},{"$f":"AR$12","v":"Sollstunden"},{"$f":"AS$12","v":"Istzeit"},{"$f":"AT$12","v":"Bezahlte u. unbezahlte Absenzen"},{"$f":"AU$12","v":"Ausfallstd. Kurzarbeit"},null,null,null,null,0,0,0,0,"vorher-\ngehende","laufende",0,null,null,null,null,0,0,"Mehrstd.","Mehrstunden f.",0,0,null,0,0,null,0,0,null,"Zähler","Zähler Be-","Brutto","Netto","Std pro Tag",null,"Netto",null,"StdLohn","Hilfs1",null,null,null,"Monatslohn","Monatslohn"]
[{"$f":"A$13","v":0},{"$f":"B$11","v":"AHV-Nummer"},{"$f":"B_FF2","v":"z.B."},{"$f":"D$13","v":"00:00:00"},0,0,0,null,0,0,null,0,null,null,0,null,null,null,null,null,null,{"$f":"V$13","v":"vorher-\ngehende"},{"$f":"W$13","v":"laufende"},null,null,null,null,null,null,null,null,null,null,null,null,null,{"$f":"AK$13","v":"Dezember"},{"$f":"AL$13","v":"Dezember"},null,null,null,null,null,{"$f":"AR$13","v":"Dezember"},{"$f":"AS$13","v":"Dezember"},null,null,null,null,null,null,0,0,0,0,0,0,0,null,null,null,null,0,0,"Vormonat","Ausfallberech.",0,0,null,"100%","80%",null,"0 Tage","KSE",null,"Betroffene ","zugsberechtigte","Stunden","Stunden",null,null,"Tage",null,null,null,null,null,null,null,"ungekürzt"]
[{"$f":"A$14","v":0},{"$f":"B$14","v":0},{"$f":"B_FF3","v":"Personalnummer"},{"$f":"D$14","v":"00:00:00"},0,0,"Monate",{"$f":"K$14","v":"Prozent"},0,"Tage",{"$f":"K$14","v":"Prozent"},"Tage",{"$f":"M$14","v":"Prozent"},null,0,null,null,null,null,null,null,null,null,null,null,null,null,null,{"$f":"AC$14","v":"100%"},{"$f":"AD$14","v":"80%"},"60%","0 Tage","KSE",null,null,null,{"$f":"AK$14","v":"2017"},{"$f":"AL$14","v":"2017"},null,null,null,null,null,{"$f":"AR$14","v":"2016"},{"$f":"AS$14","v":"2016"},null,null,null,null,null,null,"KL3","KL4","KL5","KL6","KL7a","KL7b","KL7c","KL8temp","Überzeit",null,null,"KL8","KL9","KL9a","KL9b","KL10","KL11","KL11a","KL12","KL13",null,"KL14","KL15",null,"Mitarbeiter","Mitarbeiter","BrStd","NetStd",null,null,"NetTg",null,"Resultat","nichtgekürzt",null,null,null,"Resultat","LohnMonat"]
[{"$f":"übertrag","v":"Übertrag"},null,null,null,null,null,null,null,null,null,null,null,null,null,null,{"$f":"übertrag","v":"Übertrag"},null,null,{"$f":"S120","v":0},null,{"$f":"U120","v":0},null,null,null,{"$f":"Y120","v":0},null,null,null,{"$f":"AC120","v":0},null,null,null,{"$f":"AG120","v":0},null,{"$f":"A126","v":"Übertrag"},null,{"$f":"AK120","v":0},null,{"$f":"AM120","v":0},{"$f":"AN120","v":0},null,{"$f":"AI126","v":"Übertrag"},null,{"$f":"AR120","v":0},null,{"$f":"AT120","v":0},{"$f":"AU120","v":0}]
[null,null,null,null,null,null,null,null,null,null,null,null,null,null,{"$f":"Q127","v":0},{"$f":"A127","v":0},{"$f":"ROUND(IF(AnzMonJahr > 11,IF(Lohn > 100,MonLohn,StdLohn),0),2)","v":0},null,null,null,null,null,null,{"$f":"KL7c","v":0},{"$f":"_KL8","v":0},null,{"$f":"_KL10","v":0},{"$f":"KL11a","v":0},{"$f":"_KL12","v":0},{"$f":"_KL13","v":0},{"$f":"BT126","v":0},{"$f":"_KL14","v":0},{"$f":"_KL15","v":0},null,0,null,null,null,null,{"$f":"AK127-AL127-AM127","v":0},null,{"$f":"AI127","v":0},null,null,null,null,{"$f":"AR127-AS127-AT127","v":0},null,null,null,null,{"$f":"R127","v":0},{"$f":"S127","v":0},{"$f":"T127","v":0},{"$f":"U127","v":0},{"$f":"V127","v":0},{"$f":"W127","v":0},{"$f":"KL7a-KL7b","v":0},{"$f":"ROUND(SUM(_KL4-_KL5-_KL6-KL7c),2)","v":0},{"$f":"IF(KL8temp<0,KL8temp,0)","v":0},{"$f":"_KL3 / 5 * StammMindestausfall","v":0},{"$f":"IF(KL8temp < Mindestausfall,\"nein\",\"ja\")","v":"ja"},{"$f":"ROUND(IF(KL8temp>0,KL8temp,0),2)","v":0},{"$f":"Z127","v":0},{"$f":"IF(_KL9>_KL10,_KL9-_KL10,0)","v":0},{"$f":"IF(_KL8-_KL9>0,_KL8-_KL9,0)","v":0},{"$f":"_KL8-_KL11","v":0},{"$f":"IF(Arbeitsausfall_in_Prozent>0,IF(_KL8>0,ROUND(_KL8/Arbeitsausfall_in_Prozent*RelativerMehrausfall,2),0),0)","v":0},{"$f":"_KL11-KL9a+Überzeit","v":0},{"$f":"IF(KL8temp < Mindestausfall,IF(KL11a>0,0,0),IF(KL11a<=0,0,ROUND(_KL2*KL11a,2)))","v":0},{"$f":"IF(MindestausfallJaNein=\"ja\",ROUND(K_12*StammAnspruch_in_Prozent/100,2),0)","v":0},{"$f":"IF(MindestausfallJaNein=\"ja\",ROUND(K_12*Entsch_Liechtenstein_in_Prozent/100,2),0)","v":0},{"$f":"IF(MindestausfallJaNein=\"ja\",ROUND(IF(KL11a>0,_KL3/5*_KL2*KZ_V*Entsch_Liechtenstein_in_Prozent/100,0),2),0)","v":0},{"$f":"IF(KL13a-_KL14>=0,ROUND(SUM(KL13a-_KL14)*20,0)/20,0)","v":0},null,{"$f":"IF(K_15<>0,1,0)","v":0},{"$f":"IF(SollStd<>0,1,0)","v":0},{"$f":"StdTg*StammJahrestage","v":0},{"$f":"(StdTg*StammJahrestage)-(StdTg*(Fer+Fei))","v":0},{"$f":"StdWo/5","v":0},null,{"$f":"StammJahrestage-Fer-Fei","v":261},null,{"$f":"IF(Hilfs1 * NetStd/12 > StammVV,StammVV / (NetStd /12 ), Hilfs1)","v":{"$error":"#DIV/0!"}},{"$f":"(Lohn + SWEZuschlagBetrag) + ((Lohn + SWEZuschlagBetrag) * ((StammJahrestage /12 * AnzMonJahr) - NetTg) * 100 / NetTg)/100 + Grati/NetStd","v":{"$error":"#DIV/0!"}},null,{"$f":"Lohn * SWEZuschlag","v":0},null,{"$f":"IF(LohnMon > StammVV,StammVV/(NetStd/12),LohnMon/(NetStd/12))","v":{"$error":"#DIV/0!"}},{"$f":"((Lohn + SWEZuschlagBetrag)*AnzMonJahr/12)+Grati/12","v":0}]
[null,null,null,null,null,null,null,null,null,null,null,null,null,null,{"$f":"Q128","v":0},0,0,null,null,null,null,null,null,0,0,null,0,0,0,0,{"$f":"BT127","v":0},0,0,null,0,null,null,null,null,{"$f":"AK128-AL128-AM128","v":0},null,{"$f":"AI128","v":0},null,null,null,null,{"$f":"AR128-AS128-AT128","v":0},null,null,null,null,0,0,0,0,0,0,0,0,0,0,"ja",0,0,0,0,0,0,0,0,0,0,0,0,null,0,0,0,0,0,null,261,null,{"$error":"#DIV/0!"},{"$error":"#DIV/0!"},null,0,null,{"$error":"#DIV/0!"},0]
[null,null,null,null,null,null,null,null,null,null,null,null,null,null,0,0,0,null,null,null,null,null,null,0,0,null,0,0,0,0,0,0,0,null,0,null,null,null,null,0,null,0,null,null,null,null,0,null,null,null,null,0,0,0,0,0,0,0,0,0,0,"ja",0,0,0,0,0,0,0,0,0,0,0,0,null,0,0,0,0,0,null,261,null,{"$error":"#DIV/0!"},{"$error":"#DIV/0!"},null,0,null,{"$error":"#DIV/0!"},0]
[null,null,null,null,null,null,null,null,null,null,null,null,null,null,0,0,0,null,null,null,null,null,null,0,0,null,0,0,0,0,0,0,0,null,0,null,null,null,null,0,null,0,null,null,null,null,0,null,null,null,null,0,0,0,0,0,0,0,0,0,0,"ja",0,0,0,0,0,0,0,0,0,0,0,0,null,0,0,0,0,0,null,261,null,{"$error":"#DIV/0!"},{"$error":"#DIV/0!"},null,0,null,{"$error":"#DIV/0!"},0]
[null,null,null,null,null,null,null,null,null,null,null,null,null,null,0,0,0,null,null,null,null,null,null,0,0,null,0,0,0,0,0,0,0,null,0,null,null,null,null,0,null,0,null,null,null,null,0,null,null,null,null,0,0,0,0,0,0,0,0,0,0,"ja",0,0,0,0,0,0,0,0,0,0,0,0,null,0,0,0,0,0,null,261,null,{"$error":"#DIV/0!"},{"$error":"#DIV/0!"},null,0,null,{"$error":"#DIV/0!"},0]
[null,null,null,null,null,null,null,null,null,null,null,null,null,null,0,0,0,null,null,null,null,null,null,0,0,null,0,0,0,0,0,0,0,null,0,null,null,null,null,0,null,0,null,null,null,null,0,null,null,null,null,0,0,0,0,0,0,0,0,0,0,"ja",0,0,0,0,0,0,0,0,0,0,0,0,null,0,0,0,0,0,null,261,null,{"$error":"#DIV/0!"},{"$error":"#DIV/0!"},null,0,null,{"$error":"#DIV/0!"},0]
[null,null,null,null,null,null,null,null,null,null,null,null,null,null,0,0,0,null,null,null,null,null,null,0,0,null,0,0,0,0,0,0,0,null,0,null,null,null,null,0,null,0,null,null,null,null,0,null,null,null,null,0,0,0,0,0,0,0,0,0,0,"ja",0,0,0,0,0,0,0,0,0,0,0,0,null,0,0,0,0,0,null,261,null,{"$error":"#DIV/0!"},{"$error":"#DIV/0!"},null,0,null,{"$error":"#DIV/0!"},0]
[null,null,null,null,null,null,null,null,null,null,null,null,null,null,0,0,0,null,null,null,null,null,null,0,0,null,0,0,0,0,0,0,0,null,0,null,null,null,null,0,null,0,null,null,null,null,0,null,null,null,null,0,0,0,0,0,0,0,0,0,0,"ja",0,0,0,0,0,0,0,0,0,0,0,0,null,0,0,0,0,0,null,261,null,{"$error":"#DIV/0!"},{"$error":"#DIV/0!"},null,0,null,{"$error":"#DIV/0!"},0]
[null,null,null,null,null,null,null,null,null,null,null,null,null,null,0,0,0,null,null,null,null,null,null,0,0,null,0,0,0,0,0,0,0,null,0,null,null,null,null,0,null,0,null,null,null,null,0,null,null,null,null,0,0,0,0,0,0,0,0,0,0,"ja",0,0,0,0,0,0,0,0,0,0,0,0,null,0,0,0,0,0,null,261,null,{"$error":"#DIV/0!"},{"$error":"#DIV/0!"},null,0,null,{"$error":"#DIV/0!"},0]
[null,null,null,null,null,null,null,null,null,null,null,null,null,null,0,0,0,null,null,null,null,null,null,0,0,null,0,0,0,0,0,0,0,null,0,null,null,null,null,0,null,0,null,null,null,null,0,null,null,null,null,0,0,0,0,0,0,0,0,0,0,"ja",0,0,0,0,0,0,0,0,0,0,0,0,null,0,0,0,0,0,null,261,null,{"$error":"#DIV/0!"},{"$error":"#DIV/0!"},null,0,null,{"$error":"#DIV/0!"},0]
[null,null,null,null,null,null,null,null,null,null,null,null,null,null,0,0,0,null,null,null,null,null,null,0,0,null,0,0,0,0,0,0,0,null,0,null,null,null,null,0,null,0,null,null,null,null,0,null,null,null,null,0,0,0,0,0,0,0,0,0,0,"ja",0,0,0,0,0,0,0,0,0,0,0,0,null,0,0,0,0,0,null,261,null,{"$error":"#DIV/0!"},{"$error":"#DIV/0!"},null,0,null,{"$error":"#DIV/0!"},0]
[null,null,null,null,null,null,null,null,null,null,null,null,null,null,0,0,0,null,null,null,null,null,null,0,0,null,0,0,0,0,0,0,0,null,0,null,null,null,null,0,null,0,null,null,null,null,0,null,null,null,null,0,0,0,0,0,0,0,0,0,0,"ja",0,0,0,0,0,0,0,0,0,0,0,0,null,0,0,0,0,0,null,261,null,{"$error":"#DIV/0!"},{"$error":"#DIV/0!"},null,0,null,{"$error":"#DIV/0!"},0]
[null,null,null,null,null,null,null,null,null,null,null,null,null,null,0,0,0,null,null,null,null,null,null,0,0,null,0,0,0,0,0,0,0,null,0,null,null,null,null,0,null,0,null,null,null,null,0,null,null,null,null,0,0,0,0,0,0,0,0,0,0,"ja",0,0,0,0,0,0,0,0,0,0,0,0,null,0,0,0,0,0,null,261,null,{"$error":"#DIV/0!"},{"$error":"#DIV/0!"},null,0,null,{"$error":"#DIV/0!"},0]
[null,null,null,null,null,null,null,null,null,null,null,null,null,null,0,0,0,null,null,null,null,null,null,0,0,null,0,0,0,0,0,0,0,null,0,null,null,null,null,0,null,0,null,null,null,null,0,null,null,null,null,0,0,0,0,0,0,0,0,0,0,"ja",0,0,0,0,0,0,0,0,0,0,0,0,null,0,0,0,0,0,null,261,null,{"$error":"#DIV/0!"},{"$error":"#DIV/0!"},null,0,null,{"$error":"#DIV/0!"},0]
[null,null,null,null,null,null,null,null,null,null,null,null,null,null,0,0,0,null,null,null,null,null,null,0,0,null,0,0,0,0,0,0,0,null,0,null,null,null,null,0,null,0,null,null,null,null,0,null,null,null,null,0,0,0,0,0,0,0,0,0,0,"ja",0,0,0,0,0,0,0,0,0,0,0,0,null,0,0,0,0,0,null,261,null,{"$error":"#DIV/0!"},{"$error":"#DIV/0!"},null,0,null,{"$error":"#DIV/0!"},0]
[null,null,null,null,null,null,null,null,null,null,null,null,null,null,0,0,0,null,null,null,null,null,null,0,0,null,0,0,0,0,0,0,0,null,0,null,null,null,null,0,null,0,null,null,null,null,0,null,null,null,null,0,0,0,0,0,0,0,0,0,0,"ja",0,0,0,0,0,0,0,0,0,0,0,0,null,0,0,0,0,0,null,261,null,{"$error":"#DIV/0!"},{"$error":"#DIV/0!"},null,0,null,{"$error":"#DIV/0!"},0]
[null,null,null,null,null,null,null,null,null,null,null,null,null,null,0,0,0,null,null,null,null,null,null,0,0,null,0,0,0,0,0,0,0,null,0,null,null,null,null,0,null,0,null,null,null,null,0,null,null,null,null,0,0,0,0,0,0,0,0,0,0,"ja",0,0,0,0,0,0,0,0,0,0,0,0,null,0,0,0,0,0,null,261,null,{"$error":"#DIV/0!"},{"$error":"#DIV/0!"},null,0,null,{"$error":"#DIV/0!"},0]
[null,null,null,null,null,null,null,null,null,null,null,null,null,null,0,0,0,null,null,null,null,null,null,0,0,null,0,0,0,0,0,0,0,null,0,null,null,null,null,0,null,0,null,null,null,null,0,null,null,null,null,0,0,0,0,0,0,0,0,0,0,"ja",0,0,0,0,0,0,0,0,0,0,0,0,null,0,0,0,0,0,null,261,null,{"$error":"#DIV/0!"},{"$error":"#DIV/0!"},null,0,null,{"$error":"#DIV/0!"},0]
[null,null,null,null,null,null,null,null,null,null,null,null,null,null,0,0,0,null,null,null,null,null,null,0,0,null,0,0,0,0,0,0,0,null,0,null,null,null,null,0,null,0,null,null,null,null,0,null,null,null,null,0,0,0,0,0,0,0,0,0,0,"ja",0,0,0,0,0,0,0,0,0,0,0,0,null,0,0,0,0,0,null,261,null,{"$error":"#DIV/0!"},{"$error":"#DIV/0!"},null,0,null,{"$error":"#DIV/0!"},0]
[null,null,null,null,null,null,null,null,null,null,null,null,null,null,0,0,0,null,null,null,null,null,null,0,0,null,0,0,0,0,0,0,0,null,0,null,null,null,null,0,null,0,null,null,null,null,0,null,null,null,null,0,0,0,0,0,0,0,0,0,0,"ja",0,0,0,0,0,0,0,0,0,0,0,0,null,0,0,0,0,0,null,261,null,{"$error":"#DIV/0!"},{"$error":"#DIV/0!"},null,0,null,{"$error":"#DIV/0!"},0]
[null,null,null,null,null,null,null,null,null,null,null,null,null,null,0,0,0,null,null,null,null,null,null,0,0,null,0,0,0,0,0,0,0,null,0,null,null,null,null,0,null,0,null,null,null,null,0,null,null,null,null,0,0,0,0,0,0,0,0,0,0,"ja",0,0,0,0,0,0,0,0,0,0,0,0,null,0,0,0,0,0,null,261,null,{"$error":"#DIV/0!"},{"$error":"#DIV/0!"},null,0,null,{"$error":"#DIV/0!"},0]
[null,null,null,null,null,null,null,null,null,null,null,null,null,null,0,0,0,null,null,null,null,null,null,0,0,null,0,0,0,0,0,0,0,null,0,null,null,null,null,0,null,0,null,null,null,null,0,null,null,null,null,0,0,0,0,0,0,0,0,0,0,"ja",0,0,0,0,0,0,0,0,0,0,0,0,null,0,0,0,0,0,null,261,null,{"$error":"#DIV/0!"},{"$error":"#DIV/0!"},null,0,null,{"$error":"#DIV/0!"},0]
[null,null,null,null,null,null,null,null,null,null,null,null,null,null,0,0,0,null,null,null,null,null,null,0,0,null,0,0,0,0,0,0,0,null,0,null,null,null,null,0,null,0,null,null,null,null,0,null,null,null,null,0,0,0,0,0,0,0,0,0,0,"ja",0,0,0,0,0,0,0,0,0,0,0,0,null,0,0,0,0,0,null,261,null,{"$error":"#DIV/0!"},{"$error":"#DIV/0!"},null,0,null,{"$error":"#DIV/0!"},0]
[null,null,null,null,null,null,null,null,null,null,null,null,null,null,0,0,0,null,null,null,null,null,null,0,0,null,0,0,0,0,0,0,0,null,0,null,null,null,null,0,null,0,null,null,null,null,0,null,null,null,null,0,0,0,0,0,0,0,0,0,0,"ja",0,0,0,0,0,0,0,0,0,0,0,0,null,0,0,0,0,0,null,261,null,{"$error":"#DIV/0!"},{"$error":"#DIV/0!"},null,0,null,{"$error":"#DIV/0!"},0]
[null,null,null,null,null,null,null,null,null,null,null,null,null,null,0,0,0,null,null,null,null,null,null,0,0,null,0,0,0,0,0,0,0,null,0,null,null,null,null,0,null,0,null,null,null,null,0,null,null,null,null,0,0,0,0,0,0,0,0,0,0,"ja",0,0,0,0,0,0,0,0,0,0,0,0,null,0,0,0,0,0,null,261,null,{"$error":"#DIV/0!"},{"$error":"#DIV/0!"},null,0,null,{"$error":"#DIV/0!"},0]
[null,null,null,null,null,null,null,null,null,null,null,null,null,null,0,0,0,null,null,null,null,null,null,0,0,null,0,0,0,0,0,0,0,null,0,null,null,null,null,0,null,0,null,null,null,null,0,null,null,null,null,0,0,0,0,0,0,0,0,0,0,"ja",0,0,0,0,0,0,0,0,0,0,0,0,null,0,0,0,0,0,null,261,null,{"$error":"#DIV/0!"},{"$error":"#DIV/0!"},null,0,null,{"$error":"#DIV/0!"},0]
[null,null,null,null,null,null,null,null,null,null,null,null,null,null,0,0,0,null,null,null,null,null,null,0,0,null,0,0,0,0,0,0,0,null,0,null,null,null,null,0,null,0,null,null,null,null,0,null,null,null,null,0,0,0,0,0,0,0,0,0,0,"ja",0,0,0,0,0,0,0,0,0,0,0,0,null,0,0,0,0,0,null,261,null,{"$error":"#DIV/0!"},{"$error":"#DIV/0!"},null,0,null,{"$error":"#DIV/0!"},0]
[null,null,null,null,null,null,null,null,null,null,null,null,null,null,0,0,0,null,null,null,null,null,null,0,0,null,0,0,0,0,0,0,0,null,0,null,null,null,null,0,null,0,null,null,null,null,0,null,null,null,null,0,0,0,0,0,0,0,0,0,0,"ja",0,0,0,0,0,0,0,0,0,0,0,0,null,0,0,0,0,0,null,261,null,{"$error":"#DIV/0!"},{"$error":"#DIV/0!"},null,0,null,{"$error":"#DIV/0!"},0]
[null,null,null,null,null,null,null,null,null,null,null,null,null,null,0,0,0,null,null,null,null,null,null,0,0,null,0,0,0,0,0,0,0,null,0,null,null,null,null,0,null,0,null,null,null,null,0,null,null,null,null,0,0,0,0,0,0,0,0,0,0,"ja",0,0,0,0,0,0,0,0,0,0,0,0,null,0,0,0,0,0,null,261,null,{"$error":"#DIV/0!"},{"$error":"#DIV/0!"},null,0,null,{"$error":"#DIV/0!"},0]
[null,null,null,null,null,null,null,null,null,null,null,null,null,null,0,0,0,null,null,null,null,null,null,0,0,null,0,0,0,0,0,0,0,null,0,null,null,null,null,0,null,0,null,null,null,null,0,null,null,null,null,0,0,0,0,0,0,0,0,0,0,"ja",0,0,0,0,0,0,0,0,0,0,0,0,null,0,0,0,0,0,null,261,null,{"$error":"#DIV/0!"},{"$error":"#DIV/0!"},null,0,null,{"$error":"#DIV/0!"},0]
[null,null,null,null,null,null,null,null,null,null,null,null,null,null,0,0,0,null,null,null,null,null,null,0,0,null,0,0,0,0,0,0,0,null,0,null,null,null,null,0,null,0,null,null,null,null,0,null,null,null,null,0,0,0,0,0,0,0,0,0,0,"ja",0,0,0,0,0,0,0,0,0,0,0,0,null,0,0,0,0,0,null,261,null,{"$error":"#DIV/0!"},{"$error":"#DIV/0!"},null,0,null,{"$error":"#DIV/0!"},0]
[null,null,null,null,null,null,null,null,null,null,null,null,null,null,0,0,0,null,null,null,null,null,null,0,0,null,0,0,0,0,0,0,0,null,0,null,null,null,null,0,null,0,null,null,null,null,0,null,null,null,null,0,0,0,0,0,0,0,0,0,0,"ja",0,0,0,0,0,0,0,0,0,0,0,0,null,0,0,0,0,0,null,261,null,{"$error":"#DIV/0!"},{"$error":"#DIV/0!"},null,0,null,{"$error":"#DIV/0!"},0]
[null,null,null,null,null,null,null,null,null,null,null,null,null,null,null,{"$f":"übertrag","v":"Übertrag"},null,null,{"$f":"SUM(S126:S158)","v":0},null,{"$f":"SUM(U126:U158)","v":0},null,null,null,{"$f":"SUM(Y126:Y158)","v":0},null,null,null,{"$f":"SUM(AC126:AC158)","v":0},null,null,null,{"$f":"SUM(AG126:AG158)","v":0},null,{"$f":"P159","v":"Übertrag"},null,{"$f":"SUM(AK126:AK158)","v":0},null,{"$f":"SUM(AM126:AM158)","v":0},{"$f":"SUM(AN126:AN158)","v":0},null,{"$f":"AI159","v":"Übertrag"},null,{"$f":"SUM(AR126:AR158)","v":0},null,{"$f":"SUM(AT126:AT158)","v":0},{"$f":"SUM(AU126:AU158)","v":0}]
[null,null,null,null,{"$f":"StammMA & \" 5\"","v":"Stammdaten MitarbeiterInnen Seite 5"},null,null,null,null,null,null,null,null,null,null,null,null,null,null,null,null,null,{"$f":"Abrechnung & \" \" & KAE_SWE_TEXT  & \", \" & Seite & \" 5, \" & MonatVor(StammPeriode2,0, \"MMMM YYYY\")","v":"Abrechnung Kurzarbeitsentschädigung, Seite 5, Dezember 2018"},null,null,null,null,null,null,null,null,null,null,null,{"$f":"E160","v":"Stammdaten MitarbeiterInnen Seite 5"},null,null,null,null,null,{"$f":"AO121","v":"Erhebungsbogen Saisonalität  -  Dezember 2018  -   / ABTEILUNG"},null,null,null,null,{"$f":"AT121","v":"2020-11-30"},{"$f":"AU121","v":44165.600647685184}]
[{"$f":"A$11","v":"Name Vorname"},"AHV-Nummer","Freies Feld, z.B. Personalnummer","Geburtsdatum","Grundlohn (Monatslohn oder Stundenlohn)","Durch-\nschnittliche wöchentliche Arbeitszeit",{"$f":"G$11","v":"Anzahl Monatslöhne (12, 13, 13.5 etc.) oder Prozentzuschlag gem. GAV"},null,{"$f":"I$11","v":"Gratifikation etc. mit vertraglichem Anspruch"},"Ferienentschädigung in Tagen oder in Lohnprozenten",null,{"$f":"L$11","v":"Feiertagsentschädigung in Tagen oder in Lohnprozenten"},null,{"$f":"N$11","v":"SWE-Zuschlag nach GAV in Prozent"},"Anrechen-\nbarer Stunden-\nverdienst",{"$f":"P$11","v":1},{"$f":"Q$11","v":2},{"$f":"R$11","v":3},{"$f":"S$11","v":4},5,6,null,{"$f":"W$11","v":"7 (nur für Gleitzeit)"},null,{"$f":"Y$11","v":8},{"$f":"Z$11","v":9},{"$f":"AA$11","v":10},{"$f":"AB$11","v":11},12,13,14,15,16,null,{"$f":"AI$11","v":1},{"$f":"AJ$11","v":2},3,4,5,6,null,{"$f":"AI$44","v":1},{"$f":"AJ$44","v":2},{"$f":"AK$44","v":3},{"$f":"AL$44","v":4},{"$f":"AM$44","v":5},{"$f":"AN$44","v":6},null,null,null,null,{"$f":"R162","v":"Vertragliche wöchentl. Arbeitszeit"},"Sollstunden Abrechnungs-\nperiode","Istzeit (tatsächl. Anwesenh.)","Bezahlte u. unbezahlte Absenzen","Saldo Ende Periode",0,"Diffe-\nrenz",null,null,null,null,{"$f":"Y162","v":"Ausfallstd. Kurzarbeit"},"Saldo Mehrstd. Vormonat","Anrechenbare","Abzuziehende",{"$f":"AA162","v":"Saisonale Ausfall- stunden"},"Anrech. Ausfall- stunden",null,{"$f":"AC162","v":"Verdienst- ausfall"},"KAE gemäss Art. 42 ALVG",null,{"$f":"AF162","v":"Abzug Karenzzeit"},"Beantragte Vergütung"]
[{"$f":"A$11","v":"Name Vorname"},{"$f":"B$12","v":0},{"$f":"B_FF1","v":"Freies Feld"},{"$f":"D$11","v":"Geburtsdatum"},{"$f":"E$11","v":"Grundlohn (Monatslohn oder Stundenlohn)"},{"$f":"F$11","v":"Durch-\nschnittliche wöchentliche Arbeitszeit"},{"$f":"G$12","v":0},null,{"$f":"I$11","v":"Gratifikation etc. mit vertraglichem Anspruch"},0,null,{"$f":"#REF!","v":{"$error":"#REF!"}},null,null,0,{"$f":"P$12","v":"Name Vorname"},{"$f":"Q$12","v":"Anrechen-\nbarer Stunden-\nverdienst"},{"$f":"R$12","v":"Vertragliche wöchentl. Arbeitszeit"},{"$f":"S$12","v":"Sollstunden Abrechnungs-\nperiode"},"Istzeit (tatsächl. Anwesenh.)","Bezahlte u. unbezahlte Absenzen",{"$f":"V$12","v":"Saldo Ende Periode"},null,{"$f":"X$12","v":"Diffe-\nrenz"},"Ausfallstd. Kurzarbeit","Saldo Mehrstd. Vormonat","Saisonale Ausfall- stunden","Anrech. Ausfall- stunden","Verdienst- ausfall",{"$f":"AD$12","v":"KAE gemäss Art. 42 ALVG"},"Anteil ALV gm. Art. 42 ALVG","Abzug Karenzzeit",{"$f":"AG$12","v":"Beantragte Vergütung"},null,{"$f":"AI$12","v":"Name Vorname"},{"$f":"R$45","v":"Vertragliche wöchentl. Arbeitszeit"},"Sollstunden","Istzeit",{"$f":"AM$12","v":"Bezahlte u. unbezahlte Absenzen"},{"$f":"AN$12","v":"Ausfallstd. Kurzarbeit"},null,{"$f":"AP$12","v":"Name Vorname"},{"$f":"AJ$45","v":"Vertragliche wöchentl. Arbeitszeit"},{"$f":"AR$12","v":"Sollstunden"},{"$f":"AS$12","v":"Istzeit"},{"$f":"AT$12","v":"Bezahlte u. unbezahlte Absenzen"},{"$f":"AU$12","v":"Ausfallstd. Kurzarbeit"},null,null,null,null,0,0,0,0,"vorher-\ngehende","laufende",0,null,null,null,null,0,0,"Mehrstd.","Mehrstunden f.",0,0,null,0,0,null,0,0,null,"Zähler","Zähler Be-","Brutto","Netto","Std pro Tag",null,"Netto",null,"StdLohn","Hilfs1",null,null,null,"Monatslohn","Monatslohn"]
[{"$f":"A$13","v":0},{"$f":"B$11","v":"AHV-Nummer"},{"$f":"B_FF2","v":"z.B."},{"$f":"D$13","v":"00:00:00"},0,0,0,null,0,0,null,0,null,null,0,null,null,null,null,null,null,{"$f":"V$13","v":"vorher-\ngehende"},{"$f":"W$13","v":"laufende"},null,null,null,null,null,null,null,null,null,null,null,null,null,{"$f":"AK$13","v":"Dezember"},{"$f":"AL$13","v":"Dezember"},null,null,null,null,null,{"$f":"AR$13","v":"Dezember"},{"$f":"AS$13","v":"Dezember"},null,null,null,null,null,null,0,0,0,0,0,0,0,null,null,null,null,0,0,"Vormonat","Ausfallberech.",0,0,null,"100%","80%",null,"0 Tage","KSE",null,"Betroffene ","zugsberechtigte","Stunden","Stunden",null,null,"Tage",null,null,null,null,null,null,null,"ungekürzt"]
[{"$f":"A$14","v":0},{"$f":"B$14","v":0},{"$f":"B_FF3","v":"Personalnummer"},{"$f":"D$14","v":"00:00:00"},0,0,"Monate",{"$f":"K$14","v":"Prozent"},0,"Tage",{"$f":"K$14","v":"Prozent"},"Tage",{"$f":"M$14","v":"Prozent"},null,0,null,null,null,null,null,null,null,null,null,null,null,null,null,{"$f":"AC$14","v":"100%"},{"$f":"AD$14","v":"80%"},"60%","0 Tage","KSE",null,null,null,{"$f":"AK$14","v":"2017"},{"$f":"AL$14","v":"2017"},null,null,null,null,null,{"$f":"AR$14","v":"2016"},{"$f":"AS$14","v":"2016"},null,null,null,null,null,null,"KL3","KL4","KL5","KL6","KL7a","KL7b","KL7c","KL8temp","Überzeit",null,null,"KL8","KL9","KL9a","KL9b","KL10","KL11","KL11a","KL12","KL13",null,"KL14","KL15",null,"Mitarbeiter","Mitarbeiter","BrStd","NetStd",null,null,"NetTg",null,"Resultat","nichtgekürzt",null,null,null,"Resultat","LohnMonat"]
[{"$f":"übertrag","v":"Übertrag"},null,null,null,null,null,null,null,null,null,null,null,null,null,null,{"$f":"A165","v":"Übertrag"},null,null,{"$f":"S159","v":0},null,{"$f":"U159","v":0},null,null,null,{"$f":"Y159","v":0},null,null,null,{"$f":"AC159","v":0},null,null,null,{"$f":"AG159","v":0},null,{"$f":"A165","v":"Übertrag"},null,{"$f":"AK159","v":0},null,{"$f":"AM159","v":0},{"$f":"AN159","v":0},null,{"$f":"AI165","v":"Übertrag"},null,{"$f":"AR159","v":0},null,{"$f":"AT159","v":0},{"$f":"AU159","v":0}]
[null,null,null,null,null,null,null,null,null,null,null,null,null,null,{"$f":"Q166","v":0},0,{"$f":"ROUND(IF(AnzMonJahr > 11,IF(Lohn > 100,MonLohn,StdLohn),0),2)","v":0},null,null,null,null,null,null,{"$f":"KL7c","v":0},{"$f":"_KL8","v":0},null,{"$f":"_KL10","v":0},{"$f":"KL11a","v":0},{"$f":"_KL12","v":0},{"$f":"_KL13","v":0},{"$f":"BT165","v":0},{"$f":"_KL14","v":0},{"$f":"_KL15","v":0},null,0,null,null,null,null,{"$f":"AK166-AL166-AM166","v":0},null,{"$f":"AI166","v":0},null,null,null,null,{"$f":"AR166-AS166-AT166","v":0},null,null,null,null,{"$f":"R166","v":0},{"$f":"S166","v":0},{"$f":"T166","v":0},{"$f":"U166","v":0},{"$f":"V166","v":0},{"$f":"W166","v":0},{"$f":"KL7a-KL7b","v":0},{"$f":"ROUND(SUM(_KL4-_KL5-_KL6-KL7c),2)","v":0},{"$f":"IF(KL8temp<0,KL8temp,0)","v":0},{"$f":"_KL3 / 5 * StammMindestausfall","v":0},{"$f":"IF(KL8temp < Mindestausfall,\"nein\",\"ja\")","v":"ja"},{"$f":"ROUND(IF(KL8temp>0,KL8temp,0),2)","v":0},{"$f":"Z166","v":0},{"$f":"IF(_KL9>_KL10,_KL9-_KL10,0)","v":0},{"$f":"IF(_KL8-_KL9>0,_KL8-_KL9,0)","v":0},{"$f":"_KL8-_KL11","v":0},{"$f":"IF(Arbeitsausfall_in_Prozent>0,IF(_KL8>0,ROUND(_KL8/Arbeitsausfall_in_Prozent*RelativerMehrausfall,2),0),0)","v":0},{"$f":"_KL11-KL9a+Überzeit","v":0},{"$f":"IF(KL8temp < Mindestausfall,IF(KL11a>0,0,0),IF(KL11a<=0,0,ROUND(_KL2*KL11a,2)))","v":0},{"$f":"IF(MindestausfallJaNein=\"ja\",ROUND(K_12*StammAnspruch_in_Prozent/100,2),0)","v":0},{"$f":"IF(MindestausfallJaNein=\"ja\",ROUND(K_12*Entsch_Liechtenstein_in_Prozent/100,2),0)","v":0},{"$f":"IF(MindestausfallJaNein=\"ja\",ROUND(IF(KL11a>0,_KL3/5*_KL2*KZ_V*Entsch_Liechtenstein_in_Prozent/100,0),2),0)","v":0},{"$f":"IF(KL13a-_KL14>=0,ROUND(SUM(KL13a-_KL14)*20,0)/20,0)","v":0},null,{"$f":"IF(K_15<>0,1,0)","v":0},{"$f":"IF(SollStd<>0,1,0)","v":0},{"$f":"StdTg*StammJahrestage","v":0},{"$f":"(StdTg*StammJahrestage)-(StdTg*(Fer+Fei))","v":0},{"$f":"StdWo/5","v":0},null,{"$f":"StammJahrestage-Fer-Fei","v":261},null,{"$f":"IF(Hilfs1 * NetStd/12 > StammVV,StammVV / (NetStd /12 ), Hilfs1)","v":{"$error":"#DIV/0!"}},{"$f":"(Lohn + SWEZuschlagBetrag) + ((Lohn + SWEZuschlagBetrag) * ((StammJahrestage /12 * AnzMonJahr) - NetTg) * 100 / NetTg)/100 + Grati/NetStd","v":{"$error":"#DIV/0!"}},null,{"$f":"Lohn * SWEZuschlag","v":0},null,{"$f":"IF(LohnMon > StammVV,StammVV/(NetStd/12),LohnMon/(NetStd/12))","v":{"$error":"#DIV/0!"}},{"$f":"((Lohn + SWEZuschlagBetrag)*AnzMonJahr/12)+Grati/12","v":0}]
[null,null,null,null,null,null,null,null,null,null,null,null,null,null,{"$f":"Q167","v":0},0,0,null,null,null,null,null,null,0,0,null,0,0,0,0,{"$f":"BT166","v":0},0,0,null,0,null,null,null,null,{"$f":"AK167-AL167-AM167","v":0},null,{"$f":"AI167","v":0},null,null,null,null,{"$f":"AR167-AS167-AT167","v":0},null,null,null,null,0,0,0,0,0,0,0,0,0,0,"ja",0,0,0,0,0,0,0,0,0,0,0,0,null,0,0,0,0,0,null,261,null,{"$error":"#DIV/0!"},{"$error":"#DIV/0!"},null,0,null,{"$error":"#DIV/0!"},0]
[null,null,null,null,null,null,null,null,null,null,null,null,null,null,0,0,0,null,null,null,null,null,null,0,0,null,0,0,0,0,0,0,0,null,0,null,null,null,null,0,null,0,null,null,null,null,0,null,null,null,null,0,0,0,0,0,0,0,0,0,0,"ja",0,0,0,0,0,0,0,0,0,0,0,0,null,0,0,0,0,0,null,261,null,{"$error":"#DIV/0!"},{"$error":"#DIV/0!"},null,0,null,{"$error":"#DIV/0!"},0]
[null,null,null,null,null,null,null,null,null,null,null,null,null,null,0,0,0,null,null,null,null,null,null,0,0,null,0,0,0,0,0,0,0,null,0,null,null,null,null,0,null,0,null,null,null,null,0,null,null,null,null,0,0,0,0,0,0,0,0,0,0,"ja",0,0,0,0,0,0,0,0,0,0,0,0,null,0,0,0,0,0,null,261,null,{"$error":"#DIV/0!"},{"$error":"#DIV/0!"},null,0,null,{"$error":"#DIV/0!"},0]
[null,null,null,null,null,null,null,null,null,null,null,null,null,null,0,0,0,null,null,null,null,null,null,0,0,null,0,0,0,0,0,0,0,null,0,null,null,null,null,0,null,0,null,null,null,null,0,null,null,null,null,0,0,0,0,0,0,0,0,0,0,"ja",0,0,0,0,0,0,0,0,0,0,0,0,null,0,0,0,0,0,null,261,null,{"$error":"#DIV/0!"},{"$error":"#DIV/0!"},null,0,null,{"$error":"#DIV/0!"},0]
[null,null,null,null,null,null,null,null,null,null,null,null,null,null,0,0,0,null,null,null,null,null,null,0,0,null,0,0,0,0,0,0,0,null,0,null,null,null,null,0,null,0,null,null,null,null,0,null,null,null,null,0,0,0,0,0,0,0,0,0,0,"ja",0,0,0,0,0,0,0,0,0,0,0,0,null,0,0,0,0,0,null,261,null,{"$error":"#DIV/0!"},{"$error":"#DIV/0!"},null,0,null,{"$error":"#DIV/0!"},0]
[null,null,null,null,null,null,null,null,null,null,null,null,null,null,0,0,0,null,null,null,null,null,null,0,0,null,0,0,0,0,0,0,0,null,0,null,null,null,null,0,null,0,null,null,null,null,0,null,null,null,null,0,0,0,0,0,0,0,0,0,0,"ja",0,0,0,0,0,0,0,0,0,0,0,0,null,0,0,0,0,0,null,261,null,{"$error":"#DIV/0!"},{"$error":"#DIV/0!"},null,0,null,{"$error":"#DIV/0!"},0]
[null,null,null,null,null,null,null,null,null,null,null,null,null,null,0,0,0,null,null,null,null,null,null,0,0,null,0,0,0,0,0,0,0,null,0,null,null,null,null,0,null,0,null,null,null,null,0,null,null,null,null,0,0,0,0,0,0,0,0,0,0,"ja",0,0,0,0,0,0,0,0,0,0,0,0,null,0,0,0,0,0,null,261,null,{"$error":"#DIV/0!"},{"$error":"#DIV/0!"},null,0,null,{"$error":"#DIV/0!"},0]
[null,null,null,null,null,null,null,null,null,null,null,null,null,null,0,0,0,null,null,null,null,null,null,0,0,null,0,0,0,0,0,0,0,null,0,null,null,null,null,0,null,0,null,null,null,null,0,null,null,null,null,0,0,0,0,0,0,0,0,0,0,"ja",0,0,0,0,0,0,0,0,0,0,0,0,null,0,0,0,0,0,null,261,null,{"$error":"#DIV/0!"},{"$error":"#DIV/0!"},null,0,null,{"$error":"#DIV/0!"},0]
[null,null,null,null,null,null,null,null,null,null,null,null,null,null,0,0,0,null,null,null,null,null,null,0,0,null,0,0,0,0,0,0,0,null,0,null,null,null,null,0,null,0,null,null,null,null,0,null,null,null,null,0,0,0,0,0,0,0,0,0,0,"ja",0,0,0,0,0,0,0,0,0,0,0,0,null,0,0,0,0,0,null,261,null,{"$error":"#DIV/0!"},{"$error":"#DIV/0!"},null,0,null,{"$error":"#DIV/0!"},0]
[null,null,null,null,null,null,null,null,null,null,null,null,null,null,0,0,0,null,null,null,null,null,null,0,0,null,0,0,0,0,0,0,0,null,0,null,null,null,null,0,null,0,null,null,null,null,0,null,null,null,null,0,0,0,0,0,0,0,0,0,0,"ja",0,0,0,0,0,0,0,0,0,0,0,0,null,0,0,0,0,0,null,261,null,{"$error":"#DIV/0!"},{"$error":"#DIV/0!"},null,0,null,{"$error":"#DIV/0!"},0]
[null,null,null,null,null,null,null,null,null,null,null,null,null,null,0,0,0,null,null,null,null,null,null,0,0,null,0,0,0,0,0,0,0,null,0,null,null,null,null,0,null,0,null,null,null,null,0,null,null,null,null,0,0,0,0,0,0,0,0,0,0,"ja",0,0,0,0,0,0,0,0,0,0,0,0,null,0,0,0,0,0,null,261,null,{"$error":"#DIV/0!"},{"$error":"#DIV/0!"},null,0,null,{"$error":"#DIV/0!"},0]
[null,null,null,null,null,null,null,null,null,null,null,null,null,null,0,0,0,null,null,null,null,null,null,0,0,null,0,0,0,0,0,0,0,null,0,null,null,null,null,0,null,0,null,null,null,null,0,null,null,null,null,0,0,0,0,0,0,0,0,0,0,"ja",0,0,0,0,0,0,0,0,0,0,0,0,null,0,0,0,0,0,null,261,null,{"$error":"#DIV/0!"},{"$error":"#DIV/0!"},null,0,null,{"$error":"#DIV/0!"},0]
[null,null,null,null,null,null,null,null,null,null,null,null,null,null,0,0,0,null,null,null,null,null,null,0,0,null,0,0,0,0,0,0,0,null,0,null,null,null,null,0,null,0,null,null,null,null,0,null,null,null,null,0,0,0,0,0,0,0,0,0,0,"ja",0,0,0,0,0,0,0,0,0,0,0,0,null,0,0,0,0,0,null,261,null,{"$error":"#DIV/0!"},{"$error":"#DIV/0!"},null,0,null,{"$error":"#DIV/0!"},0]
[null,null,null,null,null,null,null,null,null,null,null,null,null,null,0,0,0,null,null,null,null,null,null,0,0,null,0,0,0,0,0,0,0,null,0,null,null,null,null,0,null,0,null,null,null,null,0,null,null,null,null,0,0,0,0,0,0,0,0,0,0,"ja",0,0,0,0,0,0,0,0,0,0,0,0,null,0,0,0,0,0,null,261,null,{"$error":"#DIV/0!"},{"$error":"#DIV/0!"},null,0,null,{"$error":"#DIV/0!"},0]
[null,null,null,null,null,null,null,null,null,null,null,null,null,null,0,0,0,null,null,null,null,null,null,0,0,null,0,0,0,0,0,0,0,null,0,null,null,null,null,0,null,0,null,null,null,null,0,null,null,null,null,0,0,0,0,0,0,0,0,0,0,"ja",0,0,0,0,0,0,0,0,0,0,0,0,null,0,0,0,0,0,null,261,null,{"$error":"#DIV/0!"},{"$error":"#DIV/0!"},null,0,null,{"$error":"#DIV/0!"},0]
[null,null,null,null,null,null,null,null,null,null,null,null,null,null,0,0,0,null,null,null,null,null,null,0,0,null,0,0,0,0,0,0,0,null,0,null,null,null,null,0,null,0,null,null,null,null,0,null,null,null,null,0,0,0,0,0,0,0,0,0,0,"ja",0,0,0,0,0,0,0,0,0,0,0,0,null,0,0,0,0,0,null,261,null,{"$error":"#DIV/0!"},{"$error":"#DIV/0!"},null,0,null,{"$error":"#DIV/0!"},0]
[null,null,null,null,null,null,null,null,null,null,null,null,null,null,0,0,0,null,null,null,null,null,null,0,0,null,0,0,0,0,0,0,0,null,0,null,null,null,null,0,null,0,null,null,null,null,0,null,null,null,null,0,0,0,0,0,0,0,0,0,0,"ja",0,0,0,0,0,0,0,0,0,0,0,0,null,0,0,0,0,0,null,261,null,{"$error":"#DIV/0!"},{"$error":"#DIV/0!"},null,0,null,{"$error":"#DIV/0!"},0]
[null,null,null,null,null,null,null,null,null,null,null,null,null,null,0,0,0,null,null,null,null,null,null,0,0,null,0,0,0,0,0,0,0,null,0,null,null,null,null,0,null,0,null,null,null,null,0,null,null,null,null,0,0,0,0,0,0,0,0,0,0,"ja",0,0,0,0,0,0,0,0,0,0,0,0,null,0,0,0,0,0,null,261,null,{"$error":"#DIV/0!"},{"$error":"#DIV/0!"},null,0,null,{"$error":"#DIV/0!"},0]
[null,null,null,null,null,null,null,null,null,null,null,null,null,null,0,0,0,null,null,null,null,null,null,0,0,null,0,0,0,0,0,0,0,null,0,null,null,null,null,0,null,0,null,null,null,null,0,null,null,null,null,0,0,0,0,0,0,0,0,0,0,"ja",0,0,0,0,0,0,0,0,0,0,0,0,null,0,0,0,0,0,null,261,null,{"$error":"#DIV/0!"},{"$error":"#DIV/0!"},null,0,null,{"$error":"#DIV/0!"},0]
[null,null,null,null,null,null,null,null,null,null,null,null,null,null,0,0,0,null,null,null,null,null,null,0,0,null,0,0,0,0,0,0,0,null,0,null,null,null,null,0,null,0,null,null,null,null,0,null,null,null,null,0,0,0,0,0,0,0,0,0,0,"ja",0,0,0,0,0,0,0,0,0,0,0,0,null,0,0,0,0,0,null,261,null,{"$error":"#DIV/0!"},{"$error":"#DIV/0!"},null,0,null,{"$error":"#DIV/0!"},0]
[null,null,null,null,null,null,null,null,null,null,null,null,null,null,0,0,0,null,null,null,null,null,null,0,0,null,0,0,0,0,0,0,0,null,0,null,null,null,null,0,null,0,null,null,null,null,0,null,null,null,null,0,0,0,0,0,0,0,0,0,0,"ja",0,0,0,0,0,0,0,0,0,0,0,0,null,0,0,0,0,0,null,261,null,{"$error":"#DIV/0!"},{"$error":"#DIV/0!"},null,0,null,{"$error":"#DIV/0!"},0]
[null,null,null,null,null,null,null,null,null,null,null,null,null,null,0,0,0,null,null,null,null,null,null,0,0,null,0,0,0,0,0,0,0,null,0,null,null,null,null,0,null,0,null,null,null,null,0,null,null,null,null,0,0,0,0,0,0,0,0,0,0,"ja",0,0,0,0,0,0,0,0,0,0,0,0,null,0,0,0,0,0,null,261,null,{"$error":"#DIV/0!"},{"$error":"#DIV/0!"},null,0,null,{"$error":"#DIV/0!"},0]
[null,null,null,null,null,null,null,null,null,null,null,null,null,null,0,0,0,null,null,null,null,null,null,0,0,null,0,0,0,0,0,0,0,null,0,null,null,null,null,0,null,0,null,null,null,null,0,null,null,null,null,0,0,0,0,0,0,0,0,0,0,"ja",0,0,0,0,0,0,0,0,0,0,0,0,null,0,0,0,0,0,null,261,null,{"$error":"#DIV/0!"},{"$error":"#DIV/0!"},null,0,null,{"$error":"#DIV/0!"},0]
[null,null,null,null,null,null,null,null,null,null,null,null,null,null,0,0,0,null,null,null,null,null,null,0,0,null,0,0,0,0,0,0,0,null,0,null,null,null,null,0,null,0,null,null,null,null,0,null,null,null,null,0,0,0,0,0,0,0,0,0,0,"ja",0,0,0,0,0,0,0,0,0,0,0,0,null,0,0,0,0,0,null,261,null,{"$error":"#DIV/0!"},{"$error":"#DIV/0!"},null,0,null,{"$error":"#DIV/0!"},0]
[null,null,null,null,null,null,null,null,null,null,null,null,null,null,0,0,0,null,null,null,null,null,null,0,0,null,0,0,0,0,0,0,0,null,0,null,null,null,null,0,null,0,null,null,null,null,0,null,null,null,null,0,0,0,0,0,0,0,0,0,0,"ja",0,0,0,0,0,0,0,0,0,0,0,0,null,0,0,0,0,0,null,261,null,{"$error":"#DIV/0!"},{"$error":"#DIV/0!"},null,0,null,{"$error":"#DIV/0!"},0]
[null,null,null,null,null,null,null,null,null,null,null,null,null,null,0,0,0,null,null,null,null,null,null,0,0,null,0,0,0,0,0,0,0,null,0,null,null,null,null,0,null,0,null,null,null,null,0,null,null,null,null,0,0,0,0,0,0,0,0,0,0,"ja",0,0,0,0,0,0,0,0,0,0,0,0,null,0,0,0,0,0,null,261,null,{"$error":"#DIV/0!"},{"$error":"#DIV/0!"},null,0,null,{"$error":"#DIV/0!"},0]
[null,null,null,null,null,null,null,null,null,null,null,null,null,null,0,0,0,null,null,null,null,null,null,0,0,null,0,0,0,0,0,0,0,null,0,null,null,null,null,0,null,0,null,null,null,null,0,null,null,null,null,0,0,0,0,0,0,0,0,0,0,"ja",0,0,0,0,0,0,0,0,0,0,0,0,null,0,0,0,0,0,null,261,null,{"$error":"#DIV/0!"},{"$error":"#DIV/0!"},null,0,null,{"$error":"#DIV/0!"},0]
[null,null,null,null,null,null,null,null,null,null,null,null,null,null,0,0,0,null,null,null,null,null,null,0,0,null,0,0,0,0,0,0,0,null,0,null,null,null,null,0,null,0,null,null,null,null,0,null,null,null,null,0,0,0,0,0,0,0,0,0,0,"ja",0,0,0,0,0,0,0,0,0,0,0,0,null,0,0,0,0,0,null,261,null,{"$error":"#DIV/0!"},{"$error":"#DIV/0!"},null,0,null,{"$error":"#DIV/0!"},0]
[null,null,null,null,null,null,null,null,null,null,null,null,null,null,0,0,0,null,null,null,null,null,null,0,0,null,0,0,0,0,0,0,0,null,0,null,null,null,null,0,null,0,null,null,null,null,0,null,null,null,null,0,0,0,0,0,0,0,0,0,0,"ja",0,0,0,0,0,0,0,0,0,0,0,0,null,0,0,0,0,0,null,261,null,{"$error":"#DIV/0!"},{"$error":"#DIV/0!"},null,0,null,{"$error":"#DIV/0!"},0]
[null,null,null,null,null,null,null,null,null,null,null,null,null,null,0,0,0,null,null,null,null,null,null,0,0,null,0,0,0,0,0,0,0,null,0,null,null,null,null,0,null,0,null,null,null,null,0,null,null,null,null,0,0,0,0,0,0,0,0,0,0,"ja",0,0,0,0,0,0,0,0,0,0,0,0,null,0,0,0,0,0,null,261,null,{"$error":"#DIV/0!"},{"$error":"#DIV/0!"},null,0,null,{"$error":"#DIV/0!"},0]
[null,null,null,null,null,null,null,null,null,null,null,null,null,null,0,0,0,null,null,null,null,null,null,0,0,null,0,0,0,0,0,0,0,null,0,null,null,null,null,0,null,0,null,null,null,null,0,null,null,null,null,0,0,0,0,0,0,0,0,0,0,"ja",0,0,0,0,0,0,0,0,0,0,0,0,null,0,0,0,0,0,null,261,null,{"$error":"#DIV/0!"},{"$error":"#DIV/0!"},null,0,null,{"$error":"#DIV/0!"},0]
[null,null,null,null,null,null,null,null,null,null,null,null,null,null,null,{"$f":"übertrag","v":"Übertrag"},null,null,{"$f":"SUM(S165:S197)","v":0},null,{"$f":"SUM(U165:U197)","v":0},null,null,null,{"$f":"SUM(Y165:Y197)","v":0},null,null,null,{"$f":"SUM(AC165:AC197)","v":0},null,null,null,{"$f":"SUM(AG165:AG197)","v":0},null,{"$f":"P198","v":"Übertrag"},null,{"$f":"SUM(AK165:AK197)","v":0},null,{"$f":"SUM(AM165:AM197)","v":0},{"$f":"SUM(AN165:AN197)","v":0},null,{"$f":"AI198","v":"Übertrag"},null,{"$f":"SUM(AR165:AR197)","v":0},null,{"$f":"SUM(AT165:AT197)","v":0},{"$f":"SUM(AU165:AU197)","v":0}]
[null,null,null,null,{"$f":"StammMA & \" 6\"","v":"Stammdaten MitarbeiterInnen Seite 6"},null,null,null,null,null,null,null,null,null,null,null,null,null,null,null,null,null,{"$f":"Abrechnung & \" \" & KAE_SWE_TEXT  & \", \" & Seite & \" 6, \" & MonatVor(StammPeriode2,0, \"MMMM YYYY\")","v":"Abrechnung Kurzarbeitsentschädigung, Seite 6, Dezember 2018"},null,null,null,null,null,null,null,null,null,null,null,{"$f":"E199","v":"Stammdaten MitarbeiterInnen Seite 6"},null,null,null,null,null,{"$f":"AO160","v":"Erhebungsbogen Saisonalität  -  Dezember 2018  -   / ABTEILUNG"},null,null,null,null,{"$f":"AT160","v":"2020-11-30"},{"$f":"AU160","v":44165.600647685184}]
[{"$f":"A$11","v":"Name Vorname"},"AHV-Nummer","Freies Feld, z.B. Personalnummer","Geburtsdatum","Grundlohn (Monatslohn oder Stundenlohn)","Durch-\nschnittliche wöchentliche Arbeitszeit",{"$f":"G$11","v":"Anzahl Monatslöhne (12, 13, 13.5 etc.) oder Prozentzuschlag gem. GAV"},null,{"$f":"I$11","v":"Gratifikation etc. mit vertraglichem Anspruch"},"Ferienentschädigung in Tagen oder in Lohnprozenten",null,{"$f":"L$11","v":"Feiertagsentschädigung in Tagen oder in Lohnprozenten"},null,{"$f":"N$11","v":"SWE-Zuschlag nach GAV in Prozent"},"Anrechen-\nbarer Stunden-\nverdienst",{"$f":"P$11","v":1},{"$f":"Q$11","v":2},{"$f":"R$11","v":3},{"$f":"S$11","v":4},5,6,null,{"$f":"W$11","v":"7 (nur für Gleitzeit)"},null,{"$f":"Y$11","v":8},{"$f":"Z$11","v":9},{"$f":"AA$11","v":10},{"$f":"AB$11","v":11},12,13,14,15,16,null,{"$f":"AI$11","v":1},{"$f":"AJ$11","v":2},3,4,5,6,null,{"$f":"AI$44","v":1},{"$f":"AJ$44","v":2},{"$f":"AK$44","v":3},{"$f":"AL$44","v":4},{"$f":"AM$44","v":5},{"$f":"AN$44","v":6},null,null,null,null,{"$f":"R201","v":"Vertragliche wöchentl. Arbeitszeit"},"Sollstunden Abrechnungs-\nperiode","Istzeit (tatsächl. Anwesenh.)","Bezahlte u. unbezahlte Absenzen","Saldo Ende Periode",0,"Diffe-\nrenz",null,null,null,null,{"$f":"Y201","v":"Ausfallstd. Kurzarbeit"},"Saldo Mehrstd. Vormonat","Anrechenbare","Abzuziehende",{"$f":"AA201","v":"Saisonale Ausfall- stunden"},"Anrech. Ausfall- stunden",null,{"$f":"AC201","v":"Verdienst- ausfall"},"KAE gemäss Art. 42 ALVG",null,{"$f":"AF201","v":"Abzug Karenzzeit"},"Beantragte Vergütung"]
[{"$f":"A$11","v":"Name Vorname"},{"$f":"B$12","v":0},{"$f":"B_FF1","v":"Freies Feld"},{"$f":"D$11","v":"Geburtsdatum"},{"$f":"E$11","v":"Grundlohn (Monatslohn oder Stundenlohn)"},{"$f":"F$11","v":"Durch-\nschnittliche wöchentliche Arbeitszeit"},{"$f":"G$12","v":0},null,{"$f":"I$11","v":"Gratifikation etc. mit vertraglichem Anspruch"},0,null,{"$f":"#REF!","v":{"$error":"#REF!"}},null,null,0,{"$f":"P$12","v":"Name Vorname"},{"$f":"Q$12","v":"Anrechen-\nbarer Stunden-\nverdienst"},{"$f":"R$12","v":"Vertragliche wöchentl. Arbeitszeit"},{"$f":"S$12","v":"Sollstunden Abrechnungs-\nperiode"},"Istzeit (tatsächl. Anwesenh.)","Bezahlte u. unbezahlte Absenzen",{"$f":"V$12","v":"Saldo Ende Periode"},null,{"$f":"X$12","v":"Diffe-\nrenz"},"Ausfallstd. Kurzarbeit","Saldo Mehrstd. Vormonat","Saisonale Ausfall- stunden","Anrech. Ausfall- stunden","Verdienst- ausfall",{"$f":"AD$12","v":"KAE gemäss Art. 42 ALVG"},"Anteil ALV gm. Art. 42 ALVG","Abzug Karenzzeit",{"$f":"AG$12","v":"Beantragte Vergütung"},null,{"$f":"AI$12","v":"Name Vorname"},{"$f":"R$45","v":"Vertragliche wöchentl. Arbeitszeit"},"Sollstunden","Istzeit",{"$f":"AM$12","v":"Bezahlte u. unbezahlte Absenzen"},{"$f":"AN$12","v":"Ausfallstd. Kurzarbeit"},null,{"$f":"AP$12","v":"Name Vorname"},{"$f":"AJ$45","v":"Vertragliche wöchentl. Arbeitszeit"},{"$f":"AR$12","v":"Sollstunden"},{"$f":"AS$12","v":"Istzeit"},{"$f":"AT$12","v":"Bezahlte u. unbezahlte Absenzen"},{"$f":"AU$12","v":"Ausfallstd. Kurzarbeit"},null,null,null,null,0,0,0,0,"vorher-\ngehende","laufende",0,null,null,null,null,0,0,"Mehrstd.","Mehrstunden f.",0,0,null,0,0,null,0,0,null,"Zähler","Zähler Be-","Brutto","Netto","Std pro Tag",null,"Netto",null,"StdLohn","Hilfs1",null,null,null,"Monatslohn","Monatslohn"]
[{"$f":"A$13","v":0},{"$f":"B$11","v":"AHV-Nummer"},{"$f":"B_FF2","v":"z.B."},{"$f":"D$13","v":"00:00:00"},0,0,0,null,0,0,null,0,null,null,0,null,null,null,null,null,null,{"$f":"V$13","v":"vorher-\ngehende"},{"$f":"W$13","v":"laufende"},null,null,null,null,null,null,null,null,null,null,null,null,null,{"$f":"AK$13","v":"Dezember"},{"$f":"AL$13","v":"Dezember"},null,null,null,null,null,{"$f":"AR$13","v":"Dezember"},{"$f":"AS$13","v":"Dezember"},null,null,null,null,null,null,0,0,0,0,0,0,0,null,null,null,null,0,0,"Vormonat","Ausfallberech.",0,0,null,"100%","80%",null,"0 Tage","KSE",null,"Betroffene ","zugsberechtigte","Stunden","Stunden",null,null,"Tage",null,null,null,null,null,null,null,"ungekürzt"]
[{"$f":"A$14","v":0},{"$f":"B$14","v":0},{"$f":"B_FF3","v":"Personalnummer"},{"$f":"D$14","v":"00:00:00"},0,0,"Monate",{"$f":"K$14","v":"Prozent"},0,"Tage",{"$f":"K$14","v":"Prozent"},"Tage",{"$f":"M$14","v":"Prozent"},null,0,null,null,null,null,null,null,null,null,null,null,null,null,null,{"$f":"AC$14","v":"100%"},{"$f":"AD$14","v":"80%"},"60%","0 Tage","KSE",null,null,null,{"$f":"AK$14","v":"2017"},{"$f":"AL$14","v":"2017"},null,null,null,null,null,{"$f":"AR$14","v":"2016"},{"$f":"AS$14","v":"2016"},null,null,null,null,null,null,"KL3","KL4","KL5","KL6","KL7a","KL7b","KL7c","KL8temp","Überzeit",null,null,"KL8","KL9","KL9a","KL9b","KL10","KL11","KL11a","KL12","KL13",null,"KL14","KL15",null,"Mitarbeiter","Mitarbeiter","BrStd","NetStd",null,null,"NetTg",null,"Resultat","nichtgekürzt",null,null,null,"Resultat","LohnMonat"]
[{"$f":"übertrag","v":"Übertrag"},null,null,null,null,null,null,null,null,null,null,null,null,null,null,{"$f":"A204","v":"Übertrag"},null,null,{"$f":"S198","v":0},null,{"$f":"U198","v":0},null,null,null,{"$f":"Y198","v":0},null,null,null,{"$f":"AC198","v":0},null,null,null,{"$f":"AG198","v":0},null,{"$f":"A204","v":"Übertrag"},null,{"$f":"AK198","v":0},null,{"$f":"AM198","v":0},{"$f":"AN198","v":0},null,{"$f":"AI204","v":"Übertrag"},null,{"$f":"AR198","v":0},null,{"$f":"AT198","v":0},{"$f":"AU198","v":0}]
[null,null,null,null,null,null,null,null,null,null,null,null,null,null,{"$f":"Q205","v":0},0,{"$f":"ROUND(IF(AnzMonJahr > 11,IF(Lohn > 100,MonLohn,StdLohn),0),2)","v":0},null,null,null,null,null,null,{"$f":"KL7c","v":0},{"$f":"_KL8","v":0},null,{"$f":"_KL10","v":0},{"$f":"KL11a","v":0},{"$f":"_KL12","v":0},{"$f":"_KL13","v":0},{"$f":"BT205","v":0},{"$f":"_KL14","v":0},{"$f":"_KL15","v":0},null,0,null,null,null,null,{"$f":"AK205-AL205-AM205","v":0},null,{"$f":"AI205","v":0},null,null,null,null,{"$f":"AR205-AS205-AT205","v":0},null,null,null,null,{"$f":"R205","v":0},{"$f":"S205","v":0},{"$f":"T205","v":0},{"$f":"U205","v":0},{"$f":"V205","v":0},{"$f":"W205","v":0},{"$f":"KL7a-KL7b","v":0},{"$f":"ROUND(SUM(_KL4-_KL5-_KL6-KL7c),2)","v":0},{"$f":"IF(KL8temp<0,KL8temp,0)","v":0},{"$f":"_KL3 / 5 * StammMindestausfall","v":0},{"$f":"IF(KL8temp < Mindestausfall,\"nein\",\"ja\")","v":"ja"},{"$f":"ROUND(IF(KL8temp>0,KL8temp,0),2)","v":0},{"$f":"Z205","v":0},{"$f":"IF(_KL9>_KL10,_KL9-_KL10,0)","v":0},{"$f":"IF(_KL8-_KL9>0,_KL8-_KL9,0)","v":0},{"$f":"_KL8-_KL11","v":0},{"$f":"IF(Arbeitsausfall_in_Prozent>0,IF(_KL8>0,ROUND(_KL8/Arbeitsausfall_in_Prozent*RelativerMehrausfall,2),0),0)","v":0},{"$f":"_KL11-KL9a+Überzeit","v":0},{"$f":"IF(KL8temp < Mindestausfall,IF(KL11a>0,0,0),IF(KL11a<=0,0,ROUND(_KL2*KL11a,2)))","v":0},{"$f":"IF(MindestausfallJaNein=\"ja\",ROUND(K_12*StammAnspruch_in_Prozent/100,2),0)","v":0},{"$f":"IF(MindestausfallJaNein=\"ja\",ROUND(K_12*Entsch_Liechtenstein_in_Prozent/100,2),0)","v":0},{"$f":"IF(MindestausfallJaNein=\"ja\",ROUND(IF(KL11a>0,_KL3/5*_KL2*KZ_V*Entsch_Liechtenstein_in_Prozent/100,0),2),0)","v":0},{"$f":"IF(KL13a-_KL14>=0,ROUND(SUM(KL13a-_KL14)*20,0)/20,0)","v":0},null,{"$f":"IF(K_15<>0,1,0)","v":0},{"$f":"IF(SollStd<>0,1,0)","v":0},{"$f":"StdTg*StammJahrestage","v":0},{"$f":"(StdTg*StammJahrestage)-(StdTg*(Fer+Fei))","v":0},{"$f":"StdWo/5","v":0},null,{"$f":"StammJahrestage-Fer-Fei","v":261},null,{"$f":"IF(Hilfs1 * NetStd/12 > StammVV,StammVV / (NetStd /12 ), Hilfs1)","v":{"$error":"#DIV/0!"}},{"$f":"(Lohn + SWEZuschlagBetrag) + ((Lohn + SWEZuschlagBetrag) * ((StammJahrestage /12 * AnzMonJahr) - NetTg) * 100 / NetTg)/100 + Grati/NetStd","v":{"$error":"#DIV/0!"}},null,{"$f":"Lohn * SWEZuschlag","v":0},null,{"$f":"IF(LohnMon > StammVV,StammVV/(NetStd/12),LohnMon/(NetStd/12))","v":{"$error":"#DIV/0!"}},{"$f":"((Lohn + SWEZuschlagBetrag)*AnzMonJahr/12)+Grati/12","v":0}]
[null,null,null,null,null,null,null,null,null,null,null,null,null,null,{"$f":"Q206","v":0},0,0,null,null,null,null,null,null,0,0,null,0,0,0,0,{"$f":"BT206","v":0},0,0,null,0,null,null,null,null,{"$f":"AK206-AL206-AM206","v":0},null,{"$f":"AI206","v":0},null,null,null,null,{"$f":"AR206-AS206-AT206","v":0},null,null,null,null,0,0,0,0,0,0,0,0,0,0,"ja",0,0,0,0,0,0,0,0,0,0,0,0,null,0,0,0,0,0,null,261,null,{"$error":"#DIV/0!"},{"$error":"#DIV/0!"},null,0,null,{"$error":"#DIV/0!"},0]
[null,null,null,null,null,null,null,null,null,null,null,null,null,null,0,0,0,null,null,null,null,null,null,0,0,null,0,0,0,0,0,0,0,null,0,null,null,null,null,0,null,0,null,null,null,null,0,null,null,null,null,0,0,0,0,0,0,0,0,0,0,"ja",0,0,0,0,0,0,0,0,0,0,0,0,null,0,0,0,0,0,null,261,null,{"$error":"#DIV/0!"},{"$error":"#DIV/0!"},null,0,null,{"$error":"#DIV/0!"},0]
[null,null,null,null,null,null,null,null,null,null,null,null,null,null,0,0,0,null,null,null,null,null,null,0,0,null,0,0,0,0,0,0,0,null,0,null,null,null,null,0,null,0,null,null,null,null,0,null,null,null,null,0,0,0,0,0,0,0,0,0,0,"ja",0,0,0,0,0,0,0,0,0,0,0,0,null,0,0,0,0,0,null,261,null,{"$error":"#DIV/0!"},{"$error":"#DIV/0!"},null,0,null,{"$error":"#DIV/0!"},0]
[null,null,null,null,null,null,null,null,null,null,null,null,null,null,0,0,0,null,null,null,null,null,null,0,0,null,0,0,0,0,0,0,0,null,0,null,null,null,null,0,null,0,null,null,null,null,0,null,null,null,null,0,0,0,0,0,0,0,0,0,0,"ja",0,0,0,0,0,0,0,0,0,0,0,0,null,0,0,0,0,0,null,261,null,{"$error":"#DIV/0!"},{"$error":"#DIV/0!"},null,0,null,{"$error":"#DIV/0!"},0]
[null,null,null,null,null,null,null,null,null,null,null,null,null,null,0,0,0,null,null,null,null,null,null,0,0,null,0,0,0,0,0,0,0,null,0,null,null,null,null,0,null,0,null,null,null,null,0,null,null,null,null,0,0,0,0,0,0,0,0,0,0,"ja",0,0,0,0,0,0,0,0,0,0,0,0,null,0,0,0,0,0,null,261,null,{"$error":"#DIV/0!"},{"$error":"#DIV/0!"},null,0,null,{"$error":"#DIV/0!"},0]
[null,null,null,null,null,null,null,null,null,null,null,null,null,null,0,0,0,null,null,null,null,null,null,0,0,null,0,0,0,0,0,0,0,null,0,null,null,null,null,0,null,0,null,null,null,null,0,null,null,null,null,0,0,0,0,0,0,0,0,0,0,"ja",0,0,0,0,0,0,0,0,0,0,0,0,null,0,0,0,0,0,null,261,null,{"$error":"#DIV/0!"},{"$error":"#DIV/0!"},null,0,null,{"$error":"#DIV/0!"},0]
[null,null,null,null,null,null,null,null,null,null,null,null,null,null,0,0,0,null,null,null,null,null,null,0,0,null,0,0,0,0,0,0,0,null,0,null,null,null,null,0,null,0,null,null,null,null,0,null,null,null,null,0,0,0,0,0,0,0,0,0,0,"ja",0,0,0,0,0,0,0,0,0,0,0,0,null,0,0,0,0,0,null,261,null,{"$error":"#DIV/0!"},{"$error":"#DIV/0!"},null,0,null,{"$error":"#DIV/0!"},0]
[null,null,null,null,null,null,null,null,null,null,null,null,null,null,0,0,0,null,null,null,null,null,null,0,0,null,0,0,0,0,0,0,0,null,0,null,null,null,null,0,null,0,null,null,null,null,0,null,null,null,null,0,0,0,0,0,0,0,0,0,0,"ja",0,0,0,0,0,0,0,0,0,0,0,0,null,0,0,0,0,0,null,261,null,{"$error":"#DIV/0!"},{"$error":"#DIV/0!"},null,0,null,{"$error":"#DIV/0!"},0]
[null,null,null,null,null,null,null,null,null,null,null,null,null,null,0,0,0,null,null,null,null,null,null,0,0,null,0,0,0,0,0,0,0,null,0,null,null,null,null,0,null,0,null,null,null,null,0,null,null,null,null,0,0,0,0,0,0,0,0,0,0,"ja",0,0,0,0,0,0,0,0,0,0,0,0,null,0,0,0,0,0,null,261,null,{"$error":"#DIV/0!"},{"$error":"#DIV/0!"},null,0,null,{"$error":"#DIV/0!"},0]
[null,null,null,null,null,null,null,null,null,null,null,null,null,null,0,0,0,null,null,null,null,null,null,0,0,null,0,0,0,0,0,0,0,null,0,null,null,null,null,0,null,0,null,null,null,null,0,null,null,null,null,0,0,0,0,0,0,0,0,0,0,"ja",0,0,0,0,0,0,0,0,0,0,0,0,null,0,0,0,0,0,null,261,null,{"$error":"#DIV/0!"},{"$error":"#DIV/0!"},null,0,null,{"$error":"#DIV/0!"},0]
[null,null,null,null,null,null,null,null,null,null,null,null,null,null,0,0,0,null,null,null,null,null,null,0,0,null,0,0,0,0,0,0,0,null,0,null,null,null,null,0,null,0,null,null,null,null,0,null,null,null,null,0,0,0,0,0,0,0,0,0,0,"ja",0,0,0,0,0,0,0,0,0,0,0,0,null,0,0,0,0,0,null,261,null,{"$error":"#DIV/0!"},{"$error":"#DIV/0!"},null,0,null,{"$error":"#DIV/0!"},0]
[null,null,null,null,null,null,null,null,null,null,null,null,null,null,0,0,0,null,null,null,null,null,null,0,0,null,0,0,0,0,0,0,0,null,0,null,null,null,null,0,null,0,null,null,null,null,0,null,null,null,null,0,0,0,0,0,0,0,0,0,0,"ja",0,0,0,0,0,0,0,0,0,0,0,0,null,0,0,0,0,0,null,261,null,{"$error":"#DIV/0!"},{"$error":"#DIV/0!"},null,0,null,{"$error":"#DIV/0!"},0]
[null,null,null,null,null,null,null,null,null,null,null,null,null,null,0,0,0,null,null,null,null,null,null,0,0,null,0,0,0,0,0,0,0,null,0,null,null,null,null,0,null,0,null,null,null,null,0,null,null,null,null,0,0,0,0,0,0,0,0,0,0,"ja",0,0,0,0,0,0,0,0,0,0,0,0,null,0,0,0,0,0,null,261,null,{"$error":"#DIV/0!"},{"$error":"#DIV/0!"},null,0,null,{"$error":"#DIV/0!"},0]
[null,null,null,null,null,null,null,null,null,null,null,null,null,null,0,0,0,null,null,null,null,null,null,0,0,null,0,0,0,0,0,0,0,null,0,null,null,null,null,0,null,0,null,null,null,null,0,null,null,null,null,0,0,0,0,0,0,0,0,0,0,"ja",0,0,0,0,0,0,0,0,0,0,0,0,null,0,0,0,0,0,null,261,null,{"$error":"#DIV/0!"},{"$error":"#DIV/0!"},null,0,null,{"$error":"#DIV/0!"},0]
[null,null,null,null,null,null,null,null,null,null,null,null,null,null,0,0,0,null,null,null,null,null,null,0,0,null,0,0,0,0,0,0,0,null,0,null,null,null,null,0,null,0,null,null,null,null,0,null,null,null,null,0,0,0,0,0,0,0,0,0,0,"ja",0,0,0,0,0,0,0,0,0,0,0,0,null,0,0,0,0,0,null,261,null,{"$error":"#DIV/0!"},{"$error":"#DIV/0!"},null,0,null,{"$error":"#DIV/0!"},0]
[null,null,null,null,null,null,null,null,null,null,null,null,null,null,0,0,0,null,null,null,null,null,null,0,0,null,0,0,0,0,0,0,0,null,0,null,null,null,null,0,null,0,null,null,null,null,0,null,null,null,null,0,0,0,0,0,0,0,0,0,0,"ja",0,0,0,0,0,0,0,0,0,0,0,0,null,0,0,0,0,0,null,261,null,{"$error":"#DIV/0!"},{"$error":"#DIV/0!"},null,0,null,{"$error":"#DIV/0!"},0]
[null,null,null,null,null,null,null,null,null,null,null,null,null,null,0,0,0,null,null,null,null,null,null,0,0,null,0,0,0,0,0,0,0,null,0,null,null,null,null,0,null,0,null,null,null,null,0,null,null,null,null,0,0,0,0,0,0,0,0,0,0,"ja",0,0,0,0,0,0,0,0,0,0,0,0,null,0,0,0,0,0,null,261,null,{"$error":"#DIV/0!"},{"$error":"#DIV/0!"},null,0,null,{"$error":"#DIV/0!"},0]
[null,null,null,null,null,null,null,null,null,null,null,null,null,null,0,0,0,null,null,null,null,null,null,0,0,null,0,0,0,0,0,0,0,null,0,null,null,null,null,0,null,0,null,null,null,null,0,null,null,null,null,0,0,0,0,0,0,0,0,0,0,"ja",0,0,0,0,0,0,0,0,0,0,0,0,null,0,0,0,0,0,null,261,null,{"$error":"#DIV/0!"},{"$error":"#DIV/0!"},null,0,null,{"$error":"#DIV/0!"},0]
[null,null,null,null,null,null,null,null,null,null,null,null,null,null,0,0,0,null,null,null,null,null,null,0,0,null,0,0,0,0,0,0,0,null,0,null,null,null,null,0,null,0,null,null,null,null,0,null,null,null,null,0,0,0,0,0,0,0,0,0,0,"ja",0,0,0,0,0,0,0,0,0,0,0,0,null,0,0,0,0,0,null,261,null,{"$error":"#DIV/0!"},{"$error":"#DIV/0!"},null,0,null,{"$error":"#DIV/0!"},0]
[null,null,null,null,null,null,null,null,null,null,null,null,null,null,0,0,0,null,null,null,null,null,null,0,0,null,0,0,0,0,0,0,0,null,0,null,null,null,null,0,null,0,null,null,null,null,0,null,null,null,null,0,0,0,0,0,0,0,0,0,0,"ja",0,0,0,0,0,0,0,0,0,0,0,0,null,0,0,0,0,0,null,261,null,{"$error":"#DIV/0!"},{"$error":"#DIV/0!"},null,0,null,{"$error":"#DIV/0!"},0]
[null,null,null,null,null,null,null,null,null,null,null,null,null,null,0,0,0,null,null,null,null,null,null,0,0,null,0,0,0,0,0,0,0,null,0,null,null,null,null,0,null,0,null,null,null,null,0,null,null,null,null,0,0,0,0,0,0,0,0,0,0,"ja",0,0,0,0,0,0,0,0,0,0,0,0,null,0,0,0,0,0,null,261,null,{"$error":"#DIV/0!"},{"$error":"#DIV/0!"},null,0,null,{"$error":"#DIV/0!"},0]
[null,null,null,null,null,null,null,null,null,null,null,null,null,null,0,0,0,null,null,null,null,null,null,0,0,null,0,0,0,0,0,0,0,null,0,null,null,null,null,0,null,0,null,null,null,null,0,null,null,null,null,0,0,0,0,0,0,0,0,0,0,"ja",0,0,0,0,0,0,0,0,0,0,0,0,null,0,0,0,0,0,null,261,null,{"$error":"#DIV/0!"},{"$error":"#DIV/0!"},null,0,null,{"$error":"#DIV/0!"},0]
[null,null,null,null,null,null,null,null,null,null,null,null,null,null,0,0,0,null,null,null,null,null,null,0,0,null,0,0,0,0,0,0,0,null,0,null,null,null,null,0,null,0,null,null,null,null,0,null,null,null,null,0,0,0,0,0,0,0,0,0,0,"ja",0,0,0,0,0,0,0,0,0,0,0,0,null,0,0,0,0,0,null,261,null,{"$error":"#DIV/0!"},{"$error":"#DIV/0!"},null,0,null,{"$error":"#DIV/0!"},0]
[null,null,null,null,null,null,null,null,null,null,null,null,null,null,0,0,0,null,null,null,null,null,null,0,0,null,0,0,0,0,0,0,0,null,0,null,null,null,null,0,null,0,null,null,null,null,0,null,null,null,null,0,0,0,0,0,0,0,0,0,0,"ja",0,0,0,0,0,0,0,0,0,0,0,0,null,0,0,0,0,0,null,261,null,{"$error":"#DIV/0!"},{"$error":"#DIV/0!"},null,0,null,{"$error":"#DIV/0!"},0]
[null,null,null,null,null,null,null,null,null,null,null,null,null,null,0,0,0,null,null,null,null,null,null,0,0,null,0,0,0,0,0,0,0,null,0,null,null,null,null,0,null,0,null,null,null,null,0,null,null,null,null,0,0,0,0,0,0,0,0,0,0,"ja",0,0,0,0,0,0,0,0,0,0,0,0,null,0,0,0,0,0,null,261,null,{"$error":"#DIV/0!"},{"$error":"#DIV/0!"},null,0,null,{"$error":"#DIV/0!"},0]
[null,null,null,null,null,null,null,null,null,null,null,null,null,null,0,0,0,null,null,null,null,null,null,0,0,null,0,0,0,0,0,0,0,null,0,null,null,null,null,0,null,0,null,null,null,null,0,null,null,null,null,0,0,0,0,0,0,0,0,0,0,"ja",0,0,0,0,0,0,0,0,0,0,0,0,null,0,0,0,0,0,null,261,null,{"$error":"#DIV/0!"},{"$error":"#DIV/0!"},null,0,null,{"$error":"#DIV/0!"},0]
[null,null,null,null,null,null,null,null,null,null,null,null,null,null,0,0,0,null,null,null,null,null,null,0,0,null,0,0,0,0,0,0,0,null,0,null,null,null,null,0,null,0,null,null,null,null,0,null,null,null,null,0,0,0,0,0,0,0,0,0,0,"ja",0,0,0,0,0,0,0,0,0,0,0,0,null,0,0,0,0,0,null,261,null,{"$error":"#DIV/0!"},{"$error":"#DIV/0!"},null,0,null,{"$error":"#DIV/0!"},0]
[null,null,null,null,null,null,null,null,null,null,null,null,null,null,0,0,0,null,null,null,null,null,null,0,0,null,0,0,0,0,0,0,0,null,0,null,null,null,null,0,null,0,null,null,null,null,0,null,null,null,null,0,0,0,0,0,0,0,0,0,0,"ja",0,0,0,0,0,0,0,0,0,0,0,0,null,0,0,0,0,0,null,261,null,{"$error":"#DIV/0!"},{"$error":"#DIV/0!"},null,0,null,{"$error":"#DIV/0!"},0]
[null,null,null,null,null,null,null,null,null,null,null,null,null,null,0,0,0,null,null,null,null,null,null,0,0,null,0,0,0,0,0,0,0,null,0,null,null,null,null,0,null,0,null,null,0,null,0,null,null,null,null,0,0,0,0,0,0,0,0,0,0,"ja",0,0,0,0,0,0,0,0,0,0,0,0,null,0,0,0,0,0,null,261,null,{"$error":"#DIV/0!"},{"$error":"#DIV/0!"},null,0,null,{"$error":"#DIV/0!"},0]
[null,null,null,null,null,null,null,null,null,null,null,null,null,null,0,0,0,null,null,null,null,null,null,0,0,null,0,0,0,0,0,0,0,null,0,null,null,null,null,0,null,0,null,null,null,null,0,null,null,null,null,0,0,0,0,0,0,0,0,0,0,"ja",0,0,0,0,0,0,0,0,0,0,0,0,null,0,0,0,0,0,null,261,null,{"$error":"#DIV/0!"},{"$error":"#DIV/0!"},null,0,null,{"$error":"#DIV/0!"},0]
[null,null,null,null,null,null,null,null,null,null,null,null,null,null,0,0,0,null,null,null,null,null,null,0,0,null,0,0,0,0,0,0,0,null,0,null,null,null,null,0,null,0,null,null,null,null,0,null,null,null,null,0,0,0,0,0,0,0,0,0,0,"ja",0,0,0,0,0,0,0,0,0,0,0,0,null,0,0,0,0,0,null,261,null,{"$error":"#DIV/0!"},{"$error":"#DIV/0!"},null,0,null,{"$error":"#DIV/0!"},0]
[null,null,null,null,null,null,null,null,null,null,null,null,null,null,null,null,{"$f":"AnzMA","v":"Anzahl berechtigter Mitarbeiter:"},{"$f":"IF(KAE_SWE= 1,Anz_berechtigte_MA, \"\")","v":0},{"$f":"SumKL4","v":0},null,{"$f":"SumKL6","v":0},null,null,null,{"$f":"SumKL8","v":0},null,null,null,null,null,null,{"$f":"IF(KAE_SWE=2, KAE_SWE_TEXT & \":\",IF(R239<10,mne, KAE_SWE_TEXT & \": \"))","v":0},{"$f":"IF(R238=0,0,SumKL15)","v":0},null,0,null,{"$f":"SUM(AK204:AK236)","v":0},null,{"$f":"SUM(AM204:AM236)","v":0},{"$f":"IF(SUM(AN204:AN236)>0,SUM(AN204:AN236),0)","v":0},null,{"$f":"AI237","v":0},null,{"$f":"SUM(AR204:AR236)","v":0},null,{"$f":"SUM(AT204:AT236)","v":0},{"$f":"IF(SUM(AU204:AU236)>0,SUM(AU204:AU236),0)","v":0},null,null,null,null,{"$f":"SUM(AZ15:AZ236)","v":0},0,0,0,0,0,0,0,null,null,null,{"$f":"SUM(BK15:BK236)","v":0},0,0,0,0,0,{"$f":"SUMIF(BQ15:BQ236,\">0\",BQ15:BQ236)","v":0},{"$f":"SUM(BR15:BR236)","v":0},{"$f":"SUM(BS15:BS236)","v":0},null,{"$f":"SUM(BU15:BU236)","v":0},{"$f":"SUM(BV15:BV236)","v":0}]
[null,null,null,null,{"$f":"Lohnberechnung","v":"Lohnberechnung mit 261 Tagen"},null,null,null,null,null,null,null,null,null,null,null,{"$f":"AnzMAbetr","v":"Anzahl betroffener Mitarbeiter:"},{"$f":"Anz_betroffende_MA","v":0},{"$f":"anspruch","v":"Anspruch:"},{"$f":"StammAnspruch_in_Prozent","v":80},null,null,null,{"$f":"IF(KAE_SWE=1,\"Ausfall \"& MonatVor(StammPeriode2,24, \"MMM YYYY\"),\"\")","v":"Ausfall Dez 2016"},{"$f":"IF(KAE_SWE=1,IF(VP2_Prozentausfall = 0,\"= 0.0%\",VP2_Prozentausfall * 100),\"\")","v":"= 0.0%"},{"$f":"DurchschnittVorjahre","v":"Durchschnitt Vorjahre:"},null,null,{"$f":"IF(KAE_SWE=1,IF(VP_Schnitt=0,\"0.00%\",VP_Schnitt),\"\")","v":"0.00%"},null,null,null,{"$f":"r_5(IF(SumKL15>0,Verdienstausfall100*StammSozialAbzug%,0))","v":0},null,null,null,null,null,{"$f":"t_e_pvorjahr_u","v":"Prozentualer Arbeitsausfall in der Vergleichsperiode des Vorjahres:"},{"$f":"IF(KAE_SWE=1,IF((VP1_Sollstunden-VP1_Absenzen)>0,ROUND(1/(VP1_Sollstunden-VP1_Absenzen)*VP1_Ausfallstunden,3),0),0)","v":0},null,null,null,null,null,{"$f":"t_e_pvorjahr2_u","v":"Prozentualer Arbeitsausfall in der Vergleichsperiode des vorletzten Jahres:"},{"$f":"IF(KAE_SWE=1,IF((VP2_Sollstunden-VP2_Absenzen)>0,ROUND(1/(VP2_Sollstunden-VP2_Absenzen)*VP2_Ausfallstunden,3),0),0)","v":0},null,null,null,null,null,null,null,null,null,null,null,null,null,null,null,null,null,null,null,null,null,null,null,null,null,null,null,null,{"$f":"SUM(BX15:BX236)","v":0},{"$f":"SUM(BY15:BY236)","v":0}]
[null,null,null,null,null,null,null,null,null,null,null,null,null,null,null,null,{"$f":"Ausfall","v":"Arbeitsausfall in Prozent:"},{"$f":"IF(SumKL4-SumKL6>0,ROUND(100*SumKL8/(SumKL4-SumKL6),1),0)","v":0},{"$f":"maxVV","v":"Max. VV.:"},{"$f":"StammVV","v":10500},null,null,null,{"$f":"IF(KAE_SWE=1,\"Ausfall \"& MonatVor(StammPeriode2,12, \"MMM YYYY\"),\"\")","v":"Ausfall Dez 2017"},{"$f":"IF(KAE_SWE=1,IF(VP1_Prozentausfall=0,\"= 0.0%\",VP1_Prozentausfall* 100),\"\")","v":"= 0.0%"},{"$f":"RelativerMehrausfallTXT","v":"Relativer Mehrausfall:"},null,null,{"$f":"IF(KAE_SWE=1,IF(Arbeitsausfall_in_Prozent-VP_Schnitt>0,(Arbeitsausfall_in_Prozent-VP_Schnitt*100),0),\"\")","v":0},null,null,null,null,null,null,null,null,null,null,null,null,null,null,null,null,{"$f":"t_e_pvorjahr_beide","v":"Durchschnittlicher Arbeitsausfall der beiden Vergleichsperioden:"},{"$f":"(AN238+AU238)/2","v":0},null,null,null,null,null,null,null,null,null,null,null,null,null,null,null,null,null,null,null,null,{"$f":"Arbeitsausfall_in_Prozent","v":0}]
[{"$f":"P240","v":"lexaktuell ag, Zentrumsweg 1c, CH-6043 Adligenswil, info@lexaktuell.ch | Download der aktuellsten Version: http://www.llv.li/files/avw/kse.xlt"},null,null,null,null,null,null,null,null,null,null,null,null,null,{"$f":"AG240","v":"Tabellenversion Juli 2020"},{"$f":"copyr","v":"lexaktuell ag, Zentrumsweg 1c, CH-6043 Adligenswil, info@lexaktuell.ch | Download der aktuellsten Version: http://www.llv.li/files/avw/kse.xlt"},null,null,null,null,null,null,null,null,null,null,null,null,null,null,null,null,{"$f":"Version2","v":"Tabellenversion Juli 2020"},null,null,null,null,null,null,null,null,null,null,null,null,null,{"$f":"AG240","v":"Tabellenversion Juli 2020"},null,null,null,null,null,null,null,null,null,null,null,null,null,null,null,null,null,null,null,null,{"$f":"RelativerMehrausfall","v":0}]

{"sheet":"Hilfe","index":2,"n_rows":32,"n_cols":2,"rows_kept":32,"cut":false,"hidden":true,"merged":[]}
[null,"Verwendet"]
["h_Sachbearbeiter","Hier sollten Sie die Kontaktperson für Rückfragen der Arbeitslosenkasse eintragen. In der Regel sind das Sie selbst, es sollte aber in jedem Fall die Person sein, die eine allfällige Rückfrage betreffend der Abrechnung beantworten kann.\n\nWussten Sie, dass es viele KassenmitarbeiterInnen sehr schätzen, wenn Sie Ihren Namen vollständig - mit ausgeschriebenem Vornamen -  angeben?"]
["h_ahv"," \n \nAuf die anrechenbaren Ausfallstunden (inkl. Karenzzeit) werden die Arbeitgeberbeiträge für AHV/IV/EO/ALV vergütet. Ab 1. Januar 2004 beträgt der Satz 6.05%.\n\nSollte sich der Beitragssatz seit Erstellen dieses Excel-Sheets geändert haben, können Sie davon ausgehen, dass die jetzt von Ihnen verwendete Tabelle veraltet ist. Im Zweifelsfalle sollten Sie sich auf http://www.lexaktuell.ch die aktuellste Version dieser Tabelle besorgen."]
["h_Periode","Klicken Sie auf den Pfeil rechts vom Eingabefeld und wählen Sie die gewünschte Abrechnungsperiode.\n\nWenn die gewünscht Abrechnungsperiode nicht im Listenfeld aufgeführt sein sollte, können Sie diese auch einfach hineinschreiben. Allerdings muss Excel Ihre Eingabe einem Monat zuordnen können. Zudem müssen Sie beachten, dass Sie die Entschädigung innerhalb von drei Monaten nach Ablauf jeder Abrechnungsperiode bei der Arbeitslosenkasse geltend machen (Art. 46 Abs. 1 und Art. 54 ALVG). Wenn Sie diese Frist bereits verpasst haben, sollten Sie sich den Aufwand für die Abrechnung ersparen, da Ihr Anspruch von der Arbeitslosenkasse in jedem Fall abgelehnt werden muss."]
["h_VV","Der maximal versicherte Verdienst (VV) beträgt zur Zeit Fr. 10'500.00. Der korrekte maximale VV wird von der Tabelle automatisch eingetragen. Sie können diesen Wert nich verändern.\n\nSollte sich die Höchstgrenze des VV zwischenzeitlich geändert haben, können Sie davon ausgehen, dass die jetzt von Ihnen verwendete Tabelle veraltet ist. Fragen Sie im Zweifelsfalle Ihre Arbeitslosenkasse und verlangen Sie eine aktuelle Tabelle.\n\nEine aktuelle Tabelle können Sie übrigens auch vom Internet herunterladen. Die Adresse für den Download finden Sie ganz unten auf das Abrechnungsformular aufgedruckt."]
["h_Jahrestage","Um den anrechenbaren Stundenverdienst korrekt zu berechnen, wird die genaue Anzahl Bruttoarbeitstage (alle Werktage inkl. Ferien und Feiertage) benötigt. Dies entspricht der Formel 365 Arbeitstage / 7 Wochentage * 5 Werktage oder - in der Regel - den tatsächlich im Kalender nachzählbaren Werktagen. Die Tabelle berechnet die Anzahl Bruttoarbeitstage für Sie. Sie können diesen Wert nicht ändern."]
["h_KarenzKAE","Bei Kurzarbeitsentschädigung besteht zur Zeit keine Karenzfrist.\n\n\n \n"]
["h_KarenzSWE","Die Karenzfrist bei Schlechtwetterentschädigung beträgt zur Zeit zwei Tage (Art. 49 Abs. 3 ALVG). Sie können diesen Wert nicht ändern."]
["h_AnspruchProzent","Die Kurzarbeits- und Schlechtwetterentschädigung beträgt 80 % Prozent des anrechenbaren Verdienstausfalls (Art. 42 Abs. 1 ALVG und Art. 51 ALVG). Das bedeutet, dass Sie die Ausfallstunden zu 80 % entschädigen müssen. Sie können diesen Wert nicht ändern.\n\nBeachten Sie, dass die Arbeitslosenversicherung nur 60 % des anrechenbaren Verdienstausfalles übernimmt. Die restlichen 20 % gehen zu Ihren Lasten ( Art. 42 Abs. 1 und Art. 51 ALVG)."]
["h_Firma","Geben Sie hier Name/Bezeichnung der Firma ein."]
["h_Adresse","Geben Sie hier die Firmenadresse ein. Wenn mehrere Adresszeilen erforderlich sind, geben Sie diese durch Kommas getrennt in dieses Textfeld ein."]
["h_PLZORT","Geben Sie hier die Postleitzahl und den Ort des Firmensitzes ein."]
["h_Fon","Hier sollten Sie die Telefonnummer der Kontaktperson für Rückfragen der Arbeitslosenkasse eintragen. In der Regel sind das Sie selbst, es sollte aber in jedem Fall die Person sein, die eine allfällige Rückfrage betreffend der Abrechnung auch beantworten kann."]
["h_Fax","Geben Sie hier Ihre Faxnummer ein."]
["h_Mail","Geben Sie hier die E-Mail-Adresse der Kontaktperson für die Arbeitslosenkasse ein.\n\nDiese Eingabe sollten Sie nur vornehmen, wenn die Kontaktperson über eine persönliche E-Mail-Adresse verfügt und auch gewährleistet ist, dass Mails am richtigen Ort ankommen und gelesen werden."]
["h_Zahlungsverbindung","Die Arbeitslosenkasse ist für die Überweisung Ihrer Guthaben auf eine korrekte Zahlungsverbindung angewiesen. Geben Sie hier also die genaue und vollständige Kontonummer Ihres Bank- oder Postcheckkontos ein. Bei Bankkontos sollten Sie auch die Bank-Clearing-Nummer (zu finden auf Ihren Einzahlungsscheinen) angeben.\n\nIm übrigen sollten Sie der ersten - und nur der ersten - Abrechnung einen Einzahlungsschein beilegen. Die Zahlungsverbindung wird auf dem Kassensystem erfasst und alle später zugestellten Einzahlungsscheine werden weggeworfen! Wenn Sie eine Änderung der Zahlungsverbindung wünschen, müssen Sie dies der Arbeitslosenkasse explizit und deutlich mitteilen, weil sich die SachbearbeiterInnen nach der erstmaligen Erfassung mit diesem Thema nicht mehr beschäftigen."]
["h_BURNr","Hier erfassen Sie die LUR-Nummer. Sie finden die LUR-Nummer im Entscheid des Amtes für Volkwirtschaft."]
["h_RegNr","\nWenn Sie die Abrechnungstabelle für Ihre Kurzarbeits- oder Schlechtwetterabrechnungen verwenden wollen, benötigen Sie eine Lizenznummer. Ein Lizenznummer können Sie ganz einfach per E-Mail anfordern.\n\nWeitere Informationen zum Vorgehen sowie zu den Lizenzkosten finden Sie im Tabellenblatt 'Lizenzierung'. Schliessen Sie jetzt diesen Dialog mit dem Schalter 'Abrechnung ... bearbeiten' und wählen Sie aus dem Register unterhalb der Abrechungstabelle das Tabellenblatt 'Lizenzierung' aus."]
["h_Betriebsabteilung","Hier geben Sie die Betriebsabteilung ein. Die Aufteilung des Betriebes in Betriebsabteilungen kann nur vom Amt für Volkwirtschaft vorgenommen werden. Die hier angegegenbene Betriebsabteilung muss mit der Betriebsabteilung im Entscheid des Amtes für Volkwirtschaft übereinstimmen.\n\n"]
["h_BeginnEnde","Geben Sie hier das genaue Datum des Beginns oder des Endes von Kurzarbeit ein, wenn Sie Probleme mit dem Mindestausfall von 10% haben. Sie müssen bei Beginn oder Ende von Kurzarbeit während einer Abrechnungsperiode nur die Sollstunden ab Beginn der Kurzarbeit bis Monatsende oder ab Monatsanfang bis Ende der Kurzarbeit in die Kolonne Sollstunden eintragen. Durch diese Verminderung der Sollstunden erhöht sich der prozentuale Arbeitsausfall. In vielen Fällen kann so das Problem des Mindestausfalles von 10% umgangen werden. Bedingung für dieses Vorgehen ist, dass Sie bei Beginn der Kurzarbeit im Vormonat und bei Ende der Kurzarbeit im Nachfolgemonat tatsächlich keine Kurzarbeit abgerechnet haben oder abrechnen.\n\nDiese Proratarechnung sollte nur angewendet werden, wenn der 10%-Ausfall sonst nicht erreicht wird, weil Abrechnung und Kontrollierbarkeit komplexer wird."]
["h_hilfe","Als erstes müssen Sie jetzt die Stammdaten korrekt erfassen oder bereits erfasste Daten gut kontrollieren. In diesem Textfeld erhalten Sie Informationen zu den einzelnen Eingabefelder und Einstellungen. Wenn Ihnen trotzdem etwas nicht klar ist, rufen Sie bei Ihrer Arbeitslosenkasse an.\n\nWählen Sie jetzt ganz oben die Entschädigungsart mit der Maus. Gehen Sie zu den einzelnen Eingabefelder durch drücken der Tabulatortaste.\n\nDie Bestimmungen über Kurzarbeits- und Schlechtwetterentschädigung sind laufend Änderungen unterworfen. Überprüfen Sie deshalb regelmässig, ob eine neue Version dieser Berechnunstabelle zur Verfügung steht. Eine Internet-Adresse für den Dowload finden Sie ganz unten auf dem Abrechnungsformular aufgedruckt."]
["h_EA","Hier wählen Sie die Entschädigungsart Kurzarbeitsentschädigung oder Schlechtwetterentschädigung aus. Am einfachsten verwenden Sie hierzu die Maus. Sie können auch mit Tabulator und Umschalt-Tabulator den Fokus zwischen den beiden Optionsfeldern verschieben und die gewünschte Entschädigungsart mit der Leertaste aktivieren.\n\nSie können übrigens die Entschädigungsart auch später während des Ausfüllens der Tabelle jederzeit ändern. Allerdings sollten Sie jetzt wissen, welche Entschädigungsart abzurechnen ist. Bedenken Sie einfach, wenn Sie eine Entschädigung geltend machen wollen, benötigen Sie hierzu einen positiven Entscheid des Amtes für Volkwirtschaft."]
["h_cmdAbrechnung_mit_Focus","Sind Sie bereit für die Abrechnung? Drücken Sie die Eingabetaste um zur Abrechnung zu gelangen!\n"]
["h_cmdAbrechnung_ohne_Focus","Sind Sie bereit für die Abrechnung? Dann können Sie jetzt hier klicken!\n"]
["h_Eingabefrist",{"$f":"B26","v":"Hier wird der spätestmögliche Eingabetermin für die Geltendmachung des Anspruchs für die im Eingabefeld 'Abrechnungsperiode' gewählte Periode angezeigt.\n\nDer Arbeitgeber macht den Entschädigungsanspruch seiner Arbeitnehmer innert dreier Monate nach Ablauf jeder Abrechnungsperiode gesamthaft für den Betrieb beim Amt für Volkswirtschaft geltend (Art. 46 Abs. 1 und Art. 54 ALVG). Entschädigungen, die der Arbeitgeber nicht fristgemäss (Art. 46 Abs. 1) geltend macht, werden ihm nicht vergütet (Art. 47 Abs. 2 und Art. 55 Abs. 2 ALVG). Die Frist für die Geltendmachung des Entschädigungsanspruchs beginnt mit dem ersten Tag nach der Abrechnungsperiode (Art. 59 und Art. 65 ALVV). \n\nDie Arbeitslosenkasse muss nicht fristgerecht eingereichte Anträge ablehnen. Sie sollten sich den Aufwand für die Abrechnung und der Arbeitslosenkasse den Aufwand für die Ablehnungsverfügung ersparen, wenn Sie diese Frist bereits verpasst haben."}]
["h_Eingabefrist_swe","Hier wird der spätestmögliche Eingabetermin für die Geltendmachung des Anspruchs für die im Eingabefeld 'Abrechnungsperiode' gewählte Periode angezeigt.\n\nDer Arbeitgeber macht den Entschädigungsanspruch seiner Arbeitnehmer innert dreier Monate nach Ablauf jeder Abrechnungsperiode gesamthaft für den Betrieb beim Amt für Volkswirtschaft geltend (Art. 46 Abs. 1 und Art. 54 ALVG). Entschädigungen, die der Arbeitgeber nicht fristgemäss (Art. 46 Abs. 1) geltend macht, werden ihm nicht vergütet (Art. 47 Abs. 2 und Art. 55 Abs. 2 ALVG). Die Frist für die Geltendmachung des Entschädigungsanspruchs beginnt mit dem ersten Tag nach der Abrechnungsperiode (Art. 59 und Art. 65 ALVV). \n\nDie Arbeitslosenkasse muss nicht fristgerecht eingereichte Anträge ablehnen. Sie sollten sich den Aufwand für die Abrechnung und der Arbeitslosenkasse den Aufwand für die Ablehnungsverfügung ersparen, wenn Sie diese Frist bereits verpasst haben."]
["h_Abbrechen","Klicken Sie hier, wenn Sie die aktuelle Tabelle schliessen möchten. Sie werden von Excel angefragt, ob Sie die bisherigen Änderungen speichern möchten."]
["h_Saisonal","Wenn das Amt für Volkwirtschaft in ihrem Entscheid einen Vorbehalt bezüglich saisonaler Beschäftigungsschwankungen angebracht hat, ist nur der Mehrausfall gegenüber des durchschnittlichen Arbeitsausfalls derselben Perioden der letzten zwei Jahren entschädigungsberechtigt. Überprüfen Sie also jetzt den Entscheid des Amtes für Volkwirtschaft.\n\nSie können den Erhebungsbogen direkt in diesem  Excelsheet ausfüllen. In der Abrechnung erfasste MitarbeiterInnen werden in den Erhebungsbogen übernommen, können aber gelöscht oder überschieben werden. Die Aufteilung in saisonale und anrechenbare Ausfallstunden wird von diesem Excelsheet automatisch berechnet und in der Abrechnung berücksichtigt."]
["h_Tabelle_Vergrössern","Mit diesem Excel-Sheet können Sie zur Zeit Abrechnungen für Betriebe oder Betriebsabteilungen mit bis zu 187 MitarbeiterInnen erstellen. Wenn Sie die Vorlage erstmals öffnen, steht Ihnen eine Tabelle für bis zu 27 MitarbeiterInnen zur Verfügung. Wenn Sie jetzt also eine Abrechnung für mehr als 27 MitarbeiterInnen erstellen müssen, klicken Sie auf diesen Schalter und wählen Sie im nächsten Dialog die gewünschte Tabellengrösse.\n\nWählen Sie bei Unsicherheiten über die Anzahl abzurechnender MitarbeiterInnen eher eine zu kleine Grösse. Die Tabelle lässt sich auch vergrössern, wenn Sie schon Daten erfasst haben. Demgegenüber lässt sich die einmal vergrösserte Tabelle nicht wieder verkleinern.\n"]
["h_Tabelle_Vergrössern_KAE","Wählen Sie hier die gewünschte Tabellengrösse. Sie können die Tabelle bis maximal 187 MitarbeiterInnnen vergrössern. Sie müssen für jede (anerkannte) Betriebsabteilung eine separate Tabelle verwenden. Die benötigte Tabellengrösse ist deshalb abhängig von der abzurechnenden Betriebsabteilung oder - wenn der Betrieb von der zuständigenen Amtsstelle nicht in Betriebsabteilungen aufgeteilt wurde - von der Anzahl aller theoretisch bezugsberechtigten Personen des Gesamtbetriebes.\n\nAchtung: Wenn das Amt für Volkwirtschaft in ihrem Entscheid einen Vorbehalt bezüglich saisonaler Beschäftigungsschwankungen angebracht hat, müssen Sie sämtliche MitarbeiterInnen des Betriebes oder der Betriebsabteilung auf der Abrechnung aufführen. Auch diejenigen, die nicht von Kurzarbeit betroffen sind! Ausgenommen sind lediglich MitarbeiterInnen, die keinen Anspruch auf Kurzarbeitsentschädigung haben!\n\n"]
["h_Tabelle_Vergrössern_SWE","Wählen Sie hier die gewünschte Tabellengrösse. Sie können die Tabelle bis maximal 187 MitarbeiterInnnen vergrössern.\n\nBei Schlechtwetterentschädigung müssen Sie nur die betroffenen MitarbeiterInnen auf der Abrechnung aufführen. Alle Arbeitsorte werden gesamthaft mit einer einzigen Abrechnung abgerechnet. Die benötigte Tabellengrösse ist deshalb abhängig von der Anzahl von Schlechtwetter betroffenen MitarbeiterInnen des gesamten Betriebes.\n\n"]
["h_Sprachwahl","Wählen Sie hier die Sprache - Choisissez ici la langue!\n\n\n\n\n"]

{"sheet":"Sprachen","index":3,"n_rows":194,"n_cols":4,"rows_kept":194,"cut":false,"hidden":true,"merged":[]}
["Sprache:",0,"Kurzarbeitsentschädigung","Schlechtwettentschädigung"]
["Name","Verwendet","Deutsch","Deutsch"]
["frmStammCaption",{"$f":"IF(KAE_SWE=1,C3,D3)","v":"Stammdaten Betrieb oder Betriebsabteilung"},"Stammdaten Betrieb oder Betriebsabteilung",{"$f":"C3","v":"Stammdaten Betrieb oder Betriebsabteilung"}]
["Firma","Firma","Firma","Firma"]
["Adresse","Adresse","Adresse","Adresse"]
["PLZundOrt","PLZ und Ort","PLZ und Ort","PLZ und Ort"]
["SachbearbeiterIn","Sachbearbeiter(in)","Sachbearbeiter(in)","Sachbearbeiter(in)"]
["FonFaxMail","Telefon / E-Mail","Telefon / E-Mail","Telefon / E-Mail"]
["Zahlungsverbindung","Zahlungsverbindung","Zahlungsverbindung","Zahlungsverbindung"]
["BURNr","LUR-Nr.","LUR-Nr.","LUR-Nr."]
["BetriebAbteilung","Betrieb/Betriebsabteilung","Betrieb/Betriebsabteilung","Betrieb/Betriebsabteilung"]
["Karenz","Karenzzeit","Karenzzeit","Karenzzeit"]
["Abrechnungsperiode","Abrechnungsperiode","Abrechnungsperiode","Abrechnungsperiode"]
["DatumZeit","Datum und Zeit","Datum und Zeit","Datum und Zeit"]
["BeginnEnde","Beginn und/oder Ende der Kurzarbeit","Beginn und/oder Ende der Kurzarbeit","Beginn und/oder Ende der Kurzarbeit"]
["ArbeitstageJahr","Anzahl Arbeitstage im Jahr","Anzahl Arbeitstage im Jahr","Anzahl Arbeitstage im Jahr"]
["AnzTag","261 Tage",{"$f":"StammJahrestage & \" Tage\"","v":"261 Tage"},"261 Tage"]
["Kurzarbeitsentsch","Kurzarbeitsentschädigung","Kurzarbeitsentschädigung","Kurzarbeitsentschädigung"]
["Schlechtwetterents","Schlechwetterentschädigung","Schlechwetterentschädigung","Schlechwetterentschädigung"]
["KAEs","KAE","KAE","KAE"]
["SWEs","SWE","SWE","SWE"]
["b_AHV1","Sozialversicherungs-","Sozialversicherungs-","Sozialversicherungs-"]
["b_AHV2","oder","oder","oder"]
["b_AHV3","AHV-Nummer","AHV-Nummer","AHV-Nummer"]
["B_FF1","Freies Feld","Freies Feld","Freies Feld"]
["B_FF2","z.B.","z.B.","z.B."]
["B_FF3","Personalnummer","Personalnummer","Personalnummer"]
["B_Geburi1","",{"$f":"\"\"","v":""},""]
["B_Geburi2","Geburtsdatum","Geburtsdatum","Geburtsdatum"]
["B_Geburi3",0]
["B_L1","Grundlohn","Grundlohn",{"$f":"C31","v":"Grundlohn"}]
["B_L2","Monat oder","Monat oder","Monat oder"]
["B_L3","Stunde","Stunde","Stunde"]
["B_AZ1","Durchschnitt.","Durchschnitt.","Durchschnitt."]
["B_AZ2",{"$f":"IF(KAE_SWE=1,C35,D35)","v":"wöchentliche"},"wöchentliche","wöchentliche"]
["B_AZ3","Arbeitszeit","Arbeitszeit","Arbeitszeit"]
["B_ML1","Anzahl. bez.","Anzahl. bez.","Anzahl. bez."]
["B_ML2","Monate pro","Monate pro","Monate pro"]
["B_ML3","Jahr (12/13)","Jahr (12/13)","Jahr (12/13)"]
["B_Grati1",0]
["B_Grati2","Gratifikation","Gratifikation",{"$f":"C41","v":"Gratifikation"}]
["B_Grati3",0]
["B_Fe1","Anzahl","Anzahl",{"$f":"C43","v":"Anzahl"}]
["B_Fe2","Ferien-","Ferien-","Ferien-"]
["B_Fe3","tage","tage","tage"]
["B_Fei1","Anzahl","Anzahl","Anzahl"]
["B_Fei2","Feier-","Feier-","Feier-"]
["B_Fei3","tage","tage","tage"]
[null,0]
[null,0]
["B_11",0]
["B_12","Name Vorname","Name Vorname",{"$f":"C52","v":"Name Vorname"}]
["B_13",0]
["B_21","anrechen-","anrechen-",{"$f":"C54","v":"anrechen-"}]
["B_22","barer Std.-","barer Std.-","barer Std.-"]
["B_23","verdienst","verdienst","verdienst"]
["B_31","vertragliche","vertragliche","vertragliche"]
["B_32","wöchentl.","wöchentl.","wöchentl."]
["B_33","Arbeitszeit","Arbeitszeit","Arbeitszeit"]
["B_41","Sollstunden","Sollstunden","Sollstunden"]
["B_42","Abrechnungs-","Abrechnungs-","Abrechnungs-"]
["B_43","periode","periode","periode"]
["B_51",0]
["B_52","Istzeit","Istzeit",{"$f":"C64","v":"Istzeit"}]
["B_53",0]
["B_61","Bezahlte/","Bezahlte/",{"$f":"C66","v":"Bezahlte/"}]
["B_62",{"$f":"IF(KAE_SWE=1,C67,D67)","v":"unbezahlte"},"unbezahlte","unbezahlte"]
["B_63","Absenzen","Absenzen","Absenzen"]
["B_7","7 (nur für Gleitzeit)","7 (nur für Gleitzeit)","7 (nur für Gleitzeit)"]
["B_7a1","Saldo Ende Periode","Saldo Ende Periode","Saldo Ende Periode"]
["B_7a2","vorher-","vorher-","vorher-"]
["B_7a3","gehende","gehende","gehende"]
["B_7b2","laufende","laufende","laufende"]
["B_7b3",0]
["B_7c1","Differenz","Differenz",{"$f":"C75","v":"Differenz"}]
["B_7c2",0]
["B_7c3",0]
["B_81","Ausfallstd.","Ausfallstd.","Wetterbed."]
["B_82","Kurzarbeit","Kurzarbeit","Ausfallstd."]
["B_83",0]
["B_91","Saldo","Saldo",{"$f":"C81","v":"Saldo"}]
["B_92","Mehrstd.","Mehrstd.",{"$f":"C82","v":"Mehrstd."}]
["B_93","Vormonat","Vormonat",{"$f":"C83","v":"Vormonat"}]
["B_101","Saisonale","Saisonale","--"]
["B_102","Ausfall-","Ausfall-","--"]
["B_103","stunden","stunden","--"]
["B_111","Anrech.","Anrech.",{"$f":"C87","v":"Anrech."}]
["B_112","Ausfall-","Ausfall-","Ausfall-"]
["B_113","stunden","stunden","stunden"]
["B_121","Verdienst-","Verdienst-","Verdienst-"]
["B_122","ausfall","ausfall","ausfall"]
["B_123","100%","100%","100%"]
["B_131","KAE gemäss","KAE gemäss","SWE gemäss"]
["B_132","Art. 42 ALVG","Art. 42 ALVG","Art. 51 ALVG"]
["B_133","80%","80%",{"$f":"C95","v":"80%"}]
["B_141","Abzug","Abzug","Abzug"]
["B_142","Karenzzeit","Karenzzeit","Karenzzeit"]
["B_143","0 Tage",{"$f":"IF(KZ_V<> 1, KZ_V & \" Tage\", KZ_V & \" Tag\")","v":"0 Tage"},"0 Tage"]
["B_151",{"$f":"IF(KAE_SWE=1,C99,D99)","v":"Beantragte"},"Beantragte","Beantragte"]
["B_152","Vergütung","Vergütung","Vergütung"]
["B_153","KSE","KSE","SWE"]
[null,0,null,{"$f":"C102","v":0}]
[null,0,null,{"$f":"C103","v":0}]
["Lohnberechnung","Lohnberechnung mit 261 Tagen",{"$f":"\"Lohnberechnung mit \" & StammJahrestage & \" Tagen\"","v":"Lohnberechnung mit 261 Tagen"},{"$f":"C104","v":"Lohnberechnung mit 261 Tagen"}]
["AnzMA","Anzahl berechtigter Mitarbeiter:","Anzahl berechtigter Mitarbeiter:",""]
["AnzMAbetr","Anzahl betroffener Mitarbeiter:","Anzahl betroffener Mitarbeiter:",{"$f":"C106","v":"Anzahl betroffener Mitarbeiter:"}]
["Ausfall","Arbeitsausfall in Prozent:","Arbeitsausfall in Prozent:","Arbeitsausfall in Prozent:"]
["Anspruch","Anspruch:","Anspruch:","Anspruch:"]
["maxVV","Max. VV.:","Max. VV.:","Max. VV.:"]
["AHVIVEOALV","AHV/IV/EO/ALV:","AHV/IV/EO/ALV:","AHV/IV/EO/ALV:"]
["Karenzzeit","Karenzzeit:","Karenzzeit:","Karenzzeit:"]
["DurchschnittVorjahre","Durchschnitt Vorjahre:","Durchschnitt Vorjahre:",""]
["RelativerMehrausfallTXT","Relativer Mehrausfall:","Relativer Mehrausfall:"]
[null,0,null,{"$f":"C114","v":0}]
[null,0,null,0]
["t_OpDeutsch","allemand","allemand","allemand"]
["t_OpFranz","français","français","français"]
["t_l_Firma","Firma:","Firma:","Firma:"]
["t_l_BeginnEnde","Beginn/Ende der Kurzarbeit:","Beginn/Ende der Kurzarbeit:","Beginn/Ende der Kurzarbeit:"]
["t_l_PLZORT","PLZ und Ort:","PLZ und Ort:","PLZ und Ort:"]
["t_l_Sachbearbeiter","Sachbearbeiter/in:","Sachbearbeiter/in:","Sachbearbeiter/in:"]
["t_l_Fon","Telefon:","Telefon:","Telefon:"]
["t_l_Fax","Telefax:","Telefax:","Telefax:"]
["t_l_Email","E-Mail-Adresse:","E-Mail-Adresse:","E-Mail-Adresse:"]
["t_l_Zahlungsverbindung","Zahlungsverbindung:","Zahlungsverbindung:","Zahlungsverbindung:"]
["t_l_BURNr","LUR-Nr.:","LUR-Nr.:","LUR-Nr.:"]
["t_l_Betriebsabteilung","Betrieb/Betriebsabteilung:","Betrieb/Betriebsabteilung:","Betrieb/Betriebsabteilung:"]
["t_l_Periode","Abrechnungsperiode:","Abrechnungsperiode:","Abrechnungsperiode:"]
["t_cmdAbrechnung","Abrechnung Kurzarbeit Dezember 2018 bearbeiten",{"$f":"\"Abrechnung Kurzarbeit \" & MonatVor(StammPeriode2,0, \"MMMM YYYY\") & \" bearbeiten\"","v":"Abrechnung Kurzarbeit Dezember 2018 bearbeiten"},{"$f":"\"Schlechtwetterabrechnung \" & MonatVor(StammPeriode2,0, \"MMMM YYYY\") & \" bearbeiten\"","v":"Schlechtwetterabrechnung Dezember 2018 bearbeiten"}]
["t_cmdSaison","Saisonaler Arbeitsausfall","Saisonaler Arbeitsausfall",{"$f":"C130","v":"Saisonaler Arbeitsausfall"}]
["t_cmdAbbrechen",{"$f":"IF(KAE_SWE=1,C131,D131)","v":"Abbrechen"},"Abbrechen","Abbrechen"]
["t_cmdTabellevergrössern","Tabelle vergrössern","Tabelle vergrössern","Tabelle vergrössern"]
["t_obKAE","Abrechnung von Kurzarbeitsentschädigung","Abrechnung von Kurzarbeitsentschädigung","Abrechnung von Kurzarbeitsentschädigung"]
["t_obSWE","Abrechnung von Schlechtwetterentschädigung","Abrechnung von Schlechtwetterentschädigung","Abrechnung von Schlechtwetterentschädigung"]
["t_EA","Entschädigungsart","Entschädigungsart","Entschädigungsart"]
["t_l_AHV","Vergütung AHV/IV/EO/ALV:","Vergütung AHV/IV/EO/ALV:","Vergütung AHV/IV/EO/ALV:"]
["t_l_VVmax","Maximal versicherter Monatsverdienst:","Maximal versicherter Monatsverdienst:","Maximal versicherter Monatsverdienst:"]
["t_l_Arbeitstage ","Anzahl Arbeitstage im Jahr:","Anzahl Arbeitstage im Jahr:","Anzahl Arbeitstage im Jahr:"]
["t_l_KarenzSWE","Karenztage Schlechtwetter (Art. 49 ALVG):","Karenztage Schlechtwetter (Art. 49 ALVG):","Karenztage Schlechtwetter (Art. 49 ALVG):"]
["t_l_KarenzKAE","Karenztage Kurzarbeit:","Karenztage Kurzarbeit:","Karenztage Kurzarbeit:"]
["t_l_AnspruchProzent","Entschädigung in Prozent (Art. 42 Abs. 1 ALVG):","Entschädigung in Prozent (Art. 42 Abs. 1 ALVG):","Entschädigung in Prozent (Art. 42 Abs. 1 ALVG):"]
["t_l_Eingabfrist","Eingabefrist (Art. 46 Abs. 1 ALVG):","Eingabefrist (Art. 46 Abs. 1 ALVG):","Eingabefrist (Art. 46 Abs. 1 ALVG):"]
[null,0,null,0]
["t_cmdEBausblenden","Erhebungsbogen ausblenden","Erhebungsbogen ausblenden"]
["t_cmdStammdaten","Stammdaten / Einstellungen / Periode / Saisonalität / Tabellengrösse / Entschädigungsart etc.","Stammdaten / Einstellungen / Periode / Saisonalität / Tabellengrösse / Entschädigungsart etc.",{"$f":"C145","v":"Stammdaten / Einstellungen / Periode / Saisonalität / Tabellengrösse / Entschädigungsart etc."}]
[null,0]
[null,0]
["t_e_titel","Erhebungsbogen für die Ermittlung der saisonalen Ausfallstunden für die Abrechnungsperiode","Erhebungsbogen für die Ermittlung der saisonalen Ausfallstunden für die Abrechnungsperiode"]
["t_e_titel_2","Dieses Formular ist nur auszufüllen, wenn das Amt für Volkwirtschaft in ihrem Entscheid bezüglich der Saisonalität einen Vorbehalt angebracht hat.\n\nWenn das Amt für Volkwirtschaft in ihrem Entscheid bezüglich der Saisonalität einen Vorbehalt angebracht hat, müssen Sie sämtliche theoretisch bezugsberechtigte Mitarbeiter und MitarbeiterInnen auf der Abrechnung aufführen. ","Dieses Formular ist nur auszufüllen, wenn das Amt für Volkwirtschaft in ihrem Entscheid bezüglich der Saisonalität einen Vorbehalt angebracht hat.\n\nWenn das Amt für Volkwirtschaft in ihrem Entscheid bezüglich der Saisonalität einen Vorbehalt angebracht hat, müssen Sie sämtliche theoretisch bezugsberechtigte Mitarbeiter und MitarbeiterInnen auf der Abrechnung aufführen. "]
["t_e_pvorjahr","Zeitgleiche Periode des Vorjahres","Zeitgleiche Periode des Vorjahres"]
["t_e_pvorjahr2","Zeitgleiche Periode des vorletzten Jahres","Zeitgleiche Periode des vorletzten Jahres"]
["t_e_pvorjahr_u","Prozentualer Arbeitsausfall in der Vergleichsperiode des Vorjahres:","Prozentualer Arbeitsausfall in der Vergleichsperiode des Vorjahres:"]
["t_e_pvorjahr2_u","Prozentualer Arbeitsausfall in der Vergleichsperiode des vorletzten Jahres:","Prozentualer Arbeitsausfall in der Vergleichsperiode des vorletzten Jahres:"]
["t_e_pvorjahr_beide","Durchschnittlicher Arbeitsausfall der beiden Vergleichsperioden:","Durchschnittlicher Arbeitsausfall der beiden Vergleichsperioden:"]
["e_k61","Ausfall-","Ausfall-"]
["e_k62","stunden","stunden"]
[null,0]
[null,0]
["copyr","lexaktuell ag, Zentrumsweg 1c, CH-6043 Adligenswil, info@lexaktuell.ch | Download der aktuellsten Version: http://www.llv.li/files/avw/kse.xlt",{"$f":"Adresse_ombruSOFT&\", \" & E_mail & \" | Download der aktuellsten Version: http://www.llv.li/files/avw/kse.xlt\"","v":"lexaktuell ag, Zentrumsweg 1c, CH-6043 Adligenswil, info@lexaktuell.ch | Download der aktuellsten Version: http://www.llv.li/files/avw/kse.xlt"},{"$f":"C159","v":"lexaktuell ag, Zentrumsweg 1c, CH-6043 Adligenswil, info@lexaktuell.ch | Download der aktuellsten Version: http://www.llv.li/files/avw/kse.xlt"}]
[null,0,null,0]
[null,0,null,0]
["l_1","Wenn das Amt für Volkwirtschaft im Entscheid bezüglich Saisonalität einen Vorbehalt angebracht hat, muss der durchschnittliche prozentualen Arbeitsausfall der zeitgleichen Perioden der beiden Vorjahre mit dem 'Erhebungsbogen zur Ermittlung der saisonalen Ausfallstunden' ermittelt werden. Nur der den Durchschnitt der beiden Vorjahresperioden übersteigende Arbeitsausfall ist entschädigungsberechtigt.\n\nWenn das Amt für Volkwirtschaft in ihrem Entscheid bezüglich der Saisonalität einen Vorbehalt angebracht hat, müssen Sie sämtliche theoretisch bezugsberechtigte Mitarbeiter und MitarbeiterInnen auf der Abrechnung aufführen. ","Wenn das Amt für Volkwirtschaft im Entscheid bezüglich Saisonalität einen Vorbehalt angebracht hat, muss der durchschnittliche prozentualen Arbeitsausfall der zeitgleichen Perioden der beiden Vorjahre mit dem 'Erhebungsbogen zur Ermittlung der saisonalen Ausfallstunden' ermittelt werden. Nur der den Durchschnitt der beiden Vorjahresperioden übersteigende Arbeitsausfall ist entschädigungsberechtigt.\n\nWenn das Amt für Volkwirtschaft in ihrem Entscheid bezüglich der Saisonalität einen Vorbehalt angebracht hat, müssen Sie sämtliche theoretisch bezugsberechtigte Mitarbeiter und MitarbeiterInnen auf der Abrechnung aufführen. ","Wenn das Amt für Volkwirtschaft im Entscheid bezüglich Saisonalität einen Vorbehalt angebracht hat, muss der durchschnittliche prozentualen Arbeitsausfall der zeitgleichen Perioden der beiden Vorjahre mit dem 'Erhebungsbogen zur Ermittlung der saisonalen Ausfallstunden' ermittelt werden. Nur der den Durchschnitt der beiden Vorjahresperioden übersteigende Arbeitsausfall ist entschädigungsberechtigt.\n\nWenn das Amt für Volkwirtschaft in ihrem Entscheid bezüglich der Saisonalität einen Vorbehalt angebracht hat, müssen Sie sämtliche theoretisch bezugsberechtigte Mitarbeiter und MitarbeiterInnen auf der Abrechnung aufführen. "]
["l_2",{"$f":"IF(KAE_SWE=1,C163,D163)","v":"Sie können den Erhebungsbogen direkt in diesem  Excelsheet ausfüllen. In der Abrechnung erfasste MitarbeiterInnen werden in den Erhebungsbogen übernommen, können aber gelöscht oder überschieben werden (zwischenzeitliche Änderung des Personalbestandes).\n\nSie müssen sämtliche theoretisch bezugsberechtigte Mitarbeiter und MitarbeiterInnen sowohl auf der Abrechnung der aktuellen Abrechnungsperiode wie auch in den zeitgleichen Perioden der beiden Vorjahre aufführen. "},"Sie können den Erhebungsbogen direkt in diesem  Excelsheet ausfüllen. In der Abrechnung erfasste MitarbeiterInnen werden in den Erhebungsbogen übernommen, können aber gelöscht oder überschieben werden (zwischenzeitliche Änderung des Personalbestandes).\n\nSie müssen sämtliche theoretisch bezugsberechtigte Mitarbeiter und MitarbeiterInnen sowohl auf der Abrechnung der aktuellen Abrechnungsperiode wie auch in den zeitgleichen Perioden der beiden Vorjahre aufführen. ","Sie können den Erhebungsbogen direkt in diesem  Excelsheet ausfüllen. In der Abrechnung erfasste MitarbeiterInnen werden in den Erhebungsbogen übernommen, können aber gelöscht oder überschieben werden (zwischenzeitliche Änderung des Personalbestandes).\n\nSie müssen sämtliche theoretisch bezugsberechtigte Mitarbeiter und MitarbeiterInnen sowohl auf der Abrechnung der aktuellen Abrechnungsperiode wie auch in den zeitgleichen Perioden der beiden Vorjahre aufführen. "]
["l_3","Die Aufteilung in saisonale und anrechenbare Ausfallstunden wird von diesem Excelsheet automatisch berechnet und in der Abrechnung berücksichtigt.","Die Aufteilung in saisonale und anrechenbare Ausfallstunden wird von diesem Excelsheet automatisch berechnet und in der Abrechnung berücksichtigt.","Die Aufteilung in saisonale und anrechenbare Ausfallstunden wird von diesem Excelsheet automatisch berechnet und in der Abrechnung berücksichtigt."]
["l_4","Wenn in der zeitgleichen Perioden der Vorjahre Kurzarbeitsentschädigung abgerechnet worden ist, müsste der Erhebungsbogen nicht ausgefüllt werden, weil die benötigten Daten von den entsprechenden Abrechnungen der Vorjahre erhoben werden können. Damit die Saisonalität in der aktuellen Abrechnung trotzdem berücksichtigt wird, übertragen Sie die Saldi der entsprechenden Vorjahresabrechnung(en) in eine einzige Zeile des Erhebungsbogens in dieser Tabelle! In die Kollone 'Name Vorname' tragen Sie z.B. 'Saldi Vorjahre' ein!","Wenn in der zeitgleichen Perioden der Vorjahre Kurzarbeitsentschädigung abgerechnet worden ist, müsste der Erhebungsbogen nicht ausgefüllt werden, weil die benötigten Daten von den entsprechenden Abrechnungen der Vorjahre erhoben werden können. Damit die Saisonalität in der aktuellen Abrechnung trotzdem berücksichtigt wird, übertragen Sie die Saldi der entsprechenden Vorjahresabrechnung(en) in eine einzige Zeile des Erhebungsbogens in dieser Tabelle! In die Kollone 'Name Vorname' tragen Sie z.B. 'Saldi Vorjahre' ein!","Wenn in der zeitgleichen Perioden der Vorjahre Kurzarbeitsentschädigung abgerechnet worden ist, müsste der Erhebungsbogen nicht ausgefüllt werden, weil die benötigten Daten von den entsprechenden Abrechnungen der Vorjahre erhoben werden können. Damit die Saisonalität in der aktuellen Abrechnung trotzdem berücksichtigt wird, übertragen Sie die Saldi der entsprechenden Vorjahresabrechnung(en) in eine einzige Zeile des Erhebungsbogens in dieser Tabelle! In die Kollone 'Name Vorname' tragen Sie z.B. 'Saldi Vorjahre' ein!"]
["cmdAnzeigen","Erhebungsbogen anzeigen/ausfüllen","Erhebungsbogen anzeigen/ausfüllen","Erhebungsbogen anzeigen/ausfüllen"]
["frmSACaption","Erhebungsbogen für die Ermittlung der saisonalen Ausfallstunden","Erhebungsbogen für die Ermittlung der saisonalen Ausfallstunden"]
["cmdAusblenden","Saisonalität nicht berücksichtigen (kein Vorbehalt)","Saisonalität nicht berücksichtigen (kein Vorbehalt)",{"$f":"C168","v":"Saisonalität nicht berücksichtigen (kein Vorbehalt)"}]
[null,0,null,0]
["l_5","Wählen Sie hier die gewünschte Tabellengrösse. Sie können die Tabelle bis maximal 187 MitarbeiterInnnen vergrössern. Sie müssen für jede (anerkannte) Betriebsabteilung eine separate Tabelle verwenden. Die benötigte Tabellengrösse ist deshalb abhängig von der abzurechnenden Betriebsabteilung.","Wählen Sie hier die gewünschte Tabellengrösse. Sie können die Tabelle bis maximal 187 MitarbeiterInnnen vergrössern. Sie müssen für jede (anerkannte) Betriebsabteilung eine separate Tabelle verwenden. Die benötigte Tabellengrösse ist deshalb abhängig von der abzurechnenden Betriebsabteilung.","Wählen Sie hier die gewünschte Tabellengrösse. Sie können die Tabelle bis maximal 187 MitarbeiterInnnen vergrössern. Sie müssen für jede (anerkannte) Betriebsabteilung eine separate Tabelle verwenden. Die benötigte Tabellengrösse ist deshalb abhängig von der abzurechnenden Betriebsabteilung."]
["l_6","Verunsichert Sie der Begriff 'Betriebsabteilung'? Dann verfügen Sie wahrscheinlich nicht über anerkannte Betriebsabteilungen. Betriebsabteilungen müssen von der zuständigen Amtsstelle anerkannt sein. Die Voranmeldung von Kurzarbeit müssen Sie für jede Betriebsabteilung separat einreichen. Sie erhalten auch für jede (anerkannte) Betriebsabteilung einen separaten Entscheid! Sie können somit nur bei vorliegen solcher Entscheide Betriebsabteilungen separat abrechnen.","Verunsichert Sie der Begriff 'Betriebsabteilung'? Dann verfügen Sie wahrscheinlich nicht über anerkannte Betriebsabteilungen. Betriebsabteilungen müssen von der zuständigen Amtsstelle anerkannt sein. Die Voranmeldung von Kurzarbeit müssen Sie für jede Betriebsabteilung separat einreichen. Sie erhalten auch für jede (anerkannte) Betriebsabteilung einen separaten Entscheid! Sie können somit nur bei vorliegen solcher Entscheide Betriebsabteilungen separat abrechnen.","Verunsichert Sie der Begriff 'Betriebsabteilung'? Dann verfügen Sie wahrscheinlich nicht über anerkannte Betriebsabteilungen. Betriebsabteilungen müssen von der zuständigen Amtsstelle anerkannt sein. Die Voranmeldung von Kurzarbeit müssen Sie für jede Betriebsabteilung separat einreichen. Sie erhalten auch für jede (anerkannte) Betriebsabteilung einen separaten Entscheid! Sie können somit nur bei vorliegen solcher Entscheide Betriebsabteilungen separat abrechnen."]
["l_7","Sie können die Tabelle jederzeit, auch wenn Sie schon Daten erfasst haben, vergrössern. Eine einmal vergrösserte Tabelle können Sie jedoch nicht wieder verkleinern! Vergrössern Sie die Tabelle nur soweit nötig!","Sie können die Tabelle jederzeit, auch wenn Sie schon Daten erfasst haben, vergrössern. Eine einmal vergrösserte Tabelle können Sie jedoch nicht wieder verkleinern! Vergrössern Sie die Tabelle nur soweit nötig!","Sie können die Tabelle jederzeit, auch wenn Sie schon Daten erfasst haben, vergrössern. Eine einmal vergrösserte Tabelle können Sie jedoch nicht wieder verkleinern! Vergrössern Sie die Tabelle nur soweit nötig!"]
["op1","bis 27 MitarbeiterInnen","bis 27 MitarbeiterInnen","bis 27 MitarbeiterInnen"]
["op2","bis 59 MitarbeiterInnen","bis 59 MitarbeiterInnen","bis 59 MitarbeiterInnen"]
["op3","bis 91 MitarbeiterInnen","bis 91 MitarbeiterInnen","bis 91 MitarbeiterInnen"]
["op4","bis 123 MitarbeiterInnen","bis 123 MitarbeiterInnen","bis 123 MitarbeiterInnen"]
["op5","bis 155 MitarbeiterInnen","bis 155 MitarbeiterInnen","bis 155 MitarbeiterInnen"]
["op6","bis 187 MitarbeiterInnen","bis 187 MitarbeiterInnen","bis 187 MitarbeiterInnen"]
["cmdClose","Abbrechen, Tabelle (vorläufig) nicht vergrössern...","Abbrechen, Tabelle (vorläufig) nicht vergrössern...","Abbrechen, Tabelle (vorläufig) nicht vergrössern..."]
["cmdOK","OK","OK","OK"]
["frmTabellengrCaption","Wählen Sie die gewünschte Tabellengrösse...","Wählen Sie die gewünschte Tabellengrösse...","Wählen Sie die gewünschte Tabellengrösse..."]
[null,0,null,{"$f":"C182","v":0}]
["KAE_SWE_TEXT","Kurzarbeitsentschädigung","Kurzarbeitsentschädigung","Schlechtwetterentschädigung"]
["Abrechnung","Abrechnung","Abrechnung","Abrechnung"]
["Version","Version","Version","Version"]
["StammMA","Stammdaten MitarbeiterInnen Seite","Stammdaten MitarbeiterInnen Seite","Stammdaten MitarbeiterInnen Seite"]
["Seite","Seite","Seite","Seite"]
["mne",null,"Mindestausfall nicht erreicht!","Mindestausfall nicht erreicht!"]
["übertrag","Übertrag","Übertrag","Übertrag"]
["up","ungültige Periode","ungültige Periode","ungültige Periode"]
["wH","Wenn Sie für diesen Betrieb oder für diese Betriebsabteilung mehr als eine Abrechnung erstellen müssen, sollten Sie jetzt nur die in der Regel gleichbleibenden Daten, d.h. die Lohndaten und ev. die Kolonne 3 ausfüllen und die Tabelle dann als Mustervorlage unter einem eindeutigen Namen speichern. Diese Vorlage können Sie dann für jede neue Abrechnungsperiode wieder verwenden, wobei Sie nur noch die Kolonnen 3 - 7 sowie Kolonne 9 ausfüllen müssen.\n\nEs lohnt sich für Sie! Sie werden nicht nochmals darauf hingewiesen!","Wenn Sie für diesen Betrieb oder für diese Betriebsabteilung mehr als eine Abrechnung erstellen müssen, sollten Sie jetzt nur die in der Regel gleichbleibenden Daten, d.h. die Lohndaten und ev. die Kolonne 3 ausfüllen und die Tabelle dann als Mustervorlage unter einem eindeutigen Namen speichern. Diese Vorlage können Sie dann für jede neue Abrechnungsperiode wieder verwenden, wobei Sie nur noch die Kolonnen 3 - 7 sowie Kolonne 9 ausfüllen müssen.\n\nEs lohnt sich für Sie! Sie werden nicht nochmals darauf hingewiesen!","Wenn Sie für diesen Betrieb oder für diese Betriebsabteilung mehr als eine Abrechnung erstellen müssen, sollten Sie jetzt nur die in der Regel gleichbleibenden Daten, d.h. die Lohndaten und ev. die Kolonne 3 ausfüllen und die Tabelle dann als Mustervorlage unter einem eindeutigen Namen speichern. Diese Vorlage können Sie dann für jede neue Abrechnungsperiode wieder verwenden, wobei Sie nur noch die Kolonnen 3 - 7 sowie Kolonne 9 ausfüllen müssen.\n\nEs lohnt sich für Sie! Sie werden nicht nochmals darauf hingewiesen!"]
["wHt","Wichter Hinweis...","Wichter Hinweis...","Wichter Hinweis..."]
[null,0,null,0]
[null,0,null,0]

{"sheet":"Diverses","index":4,"n_rows":53,"n_cols":13,"rows_kept":53,"cut":false,"hidden":true,"merged":[]}
[null,null,null,{"$f":"Sprache","v":0},null,null,null,null,"v","v",null,"v","b"]
["KAE_SWE",1,"Kurzarbeit = 1, Schlechtwetter = 2",null,{"$f":"EDATUM2(TODAY(),F2)","v":"2020-06-30"},-5,{"$f":"FormatDatum(E2)","v":"Juni 2020"},null,{"$f":"I32+1","v":1},5,80,{"$f":"K2/J2","v":16},{"$f":"K2/I2","v":80}]
["KAE",false,null,null,"2020-07-30",{"$f":"F2+1","v":-4},{"$f":"FormatDatum(E3)","v":"Juli 2020"},null,{"$f":"J2+1","v":6},27,300,{"$f":"K3/J3","v":11.111111111111111},{"$f":"K3/I3","v":50}]
["SWE",false,null,null,"2020-08-30",-3,{"$f":"FormatDatum(E4)","v":"August 2020"},null,28,59,550,9.3220338983050848,19.642857142857142]
["KZ_V",0,"Karenzzeit verwendet",null,"2020-09-30",-2,"September 2020",null,60,91,700,7.6923076923076925,11.666666666666666]
["E_Mail","info@lexaktuell.ch",null,null,"2020-10-30",-1,"Oktober 2020",null,92,123,800,6.5040650406504064,8.695652173913043]
["www","http://www.llv.li/files/avw/kse.xlt",null,null,"2020-11-30",0,"November 2020",null,124,155,900,5.806451612903226,7.258064516129032]
["Adresse_ombruSOFT","lexaktuell ag, Zentrumsweg 1c, CH-6043 Adligenswil",null,null,"2020-12-30",1,"Dezember 2020",null,156,187,1000,5.3475935828877006,6.4102564102564106]
["Telefon",{"$f":"\"+41 41 662 00 60\"","v":"+41 41 662 00 60"},null,null,"2021-01-30",{"$f":"F8+1","v":2},"Januar 2021"]
[]
["Version","2020-07-07","2003-04-04"]
[]
["Version2",{"$f":"\"Tabellenversion \"&TEXT(B11,\"MMMM JJJJ\")","v":"Tabellenversion Juli 2020"}]
[]
[]
[]
["StammPeriode","Dezember 2018","2018-12-01"]
["StammSozialAbzug",6.25]
["StammVV",10500]
["StammJahrestage",261,null,null,"1. März 2002"]
["StammKarenzzeit_KAE",0]
["StammKarenzzeit_SWE",2]
[]
["StammMindestausfall",2]
[null,80]
["StammAnspruch_in_Prozent_KAE",80]
["StammAnspruch_in_Prozent_SWE",80]
["StammAnspruch_in_Prozent"]
[null,60]
["Entsch_Liechtenstein_in_Prozent"]
[]
["StammFirma"]
["StammAdresse"]
["StammPLZOrt"]
["StammSachbearbeiterin"]
["StammTelefon"]
["StammTelefax","IBAN Nummer"]
["StammZahlungsverbindung","LURNUMMER"]
["StammBURNummer"]
["StammRegNummer","ABTEILUNG"]
["StammBetriebsabteilung"]
["StammBeginnEnde"]
["StammEmail"]
[null,0,"1 = Vorlage, Hinweis auf Vorlage kommt"]
["Vorlage",1]
["AnzahlBlätter",0,"1 = Vorlage, Sprache wurde noch nicht automatisch gewählt, 0 = Sprache wurde schon mal automatisch geäwählt"]
["SpracheWahl",0,"1 = Ein, 0 = Aus (ausgeblendet)"]
["ErhebungsbogenZustand"]
[]
[null,1,{"$f":"IF(IstReg>-1,\"Lizenz ist in Ordnung\")","v":"Lizenz ist in Ordnung"}]
["IstReg"]
[null,6,{"$f":"LizenzartText(Lizenzart)","v":{"$error":"#NAME?"}}]
["Lizenzart"]

{"sheet":"Monatslohn","index":5,"n_rows":38,"n_cols":3,"rows_kept":38,"cut":false,"hidden":false,"merged":[[2,0,2,2]]}
["Berechnung anrechenbarer Stundenverdienst im Monatslohn"]
[]
["Der von der Arbeitslosenversicherung zu entschädigende anrechenbare Stundenverdienst wird gemäss den Richtlinien der schweizerischen Arbeitslosenversicherung berechnet. Diese Tabelle soll Ihnen helfen, die Berechnung des anrechenbaren Stundenverdienstes nachzuvollziehen. Sie müssen lediglich die grünen Eingabefelder ausfüllen."]
[]
["Vereinbarter Monatslohn",null,10000]
["Schlechtwetterzulage in Prozent",null,0]
["Schlechtwetterzulage auf Monatlohn",null,{"$f":"Monatslohn*C6","v":0}]
["Monatslohn inkl. Schlechtwetterzulage",null,{"$f":"Monatslohn +C7","v":10000}]
["Gratifikation pro Jahr",null,0]
["Durchschnittliche wöchentliche Arbeitszeit",null,45]
["Arbeitsstunden pro Arbeitstag",null,{"$f":"C10/5","v":9}]
["Anzahl Monatslöhne (12, 13, 13.5 etc.)",null,12]
["Anzahl Ferientage",null,25]
["Anzahl Feiertage",null,5]
["Brutto-Jahresarbeitstage",null,{"$f":"StammJahrestage","v":261}]
["Maximal Versicherter Verdienst",null,10500]
[]
[]
["Berechnung"]
[{"$f":"\"Jahresarbeitszeit (\" & C15 & \" Tage x \" & C11 & \" Std.)\"","v":"Jahresarbeitszeit (261 Tage x 9 Std.)"},"=",{"$f":"C15*C11","v":2349}]
[{"$f":"\"- Feiertage (\" & C14 & \" Feiertage x \" & C11 & \" Std. pro Tag)\"","v":"- Feiertage (5 Feiertage x 9 Std. pro Tag)"},"=",{"$f":"C14*C11","v":45}]
[{"$f":"\"- Feiertage (\" & C13 & \" Ferientage x \" & C11 & \" Std. pro Tag)\"","v":"- Feiertage (25 Ferientage x 9 Std. pro Tag)"},"=",{"$f":"C13*C11","v":225}]
["Effektiv zu leistende Arbeitsstunden pro Jahr","=",{"$f":"C20-C21-C22","v":2079}]
[]
[{"$f":"\"Effektiv zu leistende Arbeitsstunden pro Monat (\" & C23 & \" Std. : 12 Monate)\"","v":"Effektiv zu leistende Arbeitsstunden pro Monat (2079 Std. : 12 Monate)"},"=",{"$f":"C23/12","v":173.25}]
[]
["Monatslohn inkl. Schlechtwetterzulage","=",{"$f":"C8","v":10000}]
[{"$f":"\" + 13 Monatslohn ((\"&C12&\" Monate x 100 / 12 Monate) - 100 = \" & ROUND((C12 * 100 / 12) - 100,2) &\" %)\"","v":" + 13 Monatslohn ((12 Monate x 100 / 12 Monate) - 100 = 0 %)"},"=",{"$f":"(C12 * 100 / 12 - 100) * C27 / 100","v":0}]
[]
[{"$f":"\"Massgebender Monatsverdienst (CHF \" &  C27 & \" + CHF \" & ROUND(C28,2) & \")\"","v":"Massgebender Monatsverdienst (CHF 10000 + CHF 0)"},"=",{"$f":"SUM(C27:C29)","v":10000}]
[]
[{"$f":"\"Anrechenbarer Stundenverdienst (CHF \" & ROUND(C30,2) & \" : \" & ROUND(C25,2) & \" Std.)\"","v":"Anrechenbarer Stundenverdienst (CHF 10000 : 173.25 Std.)"},"=",{"$f":"C30/C25","v":57.720057720057717}]
[{"$f":"\"Gratifikation (CHF \" & C9 & \" : \" & C23 & \" Nettoarbeitsstunden)\"","v":"Gratifikation (CHF 0 : 2079 Nettoarbeitsstunden)"},"=",{"$f":"C9 / C23","v":0}]
["Anrechenbarer Stundeverdienst ohne Berücksichtigung des maximal versicherten Verdienstes","=",{"$f":"SUM(C32:C33)","v":57.720057720057717}]
[]
[{"$f":"\"Maximal versicherter Stundenverdienst (CHF \" & VVMax & \" :  \" & ROUND(C25,2) & \" effektiv zu leistende Arbeitsstunden pro Monat):\"","v":"Maximal versicherter Stundenverdienst (CHF 10500 :  173.25 effektiv zu leistende Arbeitsstunden pro Monat):"},"=",{"$f":"ROUND(VVMaxML / (NettoStdML / 12),2)","v":60.61}]
[]
[{"$f":"IF(C36<C34,\"Anrechenbarer Stundenverdienst (gekürzt wegen Überschreitung des maximal versicherten Verdienstes):\",\"Anrechenbarer Stundenverdienst (kleiner als maximal Versicherter Stundenverdienst, keine Kürzung):\")","v":"Anrechenbarer Stundenverdienst (kleiner als maximal Versicherter Stundenverdienst, keine Kürzung):"},"=",{"$f":"IF(C36<C34,C36,C34)","v":57.720057720057717}]

{"sheet":"Stundenlohn","index":6,"n_rows":40,"n_cols":3,"rows_kept":40,"cut":false,"hidden":false,"merged":[[2,0,2,2]]}
["Berechnung anrechenbarer Stundenverdienst im Stundenlohn"]
[]
["Der von der Arbeitslosenversicherung zu entschädigende anrechenbare Stundenverdienst wird gemäss den Richtlinien der schweizerischen Arbeitslosenversicherung berechnet. Diese Tabelle soll Ihnen helfen, die Berechnung des anrechenbaren Stundenverdienstes nachzuvollziehen. Sie müssen lediglich die grünen Eingabefelder ausfüllen."]
[]
["Grundlohn Stunde",null,20]
["Schlechtwetterzulage in Prozent",null,0]
["Schlechtwetterzulage pro Stunde",null,{"$f":"StdLohn*C6","v":0}]
["Grundlohn Stunde inkl. Schlechtwetterzulage",null,{"$f":"StdLohn+C7","v":20}]
["Gratifikation",null,0]
["Durchschnittliche wöchentliche Arbeitszeit",null,40]
["Arbeitsstunden pro Arbeitstag",null,{"$f":"WöchentlicheAZ/5","v":8}]
["Anzahl Monatslöhne (12, 13, 13.5 etc.)",null,12]
["Anzahl Ferientage",null,20]
["Anzahl Feiertage",null,5]
["Brutto-Jahresarbeitstage",null,{"$f":"StammJahrestage","v":261}]
["Maximal Versicherter Verdienst",null,10500]
[]
[]
["Berechnung"]
[{"$f":"\"Brutto-Jahresstunden (\" & AnzJahresTage & \" Tage à \" & AnzStdTag & \" Std.)\"","v":"Brutto-Jahresstunden (261 Tage à 8 Std.)"},"=",{"$f":"AnzJahresTage * AnzStdTag","v":2088}]
[{"$f":"\"- Feiertage (\" & AnzFEI & \" Feiertage x \" & AnzStdTag & \" Std.)\"","v":"- Feiertage (5 Feiertage x 8 Std.)"},"=",{"$f":"AnzFEI * AnzStdTag","v":40}]
[{"$f":"\"- Ferien (\" & AnzFER & \" Ferientage x \" & AnzStdTag & \" Std.)\"","v":"- Ferien (20 Ferientage x 8 Std.)"},"=",{"$f":"AnzFER *AnzStdTag","v":160}]
["Effektive Arbeitsstunden im Jahr (Nettoarbeitsstunden)","=",{"$f":"C20-C21-C22","v":1888}]
["Effektive Arbeitsstunden im Monat (Nettoarbeitsstunden)","=",{"$f":"ROUND(EffektArbeitsStd/12,2)","v":157.33000000000001}]
[]
[{"$f":"\"Jahresverdienst (\" & StdJahr & \" Std. x CHF \" & StdLohnInklSWEZulage & \")\"","v":"Jahresverdienst (2088 Std. x CHF 20)"},"=",{"$f":"StdJahr * StdLohnInklSWEZulage","v":41760}]
[{"$f":"\"+ 13 Monatslohn (\" & AnzMT - 12 & \" x 1/12 von CHF \" & Jahresverdienst & \")\"","v":"+ 13 Monatslohn (0 x 1/12 von CHF 41760)"},"=",{"$f":"Jahresverdienst / 12 * (AnzMT - 12)","v":0}]
["Gesamtverdienst","=",{"$f":"Jahresverdienst+C27","v":41760}]
[{"$f":"\"Verdienst aus effekt. Arbeitsstunden (\" & EffektArbeitsStd & \" Std. x CHF \" & StdLohnInklSWEZulage & \")\"","v":"Verdienst aus effekt. Arbeitsstunden (1888 Std. x CHF 20)"},"=",{"$f":"EffektArbeitsStd * StdLohnInklSWEZulage","v":37760}]
["Differenz (Entschädigung, für die nicht gearbeitet wurde)","=",{"$f":"C28-C29","v":4000}]
[{"$f":"\"Differenz in % (CHF \" & C30  & \" x 100 : CHF \" & C29 & \")\"","v":"Differenz in % (CHF 4000 x 100 : CHF 37760)"},"=",{"$f":"(C30*100/C29)/100","v":0.1059322033898305}]
[]
["Vertraglich vereinbarter Stundenlohn","=",{"$f":"StdLohnInklSWEZulage","v":20}]
[{"$f":"\"Aufrechnung bei \" & AnzFEI & \" Feiertagen, \" & AnzFER / 4 & \" Wochen Ferien und Anspruch auf insgesamt \" & AnzMT & \" Monatslöhne (insgesamt \" & ROUND(100*C31,2) & \"%)\"","v":"Aufrechnung bei 5 Feiertagen, 5 Wochen Ferien und Anspruch auf insgesamt 12 Monatslöhne (insgesamt 10.59%)"},"=",{"$f":"ROUND(C33*C31,2)","v":2.12}]
[{"$f":"\"Gratifikation (CHF \" & Grati & \" : \" & NettoStd & \" Nettoarbeitsstunden)\"","v":"Gratifikation (CHF 0 : 1888 Nettoarbeitsstunden)"},null,{"$f":"Grati / NettoStd","v":0}]
["Anrechenbarer Stundeverdienst ohne Berücksichtigung des maximal versicherten Verdienstes","=",{"$f":"SUM(C33:C35)","v":22.12}]
[]
[{"$f":"\"Maximal versicherter Stundenverdienst (CHF \" & VVMax & \" :  \" & C24 & \" effektiv zu leistende Arbeitsstunden pro Monat):\"","v":"Maximal versicherter Stundenverdienst (CHF 10500 :  157.33 effektiv zu leistende Arbeitsstunden pro Monat):"},"=",{"$f":"ROUND(VVMax / (NettoStd / 12),2)","v":66.739999999999995}]
[]
[{"$f":"IF(C38<C36,\"Anrechenbarer Stundenverdienst (gekürzt wegen Überschreitung des maximal versicherten Verdienstes):\",\"Anrechenbarer Stundenverdienst (kleiner als maximal Versicherter Stundenverdienst, keine Kürzung):\")","v":"Anrechenbarer Stundenverdienst (kleiner als maximal Versicherter Stundenverdienst, keine Kürzung):"},"=",{"$f":"IF(C38<C36,C38,C36)","v":22.12}]